{"text_format":"1","workbook":"xlsx","n_sheets":15,"sheets":["STARTSEITE","INFO","Auswahl","Info-Massenträgheitsmoment","Massenträgheitsmoment","Grafik","Info-Anbau","Massenschwerpunkt","Eingabe1","Eingabe2","Ber_DRL20","Ber_DRL25","Ber_PPU","Info-Translation","Translation"],"not_rendered":{"charts":0,"images":406,"macros":1,"external_links":0,"defined_names":10,"comments":0,"pivot_tables":0},"unopened":[],"bounds":{"document_bytes":16777216,"sheet_cells":100000,"rows_first":2000,"rows_last":500,"rows_between":2000,"halvings":0,"cell_chars":16384,"cell_head_chars":4096},"cells_cut":0,"cells_raw":0,"read":"whole","date_system":"1900"}

{"sheet":"STARTSEITE","index":0,"n_rows":62,"n_cols":4,"rows_kept":62,"cut":false,"hidden":false,"merged":[[8,3,9,6],[11,3,18,6],[44,0,46,1],[40,0,43,1],[13,0,13,1],[21,3,29,6]]}
[]
[{"$f":"Translation!A14","v":"Toolbox-Pick&Place - MODULARE MONTAGEAUTOMATION"}]
[{"$f":"Translation!A13","v":"Version 06/16"}]
[]
[]
[]
[]
[]
[null,null,null,{"$f":"Translation!A6","v":"Modul-Berechnungsprogramm"}]
[]
[]
[null,null,null,{"$f":"Translation!A7","v":"Mit diesem Software-Tool werden für Pick&Place-Geräte die zulässigen Belastungen und Taktzeiten berechnet"}]
[]
[{"$f":"Translation!A15","v":"Zoom (%)"}]
[]
[]
[]
[]
[]
[null,null,null,{"$f":"Translation!A17","v":"Achtung:"}]
[]
[null,null,null,{"$f":"Translation!A16","v":"Bitte überprüfen Sie regelmäßig die Aktualität dieses Berechnungsprogramms im \"Download-Bereich\" unserer Homepage !"}]
[]
[]
[]
[]
[]
[]
[]
[]
[]
[]
[]
[]
[]
[]
[]
[]
[]
[]
["http://www.schunk.com"]
[null,null,null,{"$f":"Translation!A8","v":"Software: MS Excel 2007"}]
[null,null,null,{"$f":"Translation!A11","v":"ActiveX Steuerelemente müssen aktiviert sein !"}]
[null,null,null,{"$f":"Translation!A12","v":"MAKROS müssen aktiviert sein !"}]
["mailto:\nautomation@\nde.schunk.com"]
[]
[]
[]
[]
[1,"100"]
[null,100]
[null,95]
[null,90]
[null,85]
[null,80]
[null,75]
[null,70]
[]
[null,100]
[null,{"$f":"IF(B59>100,100,B59)","v":100}]
[null,{"$f":"B60*0.88","v":88}]
[null,{"$f":"B60*0.96","v":96}]

{"sheet":"INFO","index":1,"n_rows":11985,"n_cols":20,"rows_kept":11985,"cut":false,"hidden":false,"merged":[[164,3,166,6],[131,3,132,21],[144,19,144,20],[149,3,150,4],[149,5,150,21],[151,5,153,21],[134,3,135,13],[157,5,160,21],[155,5,156,21],[140,3,141,13],[138,3,139,13],[141,19,141,20],[24,8,26,15],[27,8,29,15],[136,3,137,13],[65,3,65,5],[44,3,46,6],[168,3,170,21],[65,19,65,21],[125,3,126,11],[119,3,120,21],[128,3,129,21],[111,11,112,12],[105,3,105,21],[113,3,113,5],[113,6,114,10],[115,6,116,10],[109,3,110,21],[111,3,112,5],[111,6,112,10],[111,13,112,21],[122,3,123,11],[99,3,104,21],[293,3,298,21],[291,3,292,6],[76,7,79,21],[85,3,88,21],[96,4,97,21],[89,4,90,21],[91,4,95,21],[229,13,230,21],[286,3,288,6],[218,3,220,21],[225,3,226,21],[227,3,228,5],[227,6,228,10],[227,11,228,12],[227,13,228,21],[229,3,229,5],[256,3,257,21],[258,3,259,21],[260,3,261,21],[262,3,263,21],[275,5,278,21],[267,3,268,4],[267,5,268,21],[269,5,271,21],[273,5,274,21],[252,3,253,21],[171,3,173,21],[185,3,185,5],[254,3,255,21],[245,3,248,21],[249,3,250,21],[234,3,235,21],[238,3,239,11],[241,3,242,11],[229,6,230,10],[11,3,13,21],[210,4,214,21],[215,4,216,21],[190,3,191,21],[192,3,195,21],[196,3,199,21],[202,3,203,21],[204,3,207,21],[208,4,209,21],[83,3,84,21],[15,3,19,21],[30,7,31,16],[48,3,50,21],[70,7,71,21],[72,7,75,21],[51,3,53,21]]}
[]
[{"$f":"Translation!A14","v":"Toolbox-Pick&Place - MODULARE MONTAGEAUTOMATION"}]
[{"$f":"'Info-Translation'!A15","v":"Informationen"}]
[]
[]
[]
[]
[]
[]
[]
[]
[null,null,null,{"$f":"'Info-Translation'!A6","v":"Infos zur Toolbox-Pick&Place"}]
[]
[]
[]
[null,null,null,{"$f":"'Info-Translation'!A22","v":"SCHUNK bietet Ihnen Produkte und Dienstleistungen mit zukunftsgerichtetem technischen Niveau. Um Ihnen die geforderte Planungssicherheit zu garantieren, wurde diese Software entwickelt, mit der Pick&Place-Einheiten berechnet werden können. Nachfolgend ist die Funktion und Bedienung kurz beschrieben."}]
[]
[]
[]
[]
[null,null,null,{"$f":"'Info-Translation'!A7","v":"Klicken Sie hier..."}]
[]
[]
[]
[null,null,null,null,null,null,null,null,{"$f":"'Info-Translation'!A13","v":"Berechnung der Taktzeiten und Massenträgheitsmomente"}]
[]
[]
[null,null,null,null,null,null,null,null,{"$f":"'Info-Translation'!A12","v":"Berechnung der Taktzeiten und Massenschwerpunkte"}]
[]
[]
[]
[]
[]
[]
[]
[]
[]
[]
[]
[]
[]
[]
[]
[]
[null,null,null,{"$f":"'Info-Translation'!A9","v":"Drehlader DRL"}]
[]
[]
[]
[null,null,null,{"$f":"'Info-Translation'!A23","v":"Zur Berechnung von Drehladern ist - VORHER - das Massenträgheitsmoment J der zu schwenkenden Masse zu berechnen !"}]
[]
[]
[null,null,null,{"$f":"'Info-Translation'!A24","v":"Aus nachfolgend aufgezeigten Einzelkörpern, deren Massenträgheitsmomente und Schwerpunktskoordinaten mit dieser Software berechnet werden können, ist es möglich durch Zusammensetzen, Aufsummieren oder Subtrahieren das Gesamtmassenträgheitsmoment mit Schwerpunktskoordinaten eines spezifischen Schwenkaufbaus zu ermitteln."}]
[]
[]
[]
[]
[]
[]
[]
[]
[]
[]
[]
[]
[]
[null,null,null,{"$f":"'Info-Translation'!A25","v":"Direkte Eingabe von J "},null,null,null,{"$f":"'Info-Translation'!A26","v":"Quader"},null,null,{"$f":"'Info-Translation'!A27","v":"Scheibe"},null,null,{"$f":"'Info-Translation'!A28","v":"Welle längs"},null,null,{"$f":"'Info-Translation'!A29","v":"Welle quer"},null,null,{"$f":"'Info-Translation'!A30","v":"Grundfläche/Masse"}]
[]
[]
[]
[]
[null,null,null,null,null,null,null,{"$f":"'Info-Translation'!A33","v":"Einzelkörper-Massenträgheitsmomente"}]
[]
[null,null,null,null,null,null,null,{"$f":"'Info-Translation'!A34","v":"Nach Auswahl des gewünschten Körpers und Eingabe der Körperdaten sind die Koordinaten des Massenschwerpunktes dieses Körpers zur Drehachse zu bestimmen."}]
[]
[]
[]
[null,null,null,null,null,null,null,{"$f":"'Info-Translation'!A36","v":"Nach vollständiger Eingabe aller Daten müssen die Werte zur Berechnung des Gesamtmassenträgheitsmoments in die Liste addiert oder subtrahiert werden."}]
[]
[]
[null,null,null,{"$f":"'Info-Translation'!A31","v":"Greifmodule"}]
[]
[]
[]
[null,null,null,{"$f":"'Info-Translation'!A37","v":"Gesamt-Massenträgheitsmoment"}]
[]
[null,null,null,{"$f":"'Info-Translation'!A38","v":"Durch die Möglichkeit der Aufsummierung einzelner Körper ist es möglich das Gesamtmassenträgheitsmoment sowie die Koordinaten des Gesamtmassenschwerpunkts unterschiedlichster Schwenkaufbauten zu berechnen. Diese sind dann die Grundlage zur Berechnung eines geeigneten Drehladers."}]
[]
[]
[]
[null,null,null,null,{"$f":"'Info-Translation'!A39","v":"Alle in die Liste übernommenen Einzelkörperwerte können zeilenweise gelöscht werden."}]
[]
[null,null,null,null,{"$f":"'Info-Translation'!A40","v":"Sind in die letzte Zeile der Liste bereits Einzelkörperwerte übernommen worden und Sie wollen weitere Einzelkörper berechnen und in die Liste übernehmen, erhalten Sie eine Meldung die Sie mit - JA - bestätigen. Das bisher berechnete Gesamtmassenträgheitsmoment mit Schwerpunktskoorinaten  wird dann in die erste Zeile der Liste übernommen. Sie können nun weitere Einzelkörper berechnen und in die Liste übernehmen."}]
[]
[]
[]
[]
[null,null,null,null,{"$f":"'Info-Translation'!A41","v":"Über den Button - NEUBERECHNUNG - können Sie die komplette Berechnung löschen."}]
[]
[]
[null,null,null,{"$f":"'Info-Translation'!A42","v":"Nach vollständiger Berechnung des Gesamtmassenträgheitsmoments mit Schwerpunktkoordinaten Ihres zu schwenkenden Aufbaus, gelangen sie über den Button - Zur DRL-Berechnung - in die Modul-Berechnungsmaske, in der Sie bitte den gewünschten Schwenkwinkel und evtl. eine der Optionen ( beide gleichzeitig sind nicht möglich !) eingeben."}]
[]
[]
[]
[]
[]
[]
[]
[]
[]
[null,null,null,{"$f":"'Info-Translation'!A44","v":"Berechnungsgrundlagen für Drehlader"}]
[]
[null,null,null,{"$f":"'Info-Translation'!A45","v":"Anwendungsdaten:"},null,null,{"$f":"'Info-Translation'!A47","v":"Gesamt-Massenträgheitsmoment "},null,null,null,null,{"$f":"'Info-Translation'!A52","v":"Moduldaten:"},null,{"$f":"'Info-Translation'!A53","v":"Betriebsdruck 6/5 bar ( DRL20/DRL25 )"}]
[]
[null,null,null,{"$f":"'Info-Translation'!A46","v":"Kundenanforderungen"},null,null,{"$f":"'Info-Translation'!A48","v":"Koordinaten des Massenschwerpunkts"}]
[]
[null,null,null,null,null,null,{"$f":"'Info-Translation'!A49","v":"Schwenkwinkel"}]
[]
[]
[]
[null,null,null,{"$f":"'Info-Translation'!A59","v":"Sind alle Daten eingegeben, können von den ursprünglich aufgezeigten Modulen aus folgenden Gründen einige Typen entfallen sein:"}]
[]
[]
[null,null,null,{"$f":"'Info-Translation'!A62","v":"Massenträgheitsmoment  > 100% des jeweils zulässigen Wertes"}]
[]
[]
[null,null,null,{"$f":"'Info-Translation'!A63","v":"Gesamtmasse  > zulässiger Wert"}]
[]
[]
[null,null,null,{"$f":"'Info-Translation'!A65","v":"Mit allen verbliebenen Typen ist Ihr Anwendungsfall realisierbar."}]
[]
[]
[null,null,null,{"$f":"'Info-Translation'!A66","v":"Berechnungsergebnisse"}]
[]
[]
[null,null,null,{"$f":"'Info-Translation'!A68","v":"Auslastung Massenträgheitsmoment"}]
[]
[null,null,null,{"$f":"'Info-Translation'!A69","v":"Gesamtmasse   "}]
[]
[null,null,null,{"$f":"'Info-Translation'!A71","v":"Minimale Taktzeit"}]
[]
[null,null,null,{"$f":"'Info-Translation'!A72","v":"Maximale Zyklenzahl pro Minute"}]
[]
[]
[]
[]
[]
[]
[]
[]
[null,null,null,{"$f":"'Info-Translation'!A74","v":"ACHTUNG:"},null,{"$f":"'Info-Translation'!A75","v":"Die berechneten Werte dürfen nicht über- bzw. unterschritten werden !"}]
[]
[null,null,null,null,null,{"$f":"'Info-Translation'!A76","v":"Wegen der vielfältigen Gestaltungsmöglichkeiten sind in den Taktzeiten und Zykluszahlen keine Ansteuerungs- und Ventilschaltzeiten berücksichtigt. Je nach Aufbau und Art der verwendeten Steuerungen und Ventile sind Ansteuerungs- und Schaltzeiten von 0,05 sek. pro Bewegung realisierbar. Diese sind zu den berechneten Zeiten zu addieren."}]
[]
[]
[]
[null,null,null,null,null,{"$f":"'Info-Translation'!A77","v":"Keine harten Schläge durch die bewegten Massen !"}]
[]
[null,null,null,null,null,{"$f":"'Info-Translation'!A78","v":"Die bewegten Massen dürfen beim Aufprall auf den Stoßdämpfer und in den Endlagen keine Schläge verursachen. Dies ist durch entsprechende Hubeinstellung der Stoßdämpfer in den Anschlaghülsen sicherzustellen."}]
[]
[]
[]
[]
[]
[]
[null,null,null,{"$f":"'Info-Translation'!A16","v":"Pick&Place-Unit PPU-P"}]
[]
[]
[]
[null,null,null,{"$f":"'Info-Translation'!A115","v":"Zur Berechnung von Pick&Place-Einheiten ist - VORHER - die zu bewegende Masse und deren Schwerpunkt zu berechnen !"}]
[]
[]
[null,null,null,{"$f":"'Info-Translation'!A125","v":"Aus nachfolgend aufgezeigten Einzelkörpern ist es möglich, durch Zusammensetzen, Aufsummieren oder Subtrahieren die Gesamtschwerpunktskoordinaten eines spezifischen Aufbaus zu ermitteln."}]
[]
[]
[]
[]
[]
[]
[]
[]
[]
[]
[]
[]
[]
[null,null,null,{"$f":"'Info-Translation'!A126","v":"Direkte Eingabe von m"},null,null,null,{"$f":"'Info-Translation'!A26","v":"Quader"},null,null,{"$f":"'Info-Translation'!A27","v":"Scheibe"},null,null,{"$f":"'Info-Translation'!A28","v":"Welle längs"},null,null,{"$f":"'Info-Translation'!A29","v":"Welle quer"},null,null,{"$f":"'Info-Translation'!A31","v":"Greifmodule"}]
[]
[]
[]
[]
[null,null,null,{"$f":"'Info-Translation'!A128","v":"Einzelkörper-Massenwerte"}]
[]
[null,null,null,{"$f":"'Info-Translation'!A129","v":"Nach Auswahl des gewünschten Körpers und Eingabe der Körperdaten sind die Koordinaten des Massenschwerpunktes dieses Körpers zum Ausleger zu bestimmen."}]
[]
[]
[]
[null,null,null,{"$f":"'Info-Translation'!A130","v":"Nach vollständiger Eingabe aller Daten müssen die Werte zur Berechnung der Gesamtmasse und des Gesamtmassen-Schwerpunkts in die Liste addiert oder subtrahiert werden."}]
[]
[]
[]
[]
[]
[null,null,null,{"$f":"'Info-Translation'!A131","v":"Gesamtmasse / Schwerpunkt"}]
[]
[null,null,null,{"$f":"'Info-Translation'!A132","v":"Durch die Möglichkeit der Aufsummierung einzelner Körper werden die Gesamtmasse sowie die Koordinaten des Gesamtmassenschwerpunkts unterschiedlichster Aufbauten berechnet. Diese sind dann die Grundlage zur Berechnung einer geeigneten Pick&Place-Einheit."}]
[]
[]
[]
[null,null,null,null,{"$f":"'Info-Translation'!A39","v":"Alle in die Liste übernommenen Einzelkörperwerte können zeilenweise gelöscht werden."}]
[]
[null,null,null,null,{"$f":"'Info-Translation'!A133","v":"Sind in die letzte Zeile der Liste bereits Einzelkörperwerte übernommen worden und Sie wollen weitere Einzelkörper berechnen und in die Liste übernehmen, erhalten Sie eine Meldung die Sie mit - JA - bestätigen. Die bisher berechnete Gesamtmasse mit Schwerpunktskoorinaten  werden dann in die erste Zeile der Liste übernommen. Sie können nun weitere Einzelkörper berechnen und in die Liste übernehmen."}]
[]
[]
[]
[]
[null,null,null,null,{"$f":"'Info-Translation'!A41","v":"Über den Button - NEUBERECHNUNG - können Sie die komplette Berechnung löschen."}]
[]
[]
[null,null,null,{"$f":"'Info-Translation'!A127","v":"Nach vollständiger Berechnung der Gesamtmasse mit Schwerpunktkoordinaten des Aufbaus, gelangen sie über den Button - Zur PPU-P-Berechnung - in die Modul-Berechnungsmaske."}]
[]
[]
[]
[]
[]
[]
[null,null,null,{"$f":"'Info-Translation'!A118","v":"Berechnungsgrundlagen für Pick&Place-Einheiten"}]
[]
[null,null,null,{"$f":"'Info-Translation'!A45","v":"Anwendungsdaten:"},null,null,{"$f":"'Info-Translation'!A134","v":"Gesamtmasse"},null,null,null,null,{"$f":"'Info-Translation'!A52","v":"Moduldaten:"},null,{"$f":"'Info-Translation'!A139","v":"Betriebsdruck 5 bar "}]
[]
[null,null,null,{"$f":"'Info-Translation'!A46","v":"Kundenanforderungen"},null,null,{"$f":"'Info-Translation'!A48","v":"Koordinaten des Massenschwerpunkts"}]
[]
[]
[]
[]
[null,null,null,{"$f":"'Info-Translation'!A59","v":"Sind alle Daten eingegeben, können von den ursprünglich aufgezeigten Modulen aus folgenden Gründen einige Typen entfallen sein:"}]
[]
[]
[]
[null,null,null,{"$f":"'Info-Translation'!A63","v":"Gesamtmasse  > zulässiger Wert"}]
[]
[]
[null,null,null,{"$f":"'Info-Translation'!A135","v":"Schwerpunktskoordinate  liegt außerhalb des zulässigen Bereichs"}]
[]
[]
[]
[null,null,null,{"$f":"'Info-Translation'!A65","v":"Mit allen verbliebenen Typen ist Ihr Anwendungsfall realisierbar."}]
[]
[]
[]
[null,null,null,{"$f":"'Info-Translation'!A66","v":"Berechnungsergebnisse"}]
[]
[]
[null,null,null,{"$f":"'Info-Translation'!A69","v":"Gesamtmasse   "}]
[]
[null,null,null,{"$f":"'Info-Translation'!A136","v":"Schwerpunktskoordinate in X-Richtung"}]
[]
[null,null,null,{"$f":"'Info-Translation'!A137","v":"Schwerpunktskoordinate in Y-Richtung"}]
[]
[null,null,null,{"$f":"'Info-Translation'!A138","v":"Schwerpunktskoordinate in Z-Richtung"}]
[]
[null,null,null,{"$f":"'Info-Translation'!A71","v":"Minimale Taktzeit"}]
[]
[null,null,null,{"$f":"'Info-Translation'!A72","v":"Maximale Zyklenzahl pro Minute"}]
[]
[]
[]
[]
[null,null,null,{"$f":"'Info-Translation'!A74","v":"ACHTUNG:"},null,{"$f":"'Info-Translation'!A75","v":"Die berechneten Werte dürfen nicht über- bzw. unterschritten werden !"}]
[]
[null,null,null,null,null,{"$f":"'Info-Translation'!A76","v":"Wegen der vielfältigen Gestaltungsmöglichkeiten sind in den Taktzeiten und Zykluszahlen keine Ansteuerungs- und Ventilschaltzeiten berücksichtigt. Je nach Aufbau und Art der verwendeten Steuerungen und Ventile sind Ansteuerungs- und Schaltzeiten von 0,05 sek. pro Bewegung realisierbar. Diese sind zu den berechneten Zeiten zu addieren."}]
[]
[]
[]
[null,null,null,null,null,{"$f":"'Info-Translation'!A77","v":"Keine harten Schläge durch die bewegten Massen !"}]
[]
[null,null,null,null,null,{"$f":"'Info-Translation'!A123","v":"Die bewegten Massen dürfen beim Aufprall auf den Stoßdämpfer und in den Endlagen keine Schläge verursachen. Dies ist durch entsprechende Hubeinstellung der Stoßdämpfer sicherzustellen."}]
[]
[]
[]
[]
[]
[]
[]
[]
[]
[]
[null,null,null,{"$f":"'Info-Translation'!A11","v":"Allgemeine Infos"}]
[]
[]
[]
[]
[null,null,null,{"$f":"'Info-Translation'!A107","v":"Haftung"}]
[]
[null,null,null,{"$f":"'Info-Translation'!A108","v":"Alle Angaben und technische Werte wurden nach bestem Wissen und Gewissen zusammengestellt. Eine Rechtsverbindlichkeit besteht nur dann, wenn Ihnen diese Daten, bezogen auf Ihren Anwendungsfall, schriftlich durch uns direkt zugesichert wurden. Änderungen und Abweichungen in der Ausführung eines in Auftrag gegebenen Produkts sind zulässig, insbesondere wenn sie qualitätsfördernd sind oder dem technischen Fortschritt dienen, also eine Produktverbesserung beinhalten. Sie sind aber immer so ausgelegt, daß sie den berechtigten Interessen des Verwenders zumutbar sind."}]
[]
[]
[]
[]
[]
[]
[]
[]
[]
[]
[]
[]
[]
[]
[]
[]
[]
[]
[]
[]
[]
[]
[]
[]
[]
[]
[]
[]
[]
[]
[]
[]
[]
[]
[]
[]
[]
[]
[]
[]
[]
[]
[]
[]
[]
[]
[]
[]
[]
[]
[]
[]
[]
[]
[]
[]
[]
[]
[]
[]
[]
[]
[]
[]
[]
[]
[]
[]
[]
[]
[]
[]
[]
[]
[]
[]
[]
[]
[]
[]
[]
[]
[]
[]
[]
[]
[]
[]
[]
[]
[]
[]
[]
[]
[]
[]
[]
[]
[]
[]
[]
[]
[]
[]
[]
[]
[]
[]
[]
[]
[]
[]
[]
[]
[]
[]
[]
[]
[]
[]
[]
[]
[]
[]
[]
[]
[]
[]
[]
[]
[]
[]
[]
[]
[]
[]
[]
[]
[]
[]
[]
[]
[]
[]
[]
[]
[]
[]
[]
[]
[]
[]
[]
[]
[]
[]
[]
[]
[]
[]
[]
[]
[]
[]
[]
[]
[]
[]
[]
[]
[]
[]
[]
[]
[]
[]
[]
[]
[]
[]
[]
[]
[]
[]
[]
[]
[]
[]
[]
[]
[]
[]
[]
[]
[]
[]
[]
[]
[]
[]
[]
[]
[]
[]
[]
[]
[]
[]
[]
[]
[]
[]
[]
[]
[]
[]
[]
[]
[]
[]
[]
[]
[]
[]
[]
[]
[]
[]
[]
[]
[]
[]
[]
[]
[]
[]
[]
[]
[]
[]
[]
[]
[]
[]
[]
[]
[]
[]
[]
[]
[]
[]
[]
[]
[]
[]
[]
[]
[]
[]
[]
[]
[]
[]
[]
[]
[]
[]
[]
[]
[]
[]
[]
[]
[]
[]
[]
[]
[]
[]
[]
[]
[]
[]
[]
[]
[]
[]
[]
[]
[]
[]
[]
[]
[]
[]
[]
[]
[]
[]
[]
[]
[]
[]
[]
[]
[]
[]
[]
[]
[]
[]
[]
[]
[]
[]
[]
[]
[]
[]
[]
[]
[]
[]
[]
[]
[]
[]
[]
[]
[]
[]
[]
[]
[]
[]
[]
[]
[]
[]
[]
[]
[]
[]
[]
[]
[]
[]
[]
[]
[]
[]
[]
[]
[]
[]
[]
[]
[]
[]
[]
[]
[]
[]
[]
[]
[]
[]
[]
[]
[]
[]
[]
[]
[]
[]
[]
[]
[]
[]
[]
[]
[]
[]
[]
[]
[]
[]
[]
[]
[]
[]
[]
[]
[]
[]
[]
[]
[]
[]
[]
[]
[]
[]
[]
[]
[]
[]
[]
[]
[]
[]
[]
[]
[]
[]
[]
[]
[]
[]
[]
[]
[]
[]
[]
[]
[]
[]
[]
[]
[]
[]
[]
[]
[]
[]
[]
[]
[]
[]
[]
[]
[]
[]
[]
[]
[]
[]
[]
[]
[]
[]
[]
[]
[]
[]
[]
[]
[]
[]
[]
[]
[]
[]
[]
[]
[]
[]
[]
[]
[]
[]
[]
[]
[]
[]
[]
[]
[]
[]
[]
[]
[]
[]
[]
[]
[]
[]
[]
[]
[]
[]
[]
[]
[]
[]
[]
[]
[]
[]
[]
[]
[]
[]
[]
[]
[]
[]
[]
[]
[]
[]
[]
[]
[]
[]
[]
[]
[]
[]
[]
[]
[]
[]
[]
[]
[]
[]
[]
[]
[]
[]
[]
[]
[]
[]
[]
[]
[]
[]
[]
[]
[]
[]
[]
[]
[]
[]
[]
[]
[]
[]
[]
[]
[]
[]
[]
[]
[]
[]
[]
[]
[]
[]
[]
[]
[]
[]
[]
[]
[]
[]
[]
[]
[]
[]
[]
[]
[]
[]
[]
[]
[]
[]
[]
[]
[]
[]
[]
[]
[]
[]
[]
[]
[]
[]
[]
[]
[]
[]
[]
[]
[]
[]
[]
[]
[]
[]
[]
[]
[]
[]
[]
[]
[]
[]
[]
[]
[]
[]
[]
[]
[]
[]
[]
[]
[]
[]
[]
[]
[]
[]
[]
[]
[]
[]
[]
[]
[]
[]
[]
[]
[]
[]
[]
[]
[]
[]
[]
[]
[]
[]
[]
[]
[]
[]
[]
[]
[]
[]
[]
[]
[]
[]
[]
[]
[]
[]
[]
[]
[]
[]
[]
[]
[]
[]
[]
[]
[]
[]
[]
[]
[]
[]
[]
[]
[]
[]
[]
[]
[]
[]
[]
[]
[]
[]
[]
[]
[]
[]
[]
[]
[]
[]
[]
[]
[]
[]
[]
[]
[]
[]
[]
[]
[]
[]
[]
[]
[]
[]
[]
[]
[]
[]
[]
[]
[]
[]
[]
[]
[]
[]
[]
[]
[]
[]
[]
[]
[]
[]
[]
[]
[]
[]
[]
[]
[]
[]
[]
[]
[]
[]
[]
[]
[]
[]
[]
[]
[]
[]
[]
[]
[]
[]
[]
[]
[]
[]
[]
[]
[]
[]
[]
[]
[]
[]
[]
[]
[]
[]
[]
[]
[]
[]
[]
[]
[]
[]
[]
[]
[]
[]
[]
[]
[]
[]
[]
[]
[]
[]
[]
[]
[]
[]
[]
[]
[]
[]
[]
[]
[]
[]
[]
[]
[]
[]
[]
[]
[]
[]
[]
[]
[]
[]
[]
[]
[]
[]
[]
[]
[]
[]
[]
[]
[]
[]
[]
[]
[]
[]
[]
[]
[]
[]
[]
[]
[]
[]
[]
[]
[]
[]
[]
[]
[]
[]
[]
[]
[]
[]
[]
[]
[]
[]
[]
[]
[]
[]
[]
[]
[]
[]
[]
[]
[]
[]
[]
[]
[]
[]
[]
[]
[]
[]
[]
[]
[]
[]
[]
[]
[]
[]
[]
[]
[]
[]
[]
[]
[]
[]
[]
[]
[]
[]
[]
[]
[]
[]
[]
[]
[]
[]
[]
[]
[]
[]
[]
[]
[]
[]
[]
[]
[]
[]
[]
[]
[]
[]
[]
[]
[]
[]
[]
[]
[]
[]
[]
[]
[]
[]
[]
[]
[]
[]
[]
[]
[]
[]
[]
[]
[]
[]
[]
[]
[]
[]
[]
[]
[]
[]
[]
[]
[]
[]
[]
[]
[]
[]
[]
[]
[]
[]
[]
[]
[]
[]
[]
[]
[]
[]
[]
[]
[]
[]
[]
[]
[]
[]
[]
[]
[]
[]
[]
[]
[]
[]
[]
[]
[]
[]
[]
[]
[]
[]
[]
[]
[]
[]
[]
[]
[]
[]
[]
[]
[]
[]
[]
[]
[]
[]
[]
[]
[]
[]
[]
[]
[]
[]
[]
[]
[]
[]
[]
[]
[]
[]
[]
[]
[]
[]
[]
[]
[]
[]
[]
[]
[]
[]
[]
[]
[]
[]
[]
[]
[]
[]
[]
[]
[]
[]
[]
[]
[]
[]
[]
[]
[]
[]
[]
[]
[]
[]
[]
[]
[]
[]
[]
[]
[]
[]
[]
[]
[]
[]
[]
[]
[]
[]
[]
[]
[]
[]
[]
[]
[]
[]
[]
[]
[]
[]
[]
[]
[]
[]
[]
[]
[]
[]
[]
[]
[]
[]
[]
[]
[]
[]
[]
[]
[]
[]
[]
[]
[]
[]
[]
[]
[]
[]
[]
[]
[]
[]
[]
[]
[]
[]
[]
[]
[]
[]
[]
[]
[]
[]
[]
[]
[]
[]
[]
[]
[]
[]
[]
[]
[]
[]
[]
[]
[]
[]
[]
[]
[]
[]
[]
[]
[]
[]
[]
[]
[]
[]
[]
[]
[]
[]
[]
[]
[]
[]
[]
[]
[]
[]
[]
[]
[]
[]
[]
[]
[]
[]
[]
[]
[]
[]
[]
[]
[]
[]
[]
[]
[]
[]
[]
[]
[]
[]
[]
[]
[]
[]
[]
[]
[]
[]
[]
[]
[]
[]
[]
[]
[]
[]
[]
[]
[]
[]
[]
[]
[]
[]
[]
[]
[]
[]
[]
[]
[]
[]
[]
[]
[]
[]
[]
[]
[]
[]
[]
[]
[]
[]
[]
[]
[]
[]
[]
[]
[]
[]
[]
[]
[]
[]
[]
[]
[]
[]
[]
[]
[]
[]
[]
[]
[]
[]
[]
[]
[]
[]
[]
[]
[]
[]
[]
[]
[]
[]
[]
[]
[]
[]
[]
[]
[]
[]
[]
[]
[]
[]
[]
[]
[]
[]
[]
[]
[]
[]
[]
[]
[]
[]
[]
[]
[]
[]
[]
[]
[]
[]
[]
[]
[]
[]
[]
[]
[]
[]
[]
[]
[]
[]
[]
[]
[]
[]
[]
[]
[]
[]
[]
[]
[]
[]
[]
[]
[]
[]
[]
[]
[]
[]
[]
[]
[]
[]
[]
[]
[]
[]
[]
[]
[]
[]
[]
[]
[]
[]
[]
[]
[]
[]
[]
[]
[]
[]
[]
[]
[]
[]
[]
[]
[]
[]
[]
[]
[]
[]
[]
[]
[]
[]
[]
[]
[]
[]
[]
[]
[]
[]
[]
[]
[]
[]
[]
[]
[]
[]
[]
[]
[]
[]
[]
[]
[]
[]
[]
[]
[]
[]
[]
[]
[]
[]
[]
[]
[]
[]
[]
[]
[]
[]
[]
[]
[]
[]
[]
[]
[]
[]
[]
[]
[]
[]
[]
[]
[]
[]
[]
[]
[]
[]
[]
[]
[]
[]
[]
[]
[]
[]
[]
[]
[]
[]
[]
[]
[]
[]
[]
[]
[]
[]
[]
[]
[]
[]
[]
[]
[]
[]
[]
[]
[]
[]
[]
[]
[]
[]
[]
[]
[]
[]
[]
[]
[]
[]
[]
[]
[]
[]
[]
[]
[]
[]
[]
[]
[]
[]
[]
[]
[]
[]
[]
[]
[]
[]
[]
[]
[]
[]
[]
[]
[]
[]
[]
[]
[]
[]
[]
[]
[]
[]
[]
[]
[]
[]
[]
[]
[]
[]
[]
[]
[]
[]
[]
[]
[]
[]
[]
[]
[]
[]
[]
[]
[]
[]
[]
[]
[]
[]
[]
[]
[]
[]
[]
[]
[]
[]
[]
[]
[]
[]
[]
[]
[]
[]
[]
[]
[]
[]
[]
[]
[]
[]
[]
[]
[]
[]
[]
[]
[]
[]
[]
[]
[]
[]
[]
[]
[]
[]
[]
[]
[]
[]
[]
[]
[]
[]
[]
[]
[]
[]
[]
[]
[]
[]
[]
[]
[]
[]
[]
[]
[]
[]
[]
[]
[]
[]
[]
[]
[]
[]
[]
[]
[]
[]
[]
[]
[]
[]
[]
[]
[]
[]
[]
[]
[]
[]
[]
[]
[]
[]
[]
[]
[]
[]
[]
[]
[]
[]
[]
[]
[]
[]
[]
[]
[]
[]
[]
[]
[]
[]
[]
[]
[]
[]
[]
[]
[]
[]
[]
[]
[]
[]
[]
[]
[]
[]
[]
[]
[]
[]
[]
[]
[]
[]
[]
[]
[]
[]
[]
[]
[]
[]
[]
[]
[]
[]
[]
[]
[]
[]
[]
[]
[]
[]
[]
[]
[]
[]
[]
[]
[]
[]
[]
[]
[]
[]
[]
[]
[]
[]
[]
[]
[]
[]
[]
[]
[]
[]
[]
[]
[]
[]
[]
[]
[]
[]
[]
[]
[]
[]
[]
[]
[]
[]
[]
[]
[]
[]
[]
[]
[]
[]
[]
[]
[]
[]
[]
[]
[]
[]
[]
[]
[]
[]
[]
[]
[]
[]
[]
[]
[]
[]
[]
[]
[]
[]
[]
[]
[]
[]
[]
[]
[]
[]
[]
[]
[]
[]
[]
[]
[]
[]
[]
[]
[]
[]
[]
[]
[]
[]
[]
[]
[]
[]
[]
[]
[]
[]
[]
[]
[]
[]
[]
[]
[]
[]
[]
[]
[]
[]
[]
[]
[]
[]
[]
[]
[]
[]
[]
[]
[]
[]
[]
[]
[]
[]
[]
[]
[]
[]
[]
[]
[]
[]
[]
[]
[]
[]
[]
[]
[]
[]
[]
[]
[]
[]
[]
[]
[]
[]
[]
[]
[]
[]
[]
[]
[]
[]
[]
[]
[]
[]
[]
[]
[]
[]
[]
[]
[]
[]
[]
[]
[]
[]
[]
[]
[]
[]
[]
[]
[]
[]
[]
[]
[]
[]
[]
[]
[]
[]
[]
[]
[]
[]
[]
[]
[]
[]
[]
[]
[]
[]
[]
[]
[]
[]
[]
[]
[]
[]
[]
[]
[]
[]
[]
[]
[]
[]
[]
[]
[]
[]
[]
[]
[]
[]
[]
[]
[]
[]
[]
[]
[]
[]
[]
[]
[]
[]
[]
[]
[]
[]
[]
[]
[]
[]
[]
[]
[]
[]
[]
[]
[]
[]
[]
[]
[]
[]
[]
[]
[]
[]
[]
[]
[]
[]
[]
[]
[]
[]
[]
[]
[]
[]
[]
[]
[]
[]
[]
[]
[]
[]
[]
[]
[]
[]
[]
[]
[]
[]
[]
[]
[]
[]
[]
[]
[]
[]
[]
[]
[]
[]
[]
[]
[]
[]
[]
[]
[]
[]
[]
[]
[]
[]
[]
[]
[]
[]
[]
[]
[]
[]
[]
[]
[]
[]
[]
[]
[]
[]
[]
[]
[]
[]
[]
[]
[]
[]
[]
[]
[]
[]
[]
[]
[]
[]
[]
[]
[]
[]
[]
[]
[]
[]
[]
[]
[]
[]
[]
[]
[]
[]
[]
[]
[]
[]
[]
[]
[]
[]
[]
[]
[]
[]
[]
[]
[]
[]
[]
[]
[]
[]
[]
[]
[]
[]
[]
[]
[]
[]
[]
[]
[]
[]
[]
[]
[]
[]
[]
[]
[]
[]
[]
[]
[]
[]
[]
[]
[]
[]
[]
[]
[]
[]
[]
[]
[]
[]
[]
[]
[]
[]
[]
[]
[]
[]
[]
[]
[]
[]
[]
[]
[]
[]
[]
[]
[]
[]
[]
[]
[]
[]
[]
[]
[]
[]
[]
[]
[]
[]
[]
[]
[]
[]
[]
[]
[]
[]
[]
[]
[]
[]
[]
[]
[]
[]
[]
[]
[]
[]
[]
[]
[]
[]
[]
[]
[]
[]
[]
[]
[]
[]
[]
[]
[]
[]
[]
[]
[]
[]
[]
[]
[]
[]
[]
[]
[]
[]
[]
[]
[]
[]
[]
[]
[]
[]
[]
[]
[]
[]
[]
[]
[]
[]
[]
[]
[]
[]
[]
[]
[]
[]
[]
[]
[]
[]
[]
[]
[]
[]
[]
[]
[]
[]
[]
[]
[]
[]
[]
[]
[]
[]
[]
[]
[]
[]
[]
[]
[]
[]
[]
[]
[]
[]
[]
[]
[]
[]
[]
[]
[]
[]
[]
[]
[]
[]
[]
[]
[]
[]
[]
[]
[]
[]
[]
[]
[]
[]
[]
[]
[]
[]
[]
[]
[]
[]
[]
[]
[]
[]
[]
[]
[]
[]
[]
[]
[]
[]
[]
[]
[]
[]
[]
[]
[]
[]
[]
[]
[]
[]
[]
[]
[]
[]
[]
[]
[]
[]
[]
[]
[]
[]
[]
[]
[]
[]
[]
[]
[]
[]
[]
[]
[]
[]
[]
[]
[]
[]
[]
[]
[]
[]
[]
[]
[]
[]
[]
[]
[]
[]
[]
[]
[]
[]
[]
[]
[]
[]
[]
[]
[]
[]
[]
[]
[]
[]
[]
[]
[]
[]
[]
[]
[]
[]
[]
[]
[]
[]
[]
[]
[]
[]
[]
[]
[]
[]
[]
[]
[]
[]
[]
[]
[]
[]
[]
[]
[]
[]
[]
[]
[]
[]
[]
[]
[]
[]
[]
[]
[]
[]
[]
[]
[]
[]
[]
[]
[]
[]
[]
[]
[]
[]
[]
[]
[]
[]
[]
[]
[]
[]
[]
[]
[]
[]
[]
[]
[]
[]
[]
[]
[]
[]
[]
[]
[]
[]
[]
[]
[]
[]
[]
[]
[]
[]
[]
[]
[]
[]
[]
[]
[]
[]
[]
[]
[]
[]
[]
[]
[]
[]
[]
[]
[]
[]
[]
[]
[]
[]
[]
[]
[]
[]
[]
[]
[]
[]
[]
[]
[]
[]
[]
[]
[]
[]
[]
[]
[]
[]
[]
[]
[]
[]
[]
[]
[]
[]
[]
[]
[]
[]
[]
[]
[]
[]
[]
[]
[]
[]
[]
[]
[]
[]
[]
[]
[]
[]
[]
[]
[]
[]
[]
[]
[]
[]
[]
[]
[]
[]
[]
[]
[]
[]
[]
[]
[]
[]
[]
[]
[]
[]
[]
[]
[]
[]
[]
[]
[]
[]
[]
[]
[]
[]
[]
[]
[]
[]
[]
[]
[]
[]
[]
[]
[]
[]
[]
[]
[]
[]
[]
[]
[]
[]
[]
[]
[]
[]
[]
[]
[]
[]
[]
[]
[]
[]
[]
[]
[]
[]
[]
[]
[]
[]
[]
[]
[]
[]
[]
[]
[]
[]
[]
[]
[]
[]
[]
[]
[]
[]
[]
[]
[]
[]
[]
[]
[]
[]
[]
[]
[]
[]
[]
[]
[]
[]
[]
[]
[]
[]
[]
[]
[]
[]
[]
[]
[]
[]
[]
[]
[]
[]
[]
[]
[]
[]
[]
[]
[]
[]
[]
[]
[]
[]
[]
[]
[]
[]
[]
[]
[]
[]
[]
[]
[]
[]
[]
[]
[]
[]
[]
[]
[]
[]
[]
[]
[]
[]
[]
[]
[]
[]
[]
[]
[]
[]
[]
[]
[]
[]
[]
[]
[]
[]
[]
[]
[]
[]
[]
[]
[]
[]
[]
[]
[]
[]
[]
[]
[]
[]
[]
[]
[]
[]
[]
[]
[]
[]
[]
[]
[]
[]
[]
[]
[]
[]
[]
[]
[]
[]
[]
[]
[]
[]
[]
[]
[]
[]
[]
[]
[]
[]
[]
[]
[]
[]
[]
[]
[]
[]
[]
[]
[]
[]
[]
[]
[]
[]
[]
[]
[]
[]
[]
[]
[]
[]
[]
[]
[]
[]
[]
[]
[]
[]
[]
[]
[]
[]
[]
[]
[]
[]
[]
[]
[]
[]
[]
[]
[]
[]
[]
[]
[]
[]
[]
[]
[]
[]
[]
[]
[]
[]
[]
[]
[]
[]
[]
[]
[]
[]
[]
[]
[]
[]
[]
[]
[]
[]
[]
[]
[]
[]
[]
[]
[]
[]
[]
[]
[]
[]
[]
[]
[]
[]
[]
[]
[]
[]
[]
[]
[]
[]
[]
[]
[]
[]
[]
[]
[]
[]
[]
[]
[]
[]
[]
[]
[]
[]
[]
[]
[]
[]
[]
[]
[]
[]
[]
[]
[]
[]
[]
[]
[]
[]
[]
[]
[]
[]
[]
[]
[]
[]
[]
[]
[]
[]
[]
[]
[]
[]
[]
[]
[]
[]
[]
[]
[]
[]
[]
[]
[]
[]
[]
[]
[]
[]
[]
[]
[]
[]
[]
[]
[]
[]
[]
[]
[]
[]
[]
[]
[]
[]
[]
[]
[]
[]
[]
[]
[]
[]
[]
[]
[]
[]
[]
[]
[]
[]
[]
[]
[]
[]
[]
[]
[]
[]
[]
[]
[]
[]
[]
[]
[]
[]
[]
[]
[]
[]
[]
[]
[]
[]
[]
[]
[]
[]
[]
[]
[]
[]
[]
[]
[]
[]
[]
[]
[]
[]
[]
[]
[]
[]
[]
[]
[]
[]
[]
[]
[]
[]
[]
[]
[]
[]
[]
[]
[]
[]
[]
[]
[]
[]
[]
[]
[]
[]
[]
[]
[]
[]
[]
[]
[]
[]
[]
[]
[]
[]
[]
[]
[]
[]
[]
[]
[]
[]
[]
[]
[]
[]
[]
[]
[]
[]
[]
[]
[]
[]
[]
[]
[]
[]
[]
[]
[]
[]
[]
[]
[]
[]
[]
[]
[]
[]
[]
[]
[]
[]
[]
[]
[]
[]
[]
[]
[]
[]
[]
[]
[]
[]
[]
[]
[]
[]
[]
[]
[]
[]
[]
[]
[]
[]
[]
[]
[]
[]
[]
[]
[]
[]
[]
[]
[]
[]
[]
[]
[]
[]
[]
[]
[]
[]
[]
[]
[]
[]
[]
[]
[]
[]
[]
[]
[]
[]
[]
[]
[]
[]
[]
[]
[]
[]
[]
[]
[]
[]
[]
[]
[]
[]
[]
[]
[]
[]
[]
[]
[]
[]
[]
[]
[]
[]
[]
[]
[]
[]
[]
[]
[]
[]
[]
[]
[]
[]
[]
[]
[]
[]
[]
[]
[]
[]
[]
[]
[]
[]
[]
[]
[]
[]
[]
[]
[]
[]
[]
[]
[]
[]
[]
[]
[]
[]
[]
[]
[]
[]
[]
[]
[]
[]
[]
[]
[]
[]
[]
[]
[]
[]
[]
[]
[]
[]
[]
[]
[]
[]
[]
[]
[]
[]
[]
[]
[]
[]
[]
[]
[]
[]
[]
[]
[]
[]
[]
[]
[]
[]
[]
[]
[]
[]
[]
[]
[]
[]
[]
[]
[]
[]
[]
[]
[]
[]
[]
[]
[]
[]
[]
[]
[]
[]
[]
[]
[]
[]
[]
[]
[]
[]
[]
[]
[]
[]
[]
[]
[]
[]
[]
[]
[]
[]
[]
[]
[]
[]
[]
[]
[]
[]
[]
[]
[]
[]
[]
[]
[]
[]
[]
[]
[]
[]
[]
[]
[]
[]
[]
[]
[]
[]
[]
[]
[]
[]
[]
[]
[]
[]
[]
[]
[]
[]
[]
[]
[]
[]
[]
[]
[]
[]
[]
[]
[]
[]
[]
[]
[]
[]
[]
[]
[]
[]
[]
[]
[]
[]
[]
[]
[]
[]
[]
[]
[]
[]
[]
[]
[]
[]
[]
[]
[]
[]
[]
[]
[]
[]
[]
[]
[]
[]
[]
[]
[]
[]
[]
[]
[]
[]
[]
[]
[]
[]
[]
[]
[]
[]
[]
[]
[]
[]
[]
[]
[]
[]
[]
[]
[]
[]
[]
[]
[]
[]
[]
[]
[]
[]
[]
[]
[]
[]
[]
[]
[]
[]
[]
[]
[]
[]
[]
[]
[]
[]
[]
[]
[]
[]
[]
[]
[]
[]
[]
[]
[]
[]
[]
[]
[]
[]
[]
[]
[]
[]
[]
[]
[]
[]
[]
[]
[]
[]
[]
[]
[]
[]
[]
[]
[]
[]
[]
[]
[]
[]
[]
[]
[]
[]
[]
[]
[]
[]
[]
[]
[]
[]
[]
[]
[]
[]
[]
[]
[]
[]
[]
[]
[]
[]
[]
[]
[]
[]
[]
[]
[]
[]
[]
[]
[]
[]
[]
[]
[]
[]
[]
[]
[]
[]
[]
[]
[]
[]
[]
[]
[]
[]
[]
[]
[]
[]
[]
[]
[]
[]
[]
[]
[]
[]
[]
[]
[]
[]
[]
[]
[]
[]
[]
[]
[]
[]
[]
[]
[]
[]
[]
[]
[]
[]
[]
[]
[]
[]
[]
[]
[]
[]
[]
[]
[]
[]
[]
[]
[]
[]
[]
[]
[]
[]
[]
[]
[]
[]
[]
[]
[]
[]
[]
[]
[]
[]
[]
[]
[]
[]
[]
[]
[]
[]
[]
[]
[]
[]
[]
[]
[]
[]
[]
[]
[]
[]
[]
[]
[]
[]
[]
[]
[]
[]
[]
[]
[]
[]
[]
[]
[]
[]
[]
[]
[]
[]
[]
[]
[]
[]
[]
[]
[]
[]
[]
[]
[]
[]
[]
[]
[]
[]
[]
[]
[]
[]
[]
[]
[]
[]
[]
[]
[]
[]
[]
[]
[]
[]
[]
[]
[]
[]
[]
[]
[]
[]
[]
[]
[]
[]
[]
[]
[]
[]
[]
[]
[]
[]
[]
[]
[]
[]
[]
[]
[]
[]
[]
[]
[]
[]
[]
[]
[]
[]
[]
[]
[]
[]
[]
[]
[]
[]
[]
[]
[]
[]
[]
[]
[]
[]
[]
[]
[]
[]
[]
[]
[]
[]
[]
[]
[]
[]
[]
[]
[]
[]
[]
[]
[]
[]
[]
[]
[]
[]
[]
[]
[]
[]
[]
[]
[]
[]
[]
[]
[]
[]
[]
[]
[]
[]
[]
[]
[]
[]
[]
[]
[]
[]
[]
[]
[]
[]
[]
[]
[]
[]
[]
[]
[]
[]
[]
[]
[]
[]
[]
[]
[]
[]
[]
[]
[]
[]
[]
[]
[]
[]
[]
[]
[]
[]
[]
[]
[]
[]
[]
[]
[]
[]
[]
[]
[]
[]
[]
[]
[]
[]
[]
[]
[]
[]
[]
[]
[]
[]
[]
[]
[]
[]
[]
[]
[]
[]
[]
[]
[]
[]
[]
[]
[]
[]
[]
[]
[]
[]
[]
[]
[]
[]
[]
[]
[]
[]
[]
[]
[]
[]
[]
[]
[]
[]
[]
[]
[]
[]
[]
[]
[]
[]
[]
[]
[]
[]
[]
[]
[]
[]
[]
[]
[]
[]
[]
[]
[]
[]
[]
[]
[]
[]
[]
[]
[]
[]
[]
[]
[]
[]
[]
[]
[]
[]
[]
[]
[]
[]
[]
[]
[]
[]
[]
[]
[]
[]
[]
[]
[]
[]
[]
[]
[]
[]
[]
[]
[]
[]
[]
[]
[]
[]
[]
[]
[]
[]
[]
[]
[]
[]
[]
[]
[]
[]
[]
[]
[]
[]
[]
[]
[]
[]
[]
[]
[]
[]
[]
[]
[]
[]
[]
[]
[]
[]
[]
[]
[]
[]
[]
[]
[]
[]
[]
[]
[]
[]
[]
[]
[]
[]
[]
[]
[]
[]
[]
[]
[]
[]
[]
[]
[]
[]
[]
[]
[]
[]
[]
[]
[]
[]
[]
[]
[]
[]
[]
[]
[]
[]
[]
[]
[]
[]
[]
[]
[]
[]
[]
[]
[]
[]
[]
[]
[]
[]
[]
[]
[]
[]
[]
[]
[]
[]
[]
[]
[]
[]
[]
[]
[]
[]
[]
[]
[]
[]
[]
[]
[]
[]
[]
[]
[]
[]
[]
[]
[]
[]
[]
[]
[]
[]
[]
[]
[]
[]
[]
[]
[]
[]
[]
[]
[]
[]
[]
[]
[]
[]
[]
[]
[]
[]
[]
[]
[]
[]
[]
[]
[]
[]
[]
[]
[]
[]
[]
[]
[]
[]
[]
[]
[]
[]
[]
[]
[]
[]
[]
[]
[]
[]
[]
[]
[]
[]
[]
[]
[]
[]
[]
[]
[]
[]
[]
[]
[]
[]
[]
[]
[]
[]
[]
[]
[]
[]
[]
[]
[]
[]
[]
[]
[]
[]
[]
[]
[]
[]
[]
[]
[]
[]
[]
[]
[]
[]
[]
[]
[]
[]
[]
[]
[]
[]
[]
[]
[]
[]
[]
[]
[]
[]
[]
[]
[]
[]
[]
[]
[]
[]
[]
[]
[]
[]
[]
[]
[]
[]
[]
[]
[]
[]
[]
[]
[]
[]
[]
[]
[]
[]
[]
[]
[]
[]
[]
[]
[]
[]
[]
[]
[]
[]
[]
[]
[]
[]
[]
[]
[]
[]
[]
[]
[]
[]
[]
[]
[]
[]
[]
[]
[]
[]
[]
[]
[]
[]
[]
[]
[]
[]
[]
[]
[]
[]
[]
[]
[]
[]
[]
[]
[]
[]
[]
[]
[]
[]
[]
[]
[]
[]
[]
[]
[]
[]
[]
[]
[]
[]
[]
[]
[]
[]
[]
[]
[]
[]
[]
[]
[]
[]
[]
[]
[]
[]
[]
[]
[]
[]
[]
[]
[]
[]
[]
[]
[]
[]
[]
[]
[]
[]
[]
[]
[]
[]
[]
[]
[]
[]
[]
[]
[]
[]
[]
[]
[]
[]
[]
[]
[]
[]
[]
[]
[]
[]
[]
[]
[]
[]
[]
[]
[]
[]
[]
[]
[]
[]
[]
[]
[]
[]
[]
[]
[]
[]
[]
[]
[]
[]
[]
[]
[]
[]
[]
[]
[]
[]
[]
[]
[]
[]
[]
[]
[]
[]
[]
[]
[]
[]
[]
[]
[]
[]
[]
[]
[]
[]
[]
[]
[]
[]
[]
[]
[]
[]
[]
[]
[]
[]
[]
[]
[]
[]
[]
[]
[]
[]
[]
[]
[]
[]
[]
[]
[]
[]
[]
[]
[]
[]
[]
[]
[]
[]
[]
[]
[]
[]
[]
[]
[]
[]
[]
[]
[]
[]
[]
[]
[]
[]
[]
[]
[]
[]
[]
[]
[]
[]
[]
[]
[]
[]
[]
[]
[]
[]
[]
[]
[]
[]
[]
[]
[]
[]
[]
[]
[]
[]
[]
[]
[]
[]
[]
[]
[]
[]
[]
[]
[]
[]
[]
[]
[]
[]
[]
[]
[]
[]
[]
[]
[]
[]
[]
[]
[]
[]
[]
[]
[]
[]
[]
[]
[]
[]
[]
[]
[]
[]
[]
[]
[]
[]
[]
[]
[]
[]
[]
[]
[]
[]
[]
[]
[]
[]
[]
[]
[]
[]
[]
[]
[]
[]
[]
[]
[]
[]
[]
[]
[]
[]
[]
[]
[]
[]
[]
[]
[]
[]
[]
[]
[]
[]
[]
[]
[]
[]
[]
[]
[]
[]
[]
[]
[]
[]
[]
[]
[]
[]
[]
[]
[]
[]
[]
[]
[]
[]
[]
[]
[]
[]
[]
[]
[]
[]
[]
[]
[]
[]
[]
[]
[]
[]
[]
[]
[]
[]
[]
[]
[]
[]
[]
[]
[]
[]
[]
[]
[]
[]
[]
[]
[]
[]
[]
[]
[]
[]
[]
[]
[]
[]
[]
[]
[]
[]
[]
[]
[]
[]
[]
[]
[]
[]
[]
[]
[]
[]
[]
[]
[]
[]
[]
[]
[]
[]
[]
[]
[]
[]
[]
[]
[]
[]
[]
[]
[]
[]
[]
[]
[]
[]
[]
[]
[]
[]
[]
[]
[]
[]
[]
[]
[]
[]
[]
[]
[]
[]
[]
[]
[]
[]
[]
[]
[]
[]
[]
[]
[]
[]
[]
[]
[]
[]
[]
[]
[]
[]
[]
[]
[]
[]
[]
[]
[]
[]
[]
[]
[]
[]
[]
[]
[]
[]
[]
[]
[]
[]
[]
[]
[]
[]
[]
[]
[]
[]
[]
[]
[]
[]
[]
[]
[]
[]
[]
[]
[]
[]
[]
[]
[]
[]
[]
[]
[]
[]
[]
[]
[]
[]
[]
[]
[]
[]
[]
[]
[]
[]
[]
[]
[]
[]
[]
[]
[]
[]
[]
[]
[]
[]
[]
[]
[]
[]
[]
[]
[]
[]
[]
[]
[]
[]
[]
[]
[]
[]
[]
[]
[]
[]
[]
[]
[]
[]
[]
[]
[]
[]
[]
[]
[]
[]
[]
[]
[]
[]
[]
[]
[]
[]
[]
[]
[]
[]
[]
[]
[]
[]
[]
[]
[]
[]
[]
[]
[]
[]
[]
[]
[]
[]
[]
[]
[]
[]
[]
[]
[]
[]
[]
[]
[]
[]
[]
[]
[]
[]
[]
[]
[]
[]
[]
[]
[]
[]
[]
[]
[]
[]
[]
[]
[]
[]
[]
[]
[]
[]
[]
[]
[]
[]
[]
[]
[]
[]
[]
[]
[]
[]
[]
[]
[]
[]
[]
[]
[]
[]
[]
[]
[]
[]
[]
[]
[]
[]
[]
[]
[]
[]
[]
[]
[]
[]
[]
[]
[]
[]
[]
[]
[]
[]
[]
[]
[]
[]
[]
[]
[]
[]
[]
[]
[]
[]
[]
[]
[]
[]
[]
[]
[]
[]
[]
[]
[]
[]
[]
[]
[]
[]
[]
[]
[]
[]
[]
[]
[]
[]
[]
[]
[]
[]
[]
[]
[]
[]
[]
[]
[]
[]
[]
[]
[]
[]
[]
[]
[]
[]
[]
[]
[]
[]
[]
[]
[]
[]
[]
[]
[]
[]
[]
[]
[]
[]
[]
[]
[]
[]
[]
[]
[]
[]
[]
[]
[]
[]
[]
[]
[]
[]
[]
[]
[]
[]
[]
[]
[]
[]
[]
[]
[]
[]
[]
[]
[]
[]
[]
[]
[]
[]
[]
[]
[]
[]
[]
[]
[]
[]
[]
[]
[]
[]
[]
[]
[]
[]
[]
[]
[]
[]
[]
[]
[]
[]
[]
[]
[]
[]
[]
[]
[]
[]
[]
[]
[]
[]
[]
[]
[]
[]
[]
[]
[]
[]
[]
[]
[]
[]
[]
[]
[]
[]
[]
[]
[]
[]
[]
[]
[]
[]
[]
[]
[]
[]
[]
[]
[]
[]
[]
[]
[]
[]
[]
[]
[]
[]
[]
[]
[]
[]
[]
[]
[]
[]
[]
[]
[]
[]
[]
[]
[]
[]
[]
[]
[]
[]
[]
[]
[]
[]
[]
[]
[]
[]
[]
[]
[]
[]
[]
[]
[]
[]
[]
[]
[]
[]
[]
[]
[]
[]
[]
[]
[]
[]
[]
[]
[]
[]
[]
[]
[]
[]
[]
[]
[]
[]
[]
[]
[]
[]
[]
[]
[]
[]
[]
[]
[]
[]
[]
[]
[]
[]
[]
[]
[]
[]
[]
[]
[]
[]
[]
[]
[]
[]
[]
[]
[]
[]
[]
[]
[]
[]
[]
[]
[]
[]
[]
[]
[]
[]
[]
[]
[]
[]
[]
[]
[]
[]
[]
[]
[]
[]
[]
[]
[]
[]
[]
[]
[]
[]
[]
[]
[]
[]
[]
[]
[]
[]
[]
[]
[]
[]
[]
[]
[]
[]
[]
[]
[]
[]
[]
[]
[]
[]
[]
[]
[]
[]
[]
[]
[]
[]
[]
[]
[]
[]
[]
[]
[]
[]
[]
[]
[]
[]
[]
[]
[]
[]
[]
[]
[]
[]
[]
[]
[]
[]
[]
[]
[]
[]
[]
[]
[]
[]
[]
[]
[]
[]
[]
[]
[]
[]
[]
[]
[]
[]
[]
[]
[]
[]
[]
[]
[]
[]
[]
[]
[]
[]
[]
[]
[]
[]
[]
[]
[]
[]
[]
[]
[]
[]
[]
[]
[]
[]
[]
[]
[]
[]
[]
[]
[]
[]
[]
[]
[]
[]
[]
[]
[]
[]
[]
[]
[]
[]
[]
[]
[]
[]
[]
[]
[]
[]
[]
[]
[]
[]
[]
[]
[]
[]
[]
[]
[]
[]
[]
[]
[]
[]
[]
[]
[]
[]
[]
[]
[]
[]
[]
[]
[]
[]
[]
[]
[]
[]
[]
[]
[]
[]
[]
[]
[]
[]
[]
[]
[]
[]
[]
[]
[]
[]
[]
[]
[]
[]
[]
[]
[]
[]
[]
[]
[]
[]
[]
[]
[]
[]
[]
[]
[]
[]
[]
[]
[]
[]
[]
[]
[]
[]
[]
[]
[]
[]
[]
[]
[]
[]
[]
[]
[]
[]
[]
[]
[]
[]
[]
[]
[]
[]
[]
[]
[]
[]
[]
[]
[]
[]
[]
[]
[]
[]
[]
[]
[]
[]
[]
[]
[]
[]
[]
[]
[]
[]
[]
[]
[]
[]
[]
[]
[]
[]
[]
[]
[]
[]
[]
[]
[]
[]
[]
[]
[]
[]
[]
[]
[]
[]
[]
[]
[]
[]
[]
[]
[]
[]
[]
[]
[]
[]
[]
[]
[]
[]
[]
[]
[]
[]
[]
[]
[]
[]
[]
[]
[]
[]
[]
[]
[]
[]
[]
[]
[]
[]
[]
[]
[]
[]
[]
[]
[]
[]
[]
[]
[]
[]
[]
[]
[]
[]
[]
[]
[]
[]
[]
[]
[]
[]
[]
[]
[]
[]
[]
[]
[]
[]
[]
[]
[]
[]
[]
[]
[]
[]
[]
[]
[]
[]
[]
[]
[]
[]
[]
[]
[]
[]
[]
[]
[]
[]
[]
[]
[]
[]
[]
[]
[]
[]
[]
[]
[]
[]
[]
[]
[]
[]
[]
[]
[]
[]
[]
[]
[]
[]
[]
[]
[]
[]
[]
[]
[]
[]
[]
[]
[]
[]
[]
[]
[]
[]
[]
[]
[]
[]
[]
[]
[]
[]
[]
[]
[]
[]
[]
[]
[]
[]
[]
[]
[]
[]
[]
[]
[]
[]
[]
[]
[]
[]
[]
[]
[]
[]
[]
[]
[]
[]
[]
[]
[]
[]
[]
[]
[]
[]
[]
[]
[]
[]
[]
[]
[]
[]
[]
[]
[]
[]
[]
[]
[]
[]
[]
[]
[]
[]
[]
[]
[]
[]
[]
[]
[]
[]
[]
[]
[]
[]
[]
[]
[]
[]
[]
[]
[]
[]
[]
[]
[]
[]
[]
[]
[]
[]
[]
[]
[]
[]
[]
[]
[]
[]
[]
[]
[]
[]
[]
[]
[]
[]
[]
[]
[]
[]
[]
[]
[]
[]
[]
[]
[]
[]
[]
[]
[]
[]
[]
[]
[]
[]
[]
[]
[]
[]
[]
[]
[]
[]
[]
[]
[]
[]
[]
[]
[]
[]
[]
[]
[]
[]
[]
[]
[]
[]
[]
[]
[]
[]
[]
[]
[]
[]
[]
[]
[]
[]
[]
[]
[]
[]
[]
[]
[]
[]
[]
[]
[]
[]
[]
[]
[]
[]
[]
[]
[]
[]
[]
[]
[]
[]
[]
[]
[]
[]
[]
[]
[]
[]
[]
[]
[]
[]
[]
[]
[]
[]
[]
[]
[]
[]
[]
[]
[]
[]
[]
[]
[]
[]
[]
[]
[]
[]
[]
[]
[]
[]
[]
[]
[]
[]
[]
[]
[]
[]
[]
[]
[]
[]
[]
[]
[]
[]
[]
[]
[]
[]
[]
[]
[]
[]
[]
[]
[]
[]
[]
[]
[]
[]
[]
[]
[]
[]
[]
[]
[]
[]
[]
[]
[]
[]
[]
[]
[]
[]
[]
[]
[]
[]
[]
[]
[]
[]
[]
[]
[]
[]
[]
[]
[]
[]
[]
[]
[]
[]
[]
[]
[]
[]
[]
[]
[]
[]
[]
[]
[]
[]
[]
[]
[]
[]
[]
[]
[]
[]
[]
[]
[]
[]
[]
[]
[]
[]
[]
[]
[]
[]
[]
[]
[]
[]
[]
[]
[]
[]
[]
[]
[]
[]
[]
[]
[]
[]
[]
[]
[]
[]
[]
[]
[]
[]
[]
[]
[]
[]
[]
[]
[]
[]
[]
[]
[]
[]
[]
[]
[]
[]
[]
[]
[]
[]
[]
[]
[]
[]
[]
[]
[]
[]
[]
[]
[]
[]
[]
[]
[]
[]
[]
[]
[]
[]
[]
[]
[]
[]
[]
[]
[]
[]
[]
[]
[]
[]
[]
[]
[]
[]
[]
[]
[]
[]
[]
[]
[]
[]
[]
[]
[]
[]
[]
[]
[]
[]
[]
[]
[]
[]
[]
[]
[]
[]
[]
[]
[]
[]
[]
[]
[]
[]
[]
[]
[]
[]
[]
[]
[]
[]
[]
[]
[]
[]
[]
[]
[]
[]
[]
[]
[]
[]
[]
[]
[]
[]
[]
[]
[]
[]
[]
[]
[]
[]
[]
[]
[]
[]
[]
[]
[]
[]
[]
[]
[]
[]
[]
[]
[]
[]
[]
[]
[]
[]
[]
[]
[]
[]
[]
[]
[]
[]
[]
[]
[]
[]
[]
[]
[]
[]
[]
[]
[]
[]
[]
[]
[]
[]
[]
[]
[]
[]
[]
[]
[]
[]
[]
[]
[]
[]
[]
[]
[]
[]
[]
[]
[]
[]
[]
[]
[]
[]
[]
[]
[]
[]
[]
[]
[]
[]
[]
[]
[]
[]
[]
[]
[]
[]
[]
[]
[]
[]
[]
[]
[]
[]
[]
[]
[]
[]
[]
[]
[]
[]
[]
[]
[]
[]
[]
[]
[]
[]
[]
[]
[]
[]
[]
[]
[]
[]
[]
[]
[]
[]
[]
[]
[]
[]
[]
[]
[]
[]
[]
[]
[]
[]
[]
[]
[]
[]
[]
[]
[]
[]
[]
[]
[]
[]
[]
[]
[]
[]
[]
[]
[]
[]
[]
[]
[]
[]
[]
[]
[]
[]
[]
[]
[]
[]
[]
[]
[]
[]
[]
[]
[]
[]
[]
[]
[]
[]
[]
[]
[]
[]
[]
[]
[]
[]
[]
[]
[]
[]
[]
[]
[]
[]
[]
[]
[]
[]
[]
[]
[]
[]
[]
[]
[]
[]
[]
[]
[]
[]
[]
[]
[]
[]
[]
[]
[]
[]
[]
[]
[]
[]
[]
[]
[]
[]
[]
[]
[]
[]
[]
[]
[]
[]
[]
[]
[]
[]
[]
[]
[]
[]
[]
[]
[]
[]
[]
[]
[]
[]
[]
[]
[]
[]
[]
[]
[]
[]
[]
[]
[]
[]
[]
[]
[]
[]
[]
[]
[]
[]
[]
[]
[]
[]
[]
[]
[]
[]
[]
[]
[]
[]
[]
[]
[]
[]
[]
[]
[]
[]
[]
[]
[]
[]
[]
[]
[]
[]
[]
[]
[]
[]
[]
[]
[]
[]
[]
[]
[]
[]
[]
[]
[]
[]
[]
[]
[]
[]
[]
[]
[]
[]
[]
[]
[]
[]
[]
[]
[]
[]
[]
[]
[]
[]
[]
[]
[]
[]
[]
[]
[]
[]
[]
[]
[]
[]
[]
[]
[]
[]
[]
[]
[]
[]
[]
[]
[]
[]
[]
[]
[]
[]
[]
[]
[]
[]
[]
[]
[]
[]
[]
[]
[]
[]
[]
[]
[]
[]
[]
[]
[]
[]
[]
[]
[]
[]
[]
[]
[]
[]
[]
[]
[]
[]
[]
[]
[]
[]
[]
[]
[]
[]
[]
[]
[]
[]
[]
[]
[]
[]
[]
[]
[]
[]
[]
[]
[]
[]
[]
[]
[]
[]
[]
[]
[]
[]
[]
[]
[]
[]
[]
[]
[]
[]
[]
[]
[]
[]
[]
[]
[]
[]
[]
[]
[]
[]
[]
[]
[]
[]
[]
[]
[]
[]
[]
[]
[]
[]
[]
[]
[]
[]
[]
[]
[]
[]
[]
[]
[]
[]
[]
[]
[]
[]
[]
[]
[]
[]
[]
[]
[]
[]
[]
[]
[]
[]
[]
[]
[]
[]
[]
[]
[]
[]
[]
[]
[]
[]
[]
[]
[]
[]
[]
[]
[]
[]
[]
[]
[]
[]
[]
[]
[]
[]
[]
[]
[]
[]
[]
[]
[]
[]
[]
[]
[]
[]
[]
[]
[]
[]
[]
[]
[]
[]
[]
[]
[]
[]
[]
[]
[]
[]
[]
[]
[]
[]
[]
[]
[]
[]
[]
[]
[]
[]
[]
[]
[]
[]
[]
[]
[]
[]
[]
[]
[]
[]
[]
[]
[]
[]
[]
[]
[]
[]
[]
[]
[]
[]
[]
[]
[]
[]
[]
[]
[]
[]
[]
[]
[]
[]
[]
[]
[]
[]
[]
[]
[]
[]
[]
[]
[]
[]
[]
[]
[]
[]
[]
[]
[]
[]
[]
[]
[]
[]
[]
[]
[]
[]
[]
[]
[]
[]
[]
[]
[]
[]
[]
[]
[]
[]
[]
[]
[]
[]
[]
[]
[]
[]
[]
[]
[]
[]
[]
[]
[]
[]
[]
[]
[]
[]
[]
[]
[]
[]
[]
[]
[]
[]
[]
[]
[]
[]
[]
[]
[]
[]
[]
[]
[]
[]
[]
[]
[]
[]
[]
[]
[]
[]
[]
[]
[]
[]
[]
[]
[]
[]
[]
[]
[]
[]
[]
[]
[]
[]
[]
[]
[]
[]
[]
[]
[]
[]
[]
[]
[]
[]
[]
[]
[]
[]
[]
[]
[]
[]
[]
[]
[]
[]
[]
[]
[]
[]
[]
[]
[]
[]
[]
[]
[]
[]
[]
[]
[]
[]
[]
[]
[]
[]
[]
[]
[]
[]
[]
[]
[]
[]
[]
[]
[]
[]
[]
[]
[]
[]
[]
[]
[]
[]
[]
[]
[]
[]
[]
[]
[]
[]
[]
[]
[]
[]
[]
[]
[]
[]
[]
[]
[]
[]
[]
[]
[]
[]
[]
[]
[]
[]
[]
[]
[]
[]
[]
[]
[]
[]
[]
[]
[]
[]
[]
[]
[]
[]
[]
[]
[]
[]
[]
[]
[]
[]
[]
[]
[]
[]
[]
[]
[]
[]
[]
[]
[]
[]
[]
[]
[]
[]
[]
[]
[]
[]
[]
[]
[]
[]
[]
[]
[]
[]
[]
[]
[]
[]
[]
[]
[]
[]
[]
[]
[]
[]
[]
[]
[]
[]
[]
[]
[]
[]
[]
[]
[]
[]
[]
[]
[]
[]
[]
[]
[]
[]
[]
[]
[]
[]
[]
[]
[]
[]
[]
[]
[]
[]
[]
[]
[]
[]
[]
[]
[]
[]
[]
[]
[]
[]
[]
[]
[]
[]
[]
[]
[]
[]
[]
[]
[]
[]
[]
[]
[]
[]
[]
[]
[]
[]
[]
[]
[]
[]
[]
[]
[]
[]
[]
[]
[]
[]
[]
[]
[]
[]
[]
[]
[]
[]
[]
[]
[]
[]
[]
[]
[]
[]
[]
[]
[]
[]
[]
[]
[]
[]
[]
[]
[]
[]
[]
[]
[]
[]
[]
[]
[]
[]
[]
[]
[]
[]
[]
[]
[]
[]
[]
[]
[]
[]
[]
[]
[]
[]
[]
[]
[]
[]
[]
[]
[]
[]
[]
[]
[]
[]
[]
[]
[]
[]
[]
[]
[]
[]
[]
[]
[]
[]
[]
[]
[]
[]
[]
[]
[]
[]
[]
[]
[]
[]
[]
[]
[]
[]
[]
[]
[]
[]
[]
[]
[]
[]
[]
[]
[]
[]
[]
[]
[]
[]
[]
[]
[]
[]
[]
[]
[]
[]
[]
[]
[]
[]
[]
[]
[]
[]
[]
[]
[]
[]
[]
[]
[]
[]
[]
[]
[]
[]
[]
[]
[]
[]
[]
[]
[]
[]
[]
[]
[]
[]
[]
[]
[]
[]
[]
[]
[]
[]
[]
[]
[]
[]
[]
[]
[]
[]
[]
[]
[]
[]
[]
[]
[]
[]
[]
[]
[]
[]
[]
[]
[]
[]
[]
[]
[]
[]
[]
[]
[]
[]
[]
[]
[]
[]
[]
[]
[]
[]
[]
[]
[]
[]
[]
[]
[]
[]
[]
[]
[]
[]
[]
[]
[]
[]
[]
[]
[]
[]
[]
[]
[]
[]
[]
[]
[]
[]
[]
[]
[]
[]
[]
[]
[]
[]
[]
[]
[]
[]
[]
[]
[]
[]
[]
[]
[]
[]
[]
[]
[]
[]
[]
[]
[]
[]
[]
[]
[]
[]
[]
[]
[]
[]
[]
[]
[]
[]
[]
[]
[]
[]
[]
[]
[]
[]
[]
[]
[]
[]
[]
[]
[]
[]
[]
[]
[]
[]
[]
[]
[]
[]
[]
[]
[]
[]
[]
[]
[]
[]
[]
[]
[]
[]
[]
[]
[]
[]
[]
[]
[]
[]
[]
[]
[]
[]
[]
[]
[]
[]
[]
[]
[]
[]
[]
[]
[]
[]
[]
[]
[]
[]
[]
[]
[]
[]
[]
[]
[]
[]
[]
[]
[]
[]
[]
[]
[]
[]
[]
[]
[]
[]
[]
[]
[]
[]
[]
[]
[]
[]
[]
[]
[]
[]
[]
[]
[]
[]
[]
[]
[]
[]
[]
[]
[]
[]
[]
[]
[]
[]
[]
[]
[]
[]
[]
[]
[]
[]
[]
[]
[]
[]
[]
[]
[]
[]
[]
[]
[]
[]
[]
[]
[]
[]
[]
[]
[]
[]
[]
[]
[]
[]
[]
[]
[]
[]
[]
[]
[]
[]
[]
[]
[]
[]
[]
[]
[]
[]
[]
[]
[]
[]
[]
[]
[]
[]
[]
[]
[]
[]
[]
[]
[]
[]
[]
[]
[]
[]
[]
[]
[]
[]
[]
[]
[]
[]
[]
[]
[]
[]
[]
[]
[]
[]
[]
[]
[]
[]
[]
[]
[]
[]
[]
[]
[]
[]
[]
[]
[]
[]
[]
[]
[]
[]
[]
[]
[]
[]
[]
[]
[]
[]
[]
[]
[]
[]
[]
[]
[]
[]
[]
[]
[]
[]
[]
[]
[]
[]
[]
[]
[]
[]
[]
[]
[]
[]
[]
[]
[]
[]
[]
[]
[]
[]
[]
[]
[]
[]
[]
[]
[]
[]
[]
[]
[]
[]
[]
[]
[]
[]
[]
[]
[]
[]
[]
[]
[]
[]
[]
[]
[]
[]
[]
[]
[]
[]
[]
[]
[]
[]
[]
[]
[]
[]
[]
[]
[]
[]
[]
[]
[]
[]
[]
[]
[]
[]
[]
[]
[]
[]
[]
[]
[]
[]
[]
[]
[]
[]
[]
[]
[]
[]
[]
[]
[]
[]
[]
[]
[]
[]
[]
[]
[]
[]
[]
[]
[]
[]
[]
[]
[]
[]
[]
[]
[]
[]
[]
[]
[]
[]
[]
[]
[]
[]
[]
[]
[]
[]
[]
[]
[]
[]
[]
[]
[]
[]
[]
[]
[]
[]
[]
[]
[]
[]
[]
[]
[]
[]
[]
[]
[]
[]
[]
[]
[]
[]
[]
[]
[]
[]
[]
[]
[]
[]
[]
[]
[]
[]
[]
[]
[]
[]
[]
[]
[]
[]
[]
[]
[]
[]
[]
[]
[]
[]
[]
[]
[]
[]
[]
[]
[]
[]
[]
[]
[]
[]
[]
[]
[]
[]
[]
[]
[]
[]
[]
[]
[]
[]
[]
[]
[]
[]
[]
[]
[]
[]
[]
[]
[]
[]
[]
[]
[]
[]
[]
[]
[]
[]
[]
[]
[]
[]
[]
[]
[]
[]
[]
[]
[]
[]
[]
[]
[]
[]
[]
[]
[]
[]
[]
[]
[]
[]
[]
[]
[]
[]
[]
[]
[]
[]
[]
[]
[]
[]
[]
[]
[]
[]
[]
[]
[]
[]
[]
[]
[]
[]
[]
[]
[]
[]
[]
[]
[]
[]
[]
[]
[]
[]
[]
[]
[]
[]
[]
[]
[]
[]
[]
[]
[]
[]
[]
[]
[]
[]
[]
[]
[]
[]
[]
[]
[]
[]
[]
[]
[]
[]
[]
[]
[]
[]
[]
[]
[]
[]
[]
[]
[]
[]
[]
[]
[]
[]
[]
[]
[]
[]
[]
[]
[]
[]
[]
[]
[]
[]
[]
[]
[]
[]
[]
[]
[]
[]
[]
[]
[]
[]
[]
[]
[]
[]
[]
[]
[]
[]
[]
[]
[]
[]
[]
[]
[]
[]
[]
[]
[]
[]
[]
[]
[]
[]
[]
[]
[]
[]
[]
[]
[]
[]
[]
[]
[]
[]
[]
[]
[]
[]
[]
[]
[]
[]
[]
[]
[]
[]
[]
[]
[]
[]
[]
[]
[]
[]
[]
[]
[]
[]
[]
[]
[]
[]
[]
[]
[]
[]
[]
[]
[]
[]
[]
[]
[]
[]
[]
[]
[]
[]
[]
[]
[]
[]
[]
[]
[]
[]
[]
[]
[]
[]
[]
[]
[]
[]
[]
[]
[]
[]
[]
[]
[]
[]
[]
[]
[]
[]
[]
[]
[]
[]
[]
[]
[]
[]
[]
[]
[]
[]
[]
[]
[]
[]
[]
[]
[]
[]
[]
[]
[]
[]
[]
[]
[]
[]
[]
[]
[]
[]
[]
[]
[]
[]
[]
[]
[]
[]
[]
[]
[]
[]
[]
[]
[]
[]
[]
[]
[]
[]
[]
[]
[]
[]
[]
[]
[]
[]
[]
[]
[]
[]
[]
[]
[]
[]
[]
[]
[]
[]
[]
[]
[]
[]
[]
[]
[]
[]
[]
[]
[]
[]
[]
[]
[]
[]
[]
[]
[]
[]
[]
[]
[]
[]
[]
[]
[]
[]
[]
[]
[]
[]
[]
[]
[]
[]
[]
[]
[]
[]
[]
[]
[]
[]
[]
[]
[]
[]
[]
[]
[]
[]
[]
[]
[]
[]
[]
[]
[]
[]
[]
[]
[]
[]
[]
[]
[]
[]
[]
[]
[]
[]
[]
[]
[]
[]
[]
[]
[]
[]
[]
[]
[]
[]
[]
[]
[]
[]
[]
[]
[]
[]
[]
[]
[]
[]
[]
[]
[]
[]
[]
[]
[]
[]
[]
[]
[]
[]
[]
[]
[]
[]
[]
[]
[]
[]
[]
[]
[]
[]
[]
[]
[]
[]
[]
[]
[]
[]
[]
[]
[]
[]
[]
[]
[]
[]
[]
[]
[]
[]
[]
[]
[]
[]
[]
[]
[]
[]
[]
[]
[]
[]
[]
[]
[]
[]
[]
[]
[]
[]
[]
[]
[]
[]
[]
[]
[]
[]
[]
[]
[]
[]
[]
[]
[]
[]
[]
[]
[]
[]
[]
[]
[]
[]
[]
[]
[]
[]
[]
[]
[]
[]
[]
[]
[]
[]
[]
[]
[]
[]
[]
[]
[]
[]
[]
[]
[]
[]
[]
[]
[]
[]
[]
[]
[]
[]
[]
[]
[]
[]
[]
[]
[]
[]
[]
[]
[]
[]
[]
[]
[]
[]
[]
[]
[]
[]
[]
[]
[]
[]
[]
[]
[]
[]
[]
[]
[]
[]
[]
[]
[]
[]
[]
[]
[]
[]
[]
[]
[]
[]
[]
[]
[]
[]
[]
[]
[]
[]
[]
[]
[]
[]
[]
[]
[]
[]
[]
[]
[]
[]
[]
[]
[]
[]
[]
[]
[]
[]
[]
[]
[]
[]
[]
[]
[]
[]
[]
[]
[]
[]
[]
[]
[]
[]
[]
[]
[]
[]
[]
[]
[]
[]
[]
[]
[]
[]
[]
[]
[]
[]
[]
[]
[]
[]
[]
[]
[]
[]
[]
[]
[]
[]
[]
[]
[]
[]
[]
[]
[]
[]
[]
[]
[]
[]
[]
[]
[]
[]
[]
[]
[]
[]
[]
[]
[]
[]
[]
[]
[]
[]
[]
[]
[]
[]
[]
[]
[]
[]
[]
[]
[]
[]
[]
[]
[]
[]
[]
[]
[]
[]
[]
[]
[]
[]
[]
[]
[]
[]
[]
[]
[]
[]
[]
[]
[]
[]
[]
[]
[]
[]
[]
[]
[]
[]
[]
[]
[]
[]
[]
[]
[]
[]
[]
[]
[]
[]
[]
[]
[]
[]
[]
[]
[]
[]
[]
[]
[]
[]
[]
[]
[]
[]
[]
[]
[]
[]
[]
[]
[]
[]
[]
[]
[]
[]
[]
[]
[]
[]
[]
[]
[]
[]
[]
[]
[]
[]
[]
[]
[]
[]
[]
[]
[]
[]
[]
[]
[]
[]
[]
[]
[]
[]
[]
[]
[]
[]
[]
[]
[]
[]
[]
[]
[]
[]
[]
[]
[]
[]
[]
[]
[]
[]
[]
[]
[]
[]
[]
[]
[]
[]
[]
[]
[]
[]
[]
[]
[]
[]
[]
[]
[]
[]
[]
[]
[]
[]
[]
[]
[]
[]
[]
[]
[]
[]
[]
[]
[]
[]
[]
[]
[]
[]
[]
[]
[]
[]
[]
[]
[]
[]
[]
[]
[]
[]
[]
[]
[]
[]
[]
[]
[]
[]
[]
[]
[]
[]
[]
[]
[]
[]
[]
[]
[]
[]
[]
[]
[]
[]
[]
[]
[]
[]
[]
[]
[]
[]
[]
[]
[]
[]
[]
[]
[]
[]
[]
[]
[]
[]
[]
[]
[]
[]
[]
[]
[]
[]
[]
[]
[]
[]
[]
[]
[]
[]
[]
[]
[]
[]
[]
[]
[]
[]
[]
[]
[]
[]
[]
[]
[]
[]
[]
[]
[]
[]
[]
[]
[]
[]
[]
[]
[]
[]
[]
[]
[]
[]
[]
[]
[]
[]
[]
[]
[]
[]
[]
[]
[]
[]
[]
[]
[]
[]
[]
[]
[]
[]
[]
[]
[]
[]
[]
[]
[]
[]
[]
[]
[]
[]
[]
[]
[]
[]
[]
[]
[]
[]
[]
[]
[]
[]
[]
[]
[]
[]
[]
[]
[]
[]
[]
[]
[]
[]
[]
[]
[]
[]
[]
[]
[]
[]
[]
[]
[]
[]
[]
[]
[]
[]
[]
[]
[]
[]
[]
[]
[]
[]
[]
[]
[]
[]
[]
[]
[]
[]
[]
[]
[]
[]
[]
[]
[]
[]
[]
[]
[]
[]
[]
[]
[]
[]
[]
[]
[]
[]
[]
[]
[]
[]
[]
[]
[]
[]
[]
[]
[]
[]
[]
[]
[]
[]
[]
[]
[]
[]
[]
[]
[]
[]
[]
[]
[]
[]
[]
[]
[]
[]
[]
[]
[]
[]
[]
[]
[]
[]
[]
[]
[]
[]
[]
[]
[]
[]
[]
[]
[]
[]
[]
[]
[]
[]
[]
[]
[]
[]
[]
[]
[]
[]
[]
[]
[]
[]
[]
[]
[]
[]
[]
[]
[]
[]
[]
[]
[]
[]
[]
[]
[]
[]
[]
[]
[]
[]
[]
[]
[]
[]
[]
[]
[]
[]
[]
[]
[]
[]
[]
[]
[]
[]
[]
[]
[]
[]
[]
[]
[]
[]
[]
[]
[]
[]
[]
[]
[]
[]
[]
[]
[]
[]
[]
[]
[]
[]
[]
[]
[]
[]
[]
[]
[]
[]
[]
[]
[]
[]
[]
[]
[]
[]
[]
[]
[]
[]
[]
[]
[]
[]
[]
[]
[]
[]
[]
[]
[]
[]
[]
[]
[]
[]
[]
[]
[]
[]
[]
[]
[]
[]
[]
[]
[]
[]
[]
[]
[]
[]
[]
[]
[]
[]
[]
[]
[]
[]
[]
[]
[]
[]
[]
[]
[]
[]
[]
[]
[]
[]
[]
[]
[]
[]
[]
[]
[]
[]
[]
[]
[]
[]
[]
[]
[]
[]
[]
[]
[]
[]
[]
[]
[]
[]
[]
[]
[]
[]
[]
[]
[]
[]
[]
[]
[]
[]
[]
[]
[]
[]
[]
[]
[]
[]
[]
[]
[]
[]
[]
[]
[]
[]
[]
[]
[]
[]
[]
[]
[]
[]
[]
[]
[]
[]
[]
[]
[]
[]
[]
[]
[]
[]
[]
[]
[]
[]
[]
[]
[]
[]
[]
[]
[]
[]
[]
[]
[]
[]
[]
[]
[]
[]
[]
[]
[]
[]
[]
[]
[]
[]
[]
[]
[]
[]
[]
[]
[]
[]
[]
[]
[]
[]
[]
[]
[]
[]
[]
[]
[]
[]
[]
[]
[]
[]
[]
[]
[]
[]
[]
[]
[]
[]
[]
[]
[]
[]
[]
[]
[]
[]
[]
[]
[]
[]
[]
[]
[]
[]
[]
[]
[]
[]
[]
[]
[]
[]
[]
[]
[]
[]
[]
[]
[]
[]
[]
[]
[]
[]
[]
[]
[]
[]
[]
[]
[]
[]
[]
[]
[]
[]
[]
[]
[]
[]
[]
[]
[]
[]
[]
[]
[]
[]
[]
[]
[]
[]
[]
[]
[]
[]
[]
[]
[]
[]
[]
[]
[]
[]
[]
[]
[]
[]
[]
[]
[]
[]
[]
[]
[]
[]
[]
[]
[]
[]
[]
[]
[]
[]
[]
[]
[]
[]
[]
[]
[]
[]
[]
[]
[]
[]
[]
[]
[]
[]
[]
[]
[]
[]
[]
[]
[]
[]
[]
[]
[]
[]
[]
[]
[]
[]
[]
[]
[]
[]
[]
[]
[]
[]
[]
[]
[]
[]
[]
[]
[]
[]
[]
[]
[]
[]
[]
[]
[]
[]
[]
[]
[]
[]
[]
[]
[]
[]
[]
[]
[]
[]
[]
[]
[]
[]
[]
[]
[]
[]
[]
[]
[]
[]
[]
[]
[]
[]
[]
[]
[]
[]
[]
[]
[]
[]
[]
[]
[]
[]
[]
[]
[]
[]
[]
[]
[]
[]
[]
[]
[]
[]
[]
[]
[]
[]
[]
[]
[]
[]
[]
[]
[]
[]
[]
[]
[]
[]
[]
[]
[]
[]
[]
[]
[]
[]
[]
[]
[]
[]
[]
[]
[]
[]
[]
[]
[]
[]
[]
[]
[]
[]
[]
[]
[]
[]
[]
[]
[]
[]
[]
[]
[]
[]
[]
[]
[]
[]
[]
[]
[]
[]
[]
[]
[]
[]
[]
[]
[]
[]
[]
[]
[]
[]
[]
[]
[]
[]
[]
[]
[]
[]
[]
[]
[]
[]
[]
[]
[]
[]
[]
[]
[]
[]
[]
[]
[]
[]
[]
[]
[]
[]
[]
[]
[]
[]
[]
[]
[]
[]
[]
[]
[]
[]
[]
[]
[]
[]
[]
[]
[]
[]
[]
[]
[]
[]
[]
[]
[]
[]
[]
[]
[]
[]
[]
[]
[]
[]
[]
[]
[]
[]
[]
[]
[]
[]
[]
[]
[]
[]
[]
[]
[]
[]
[]
[]
[]
[]
[]
[]
[]
[]
[]
[]
[]
[]
[]
[]
[]
[]
[]
[]
[]
[]
[]
[]
[]
[]
[]
[]
[]
[]
[]
[]
[]
[]
[]
[]
[]
[]
[]
[]
[]
[]
[]
[]
[]
[]
[]
[]
[]
[]
[]
[]
[]
[]
[]
[]
[]
[]
[]
[]
[]
[]
[]
[]
[]
[]
[]
[]
[]
[]
[]
[]
[]
[]
[]
[]
[]
[]
[]
[]
[]
[]
[]
[]
[]
[]
[]
[]
[]
[]
[]
[]
[]
[]
[]
[]
[]
[]
[]
[]
[]
[]
[]
[]
[]
[]
[]
[]
[]
[]
[]
[]
[]
[]
[]
[]
[]
[]
[]
[]
[]
[]
[]
[]
[]
[]
[]
[]
[]
[]
[]
[]
[]
[]
[]
[]
[]
[]
[]
[]
[]
[]
[]
[]
[]
[]
[]
[]
[]
[]
[]
[]
[]
[]
[]
[]
[]
[]
[]
[]
[]
[]
[]
[]
[]
[]
[]
[]
[]
[]
[]
[]
[]
[]
[]
[]
[]
[]
[]
[]
[]
[]
[]
[]
[]
[]
[]
[]
[]
[]
[]
[]
[]
[]
[]
[]
[]
[]
[]
[]
[]
[]
[]
[]
[]
[]
[]
[]
[]
[]
[]
[]
[]
[]
[]
[]
[]
[]
[]
[]
[]
[]
[]
[]
[]
[]
[]
[]
[]
[]
[]
[]
[]
[]
[]
[]
[]
[]
[]
[]
[]
[]
[]
[]
[]
[]
[]
[]
[]
[]
[]
[]
[]
[]
[]
[]
[]
[]
[]
[]
[]
[]
[]
[]
[]
[]
[]
[]
[]
[]
[]
[]
[]
[]
[]
[]
[]
[]
[]
[]
[]
[]
[]
[]
[]
[]
[]
[]
[]
[]
[]
[]
[]
[]
[]
[]
[]
[]
[]
[]
[]
[]
[]
[]
[]
[]
[]
[]
[]
[]
[]
[]
[]
[]
[]
[]
[]
[]
[]
[]
[]
[]
[]
[]
[]
[]
[]
[]
[]
[]
[]
[]
[]
[]
[]
[]
[]
[]
[]
[]
[]
[]
[]
[]
[]
[]
[]
[]
[]
[]
[]
[]
[]
[]
[]
[]
[]
[]
[]
[]
[]
[]
[]
[]
[]
[]
[]
[]
[]
[]
[]
[]
[]
[]
[]
[]
[]
[]
[]
[]
[]
[]
[]
[]
[]
[]
[]
[]
[]
[]
[]
[]
[]
[]
[]
[]
[]
[]
[]
[]
[]
[]
[]
[]
[]
[]
[]
[]
[]
[]
[]
[]
[]
[]
[]
[]
[]
[]
[]
[]
[]
[]
[]
[]
[]
[]
[]
[]
[]
[]
[]
[]
[]
[]
[]
[]
[]
[]
[]
[]
[]
[]
[]
[]
[]
[]
[]
[]
[]
[]
[]
[]
[]
[]
[]
[]
[]
[]
[]
[]
[]
[]
[]
[]
[]
[]
[]
[]
[]
[]
[]
[]
[]
[]
[]
[]
[]
[]
[]
[]
[]
[]
[]
[]
[]
[]
[]
[]
[]
[]
[]
[]
[]
[]
[]
[]
[]
[]
[]
[]
[]
[]
[]
[]
[]
[]
[]
[]
[]
[]
[]
[]
[]
[]
[]
[]
[]
[]
[]
[]
[]
[]
[]
[]
[]
[]
[]
[]
[]
[]
[]
[]
[]
[]
[]
[]
[]
[]
[]
[]
[]
[]
[]
[]
[]
[]
[]
[]
[]
[]
[]
[]
[]
[]
[]
[]
[]
[]
[]
[]
[]
[]
[]
[]
[]
[]
[]
[]
[]
[]
[]
[]
[]
[]
[]
[]
[]
[]
[]
[]
[]
[]
[]
[]
[]
[]
[]
[]
[]
[]
[]
[]
[]
[]
[]
[]
[]
[]
[]
[]
[]
[]
[]
[]
[]
[]
[]
[]
[]
[]
[]
[]
[]
[]
[]
[]
[]
[]
[]
[]
[]
[]
[]
[]
[]
[]
[]
[]
[]
[]
[]
[]
[]
[]
[]
[]
[]
[]
[]
[]
[]
[]
[]
[]
[]
[]
[]
[]
[]
[]
[]
[]
[]
[]
[]
[]
[]
[]
[]
[]
[]
[]
[]
[]
[]
[]
[]
[]
[]
[]
[]
[]
[]
[]
[]
[]
[]
[]
[]
[]
[]
[]
[]
[]
[]
[]
[]
[]
[]
[]
[]
[]
[]
[]
[]
[]
[]
[]
[]
[]
[]
[]
[]
[]
[]
[]
[]
[]
[]
[]
[]
[]
[]
[]
[]
[]
[]
[]
[]
[]
[]
[]
[]
[]
[]
[]
[]
[]
[]
[]
[]
[]
[]
[]
[]
[]
[]
[]
[]
[]
[]
[]
[]
[]
[]
[]
[]
[]
[]
[]
[]
[]
[]
[]
[]
[]
[]
[]
[]
[]
[]
[]
[]
[]
[]
[]
[]
[]
[]
[]
[]
[]
[]
[]
[]
[]
[]
[]
[]
[]
[]
[]
[]
[]
[]
[]
[]
[]
[]
[]
[]
[]
[]
[]
[]
[]
[]
[]
[]
[]
[]
[]
[]
[]
[]
[]
[]
[]
[]
[]
[]
[]
[]
[]
[]
[]
[]
[]
[]
[]
[]
[]
[]
[]
[]
[]
[]
[]
[]
[]
[]
[]
[]
[]
[]
[]
[]
[]
[]
[]
[]
[]
[]
[]
[]
[]
[]
[]
[]
[]
[]
[]
[]
[]
[]
[]
[]
[]
[]
[]
[]
[]
[]
[]
[]
[]
[]
[]
[]
[]
[]
[]
[]
[]
[]
[]
[]
[]
[]
[]
[]
[]
[]
[]
[]
[]
[]
[]
[]
[]
[]
[]
[]
[]
[]
[]
[]
[]
[]
[]
[]
[]
[]
[]
[]
[]
[]
[]
[]
[]
[]
[]
[]
[]
[]
[]
[]
[]
[]
[]
[]
[]
[]
[]
[]
[]
[]
[]
[]
[]
[]
[]
[]
[]
[]
[]
[]
[]
[]
[]
[]
[]
[]
[]
[]
[]
[]
[]
[]
[]
[]
[]
[]
[]
[]
[]
[]
[]
[]
[]
[]
[]
[]
[]
[]
[]
[]
[]
[]
[]
[]
[]
[]
[]
[]
[]
[]
[]
[]
[]
[]
[]
[]
[]
[]
[]
[]
[]
[]
[]
[]
[]
[]
[]
[]
[]
[]
[]
[]
[]
[]
[]
[]
[]
[]
[]
[]
[]
[]
[]
[]
[]
[]
[]
[]
[]
[]
[]
[]
[]
[]
[]
[]
[]
[]
[]
[]
[]
[]
[]
[]
[]
[]
[]
[]
[]
[]
[]
[]
[]
[]
[]
[]
[]
[]
[]
[]
[]
[]
[]
[]
[]
[]
[]
[]
[]
[]
[]
[]
[]
[]
[]
[]
[]
[]
[]
[]
[]
[]
[]
[]
[]
[]
[]
[]
[]
[]
[]
[]
[]
[]
[]
[]
[]
[]
[]
[]
[]
[]
[]
[]
[]
[]
[]
[]
[]
[]
[]
[]
[]
[]
[]
[]
[]
[]
[]
[]
[]
[]
[]
[]
[]
[]
[]
[]
[]
[]
[]
[]
[]
[]
[]
[]
[]
[]
[]
[]
[]
[]
[]
[]
[]
[]
[]
[]
[]
[]
[]
[]
[]
[]
[]
[]
[]
[]
[]
[]
[]
[]
[]
[]
[]
[]
[]
[]
[]
[]
[]
[]
[]
[]
[]
[]
[]
[]
[]
[]
[]
[]
[]
[]
[]
[]
[]
[]
[]
[]
[]
[]
[]
[]
[]
[]
[]
[]
[]
[]
[]
[]
[]
[]
[]
[]
[]
[]
[]
[]
[]
[]
[]
[]
[]
[]
[]
[]
[]
[]
[]
[]
[]
[]
[]
[]
[]
[]
[]
[]
[]
[]
[]
[]
[]
[]
[]
[]
[]
[]
[]
[]
[]
[]
[]
[]
[]
[]
[]
[]
[]
[]
[]
[]
[]
[]
[]
[]
[]
[]
[]
[]
[]
[]
[]
[]
[]
[]
[]
[]
[]
[]
[]
[]
[]
[]
[]
[]
[]
[]
[]
[]
[]
[]
[]
[]
[]
[]
[]
[]
[]
[]
[]
[]
[]
[]
[]
[]
[]
[]
[]
[]
[]
[]
[]
[]
[]
[]
[]
[]
[]
[]
[]
[]
[]
[]
[]
[]
[]
[]
[]
[]
[]
[]
[]
[]
[]
[]
[]
[]
[]
[]
[]
[]
[]
[]
[]
[]
[]
[]
[]
[]
[]
[]
[]
[]
[]
[]
[]
[]
[]
[]
[]
[]
[]
[]
[]
[]
[]
[]
[]
[]
[]
[]
[]
[]
[]
[]
[]
[]
[]
[]
[]
[]
[]
[]
[]
[]
[]
[]
[]
[]
[]
[]
[]
[]
[]
[]
[]
[]
[]
[]
[]
[]
[]
[]
[]
[]
[]
[]
[]
[]
[]
[]
[]
[]
[]
[]
[]
[]
[]
[]
[]
[]
[]
[]
[]
[]
[]
[]
[]
[]
[]
[]
[]
[]
[]
[]
[]
[]
[]
[]
[]
[]
[]
[]
[]
[]
[]
[]
[]
[]
[]
[]
[]
[]
[]
[]
[]
[]
[]
[]
[]
[]
[]
[]
[]
[]
[]
[]
[]
[]
[]
[]
[]
[]
[]
[]
[]
[]
[]
[]
[]
[]
[]
[]
[]
[]
[]
[]
[]
[]
[]
[]
[]
[]
[]
[]
[]
[]
[]
[]
[]
[]
[]
[]
[]
[]
[]
[]
[]
[]
[]
[]
[]
[]
[]
[]
[]
[]
[]
[]
[]
[]
[]
[]
[]
[]
[]
[]
[]
[]
[]
[]
[]
[]
[]
[]
[]
[]
[]
[]
[]
[]
[]
[]
[]
[]
[]
[]
[]
[]
[]
[]
[]
[]
[]
[]
[]
[]
[]
[]
[]
[]
[]
[]
[]
[]
[]
[]
[]
[]
[]
[]
[]
[]
[]
[]
[]
[]
[]
[]
[]
[]
[]
[]
[]
[]
[]
[]
[]
[]
[]
[]
[]
[]
[]
[]
[]
[]
[]
[]
[]
[]
[]
[]
[]
[]
[]
[]
[]
[]
[]
[]
[]
[]
[]
[]
[]
[]
[]
[]
[]
[]
[]
[]
[]
[]
[]
[]
[]
[]
[]
[]
[]
[]
[]
[]
[]
[]
[]
[]
[]
[]
[]
[]
[]
[]
[]
[]
[]
[]
[]
[]
[]
[]
[]
[]
[]
[]
[]
[]
[]
[]
[]
[]
[]
[]
[]
[]
[]
[]
[]
[]
[]
[]
[]
[]
[]
[]
[]
[]
[]
[]
[]
[]
[]
[]
[]
[]
[]
[]
[]
[]
[]
[]
[]
[]
[]
[]
[]
[]
[]
[]
[]
[]
[]
[]
[]
[]
[]
[]
[]
[]
[]
[]
[]
[]
[]
[]
[]
[]
[]
[]
[]
[]
[]
[]
[]
[]
[]
[]
[]
[]
[]
[]
[]
[]
[]
[]
[]
[]
[]
[]
[]
[]
[]
[]
[]
[]
[]
[]
[]
[]
[]
[]
[]
[]
[]
[]
[]
[]
[]
[]
[]
[]
[]
[]
[]
[]
[]
[]
[]
[]
[]
[]
[]
[]
[]
[]
[]
[]
[]
[]
[]
[]
[]
[]
[]
[]
[]
[]
[]
[]
[]
[]
[]
[]
[]
[]
[]
[]
[]
[]
[]
[]
[]
[]
[]
[]
[]
[]
[]
[]
[]
[]
[]
[]
[]
[]
[]
[]
[]
[]
[]
[]
[]
[]
[]
[]
[]
[]
[]
[]
[]
[]
[]
[]
[]
[]
[]
[]
[]
[]
[]
[]
[]
[]
[]
[]
[]
[]
[]
[]
[]
[]
[]
[]
[]
[]
[]
[]
[]
[]
[]
[]
[]
[]
[]
[]
[]
[]
[]
[]
[]
[]
[]
[]
[]
[]
[]
[]
[]
[]
[]
[]
[]
[]
[]
[]
[]
[]
[]
[]
[]
[]
[]
[]
[]
[]
[]
[]
[]
[]
[]
[]
[]
[]
[]
[]
[]
[]
[]
[]
[]
[]
[]
[]
[]
[]
[]
[]
[]
[]
[]
[]
[]
[]
[]
[]
[]
[]
[]
[]
[]
[]
[]
[]
[]
[]
[]
[]
[]
[]
[]
[]
[]
[]
[]
[]
[]
[]
[]
[]
[]
[]
[]
[]
[]
[]
[]
[]
[]
[]
[]
[]
[]
[]
[]
[]
[]
[]
[]
[]
[]
[]
[]
[]
[]
[]
[]
[]
[]
[]
[]
[]
[]
[]
[]
[]
[]
[]
[]
[]
[]
[]
[]
[]
[]
[]
[]
[]
[]
[]
[]
[]
[]
[]
[]
[]
[]
[]
[]
[]
[]
[]
[]
[]
[]
[]
[]
[]
[]
[]
[]
[]
[]
[]
[]
[]
[]
[]
[]
[]
[]
[]
[]
[]
[]
[]
[]
[]
[]
[]
[]
[]
[]
[]
[]
[]
[]
[]
[]
[]
[]
[]
[]
[]
[]
[]
[]
[]
[]
[]
[]
[]
[]
[]
[]
[]
[]
[]
[]
[]
[]
[]
[]
[]
[]
[]
[]
[]
[]
[]
[]
[]
[]
[]
[]
[]
[]
[]
[]
[]
[]
[]
[]
[]
[]
[]
[]
[]
[]
[]
[]
[]
[]
[]
[]
[]
[]
[]
[]
[]
[]
[]
[]
[]
[]
[]
[]
[]
[]
[]
[]
[]
[]
[]
[]
[]
[]
[]
[]
[]
[]
[]
[]
[]
[]
[]
[]
[]
[]
[]
[]
[]
[]
[]
[]
[]
[]
[]
[]
[]
[]
[]
[]
[]
[]
[]
[]
[]
[]
[]
[]
[]
[]
[]
[]
[]
[]
[]
[]
[]
[]
[]
[]
[]
[]
[]
[]
[]
[]
[]
[]
[]
[]
[]
[]
[]
[]
[]
[]
[]
[]
[]
[]
[]
[]
[]
[]
[]
[]
[]
[]
[]
[]
[]
[]
[]
[]
[]
[]
[]
[]
[]
[]
[]
[]
[]
[]
[]
[]
[]
[]
[]
[]
[]
[]
[]
[]
[]
[]
[]
[]
[]
[]
[]
[]
[]
[]
[]
[]
[]
[]
[]
[]
[]
[]
[]
[]
[]
[]
[]
[]
[null,null,null,null,null,10]

{"sheet":"Auswahl","index":2,"n_rows":3,"n_cols":1,"rows_kept":3,"cut":false,"hidden":false,"merged":[]}
[]
[{"$f":"Translation!A14","v":"Toolbox-Pick&Place - MODULARE MONTAGEAUTOMATION"}]
[{"$f":"Translation!A26","v":"Berechnung von Drehlader und Pick&Place-Unit"}]

{"sheet":"Info-Massenträgheitsmoment","index":3,"n_rows":40,"n_cols":12,"rows_kept":40,"cut":false,"hidden":false,"merged":[[39,3,42,19],[9,3,10,3],[9,11,10,11]]}
[]
[{"$f":"Translation!A14","v":"Toolbox-Pick&Place - MODULARE MONTAGEAUTOMATION"}]
[{"$f":"Translation!A37","v":"Berechnung Drehlader DRL"}]
[]
[]
[]
[]
[]
[]
[null,null,null,{"$f":"Translation!A27","v":"Beispiel 1"},null,null,null,null,null,null,null,{"$f":"Translation!A28","v":"Beispiel 2"}]
[]
[]
[]
[]
[]
[]
[]
[]
[]
[]
[]
[]
[]
[]
[]
[]
[]
[]
[]
[]
[]
[]
[]
[]
[]
[]
[]
[]
[]
[null,null,null,{"$f":"Translation!A33","v":"Vor der Berechnung des Drehladers müssen die Massenträgheitsmomente der zu schwenkenden Massen ermittelt werden."}]

{"sheet":"Massenträgheitsmoment","index":4,"n_rows":376,"n_cols":62,"rows_kept":376,"cut":false,"hidden":false,"merged":[[15,3,15,6],[237,7,239,15],[331,7,333,15],[309,7,311,15],[261,7,263,15],[285,7,287,15],[27,3,27,6],[29,8,29,9],[29,3,29,5],[30,3,30,5],[30,8,30,9],[9,3,10,20],[21,3,21,6],[18,3,18,6],[26,3,26,6],[25,3,25,6],[19,3,19,6],[20,3,20,6],[16,3,16,6],[22,3,22,6],[17,3,17,6],[12,3,12,6],[12,15,12,16],[13,3,13,6],[14,3,14,6],[23,3,23,6],[24,3,24,6],[12,17,12,18],[12,19,12,20],[163,26,163,32],[215,7,217,15],[129,7,131,15],[85,7,87,15],[107,7,109,15],[151,7,153,15],[173,7,175,15],[63,7,65,15],[57,7,57,10],[29,16,31,19],[55,7,55,10],[227,26,227,32],[249,26,249,32],[273,26,273,32],[12,21,12,22],[12,24,12,25],[375,10,382,21],[373,10,373,21],[372,10,372,21],[9,28,11,32],[369,10,370,21],[371,10,371,21],[355,7,357,15],[141,26,141,32],[297,26,297,32],[321,26,321,32],[343,26,343,32],[53,26,53,32],[97,26,97,32],[119,26,119,32],[75,26,75,32],[205,26,205,32]]}
[]
[{"$f":"Translation!A14","v":"Toolbox-Pick&Place - MODULARE MONTAGEAUTOMATION"}]
[{"$f":"Translation!A48","v":"Berechnung Massenträgheitsmoment"}]
[]
[]
[]
[]
[]
[]
[null,null,null,{"$f":"Translation!A53","v":"Gesamtmassenträgheitsmoment aus Einzelkörperberechnung"},null,null,null,null,null,null,null,null,null,null,null,null,null,null,null,null,null,null,null,null,null,null,null,null,{"$f":"Translation!A127","v":"Körperauswahl"}]
[]
[]
[null,null,null,{"$f":"Translation!A54","v":"Bezeichnung"},null,null,null,"J (kgm2)","m (kg)","X (mm)","Y (mm)","h (mm)","m x Z","m x X","m x Y",{"$f":"Translation!A55","v":"Bezeichnung 1"},null,{"$f":"Translation!A56","v":"Bezeichnung 2"},null,{"$f":"Translation!A57","v":"Bezeichnung 3"},null,{"$f":"Translation!A58","v":"Bezeichnung 4"},null,null,{"$f":"Translation!A59","v":"löschen"}]
[null,null,null,{"$f":"IF(D35=\"\",\"\",D35)","v":""},null,null,null,{"$f":"IF(H35=\"\",\"\",H35)","v":""},"","","","",{"$f":"M35","v":0},0,0,{"$f":"IF(P35=\"\",\"\",P35)","v":""},"","","","","","",""]
[null,null,null,"",null,null,null,"","","","","",0,0,0,"","","","","","","",""]
[null,null,null,"",null,null,null,"","","","","",0,0,0,"","","","","","","",""]
[null,null,null,"",null,null,null,"","","","","",0,0,0,"","","","","","","",""]
[null,null,null,"",null,null,null,"","","","","",0,0,0,"","","","","","","",""]
[null,null,null,"",null,null,null,"","","","","",0,0,0,"","","","","","","",""]
[null,null,null,"",null,null,null,"","","","","",0,0,0,"","","","","","","",""]
[null,null,null,"",null,null,null,"","","","","",0,0,0,"","","","","","","",""]
[null,null,null,"",null,null,null,"","","","","",0,0,0,"","","","","","","",""]
[null,null,null,"",null,null,null,"","","","","",0,0,0,"","","","","","","",""]
[null,null,null,"",null,null,null,"","","","","",0,0,0,"","","","","","","",""]
[null,null,null,"",null,null,null,"","","","","",0,0,0,"","","","","","","",""]
[null,null,null,"",null,null,null,"","","","","",0,0,0,"","","","","","","",""]
[null,null,null,"",null,null,null,"","","","","",0,0,0,"","","","","","","",""]
[null,null,null,"",null,null,null,"","","","","",0,0,0,"","","","","","","",""]
[]
[null,null,null,{"$f":"Translation!A60","v":"Massenträgheitsmom."},null,null,null,"J ges =",{"$f":"SUM(H14:H28)","v":0},null,"kgm2",null,{"$f":"SUM(M14:M28)","v":0},{"$f":"SUM(N14:N28)","v":0},{"$f":"SUM(O14:O28)","v":0},null,{"$f":"Translation!A62","v":"Koordinaten des Gesamtmassenschwerpunkts"},null,null,null,"Xs =",{"$f":"IF(OR(I31=0,I31<0),0,N30/I31)","v":0},"mm"]
[null,null,null,{"$f":"Translation!A61","v":"Gesamtmasse"},null,null,null,"m ges =",{"$f":"SUM(I14:I28)","v":0},null,"kg",null,null,null,null,null,null,null,null,null,"Ys =",{"$f":"IF(OR(I31=0,I31<0),0,O30/I31)","v":0},"mm"]
[null,null,null,null,null,null,null,null,null,null,null,null,null,null,null,null,null,null,null,null,"Zs =",{"$f":"IF(OR(I31=0,I31<0),0,M30/I31)","v":0},"mm"]
[]
[]
[]
[]
[]
[]
[]
[]
[]
[]
[]
[]
[]
[]
[]
[]
[]
[]
[]
[]
[]
[null,null,null,{"$f":"Translation!A73","v":"Direkte Eingabe von J0"}]
[]
[null,null,null,null,null,null,null,{"$f":"Translation!A74","v":"Eigenmassenträgheitsmom."},null,null,null,null,null,null,null,null,"J 0 =",0,"kgm2",null,"J  =",{"$f":"R56+POWER(V64/1000,2)*R58","v":0},"kgm2",null,null,null,null,null,null,null,null,null,null,null,null,null,null,null,null,{"$f":"V56*(-1)","v":0}]
[]
[null,null,null,null,null,null,null,{"$f":"Translation!A75","v":"Masse des Körpers"},null,null,null,null,null,null,null,null,"m =",0,"kg",null,"m  =",{"$f":"R58","v":0},"kg",null,null,null,null,null,null,null,null,null,null,null,null,null,null,null,null,{"$f":"V58*(-1)","v":0}]
[]
[]
[]
[null,null,null,null,null,null,null,null,null,null,null,null,null,null,null,null,null,0]
[]
[null,null,null,null,null,null,null,{"$f":"Translation!A76","v":"Massenschwerpunkts-Koordinaten"},null,null,null,null,null,null,null,null,"X =",0,"mm",null,"R  =",{"$f":"SQRT(POWER(R64,2)+POWER(R66,2))","v":0},"mm",null,null,null,null,null,null,null,null,null,null,null,null,null,null,null,null,{"$f":"V58*R64","v":0},{"$f":"V58*R66","v":0},{"$f":"V58*V66","v":0}]
[]
[null,null,null,null,null,null,null,null,null,null,null,null,null,null,null,null,"Y =",0,"mm",null,"Z =",0,"mm",null,null,null,null,null,null,null,null,null,null,null,null,null,null,null,null,{"$f":"AN58*R64","v":0},{"$f":"AN58*R66","v":0},{"$f":"AN58*V66","v":0}]
[]
[]
[]
[null,null,null,null,null,null,null,null,"=",{"$f":"Translation!A77","v":"Eingabefelder"}]
[]
[]
[]
[]
[]
[null,null,null,{"$f":"Translation!A83","v":"Quader"},null,null,null,null,null,null,null,null,null,null,null,null,null,{"$f":"Translation!A84","v":"Dichte"}]
[]
[null,null,null,null,null,null,null,{"$f":"Translation!A85","v":"Länge"},"L  =",0,"mm",null,null,null,null,null,null,7.85,"kg/dm3",null,"J  =",{"$f":"((((POWER(J78/1000,2))+POWER(J80/1000,2))/12)*V80)+(POWER(V86/1000,2)*V80)","v":0},"kgm2",null,null,null,null,null,null,null,null,null,null,null,null,null,null,null,null,{"$f":"V78*(-1)","v":0},false,{"$f":"IF(AO78=TRUE,7.85,IF(AO80=TRUE,2.7,IF(AO82=TRUE,R82,0)))","v":0}]
[]
[null,null,null,null,null,null,null,{"$f":"Translation!A86","v":"Breite"},"B  =",0,"mm",null,null,null,null,null,null,2.7,"kg/dm3",null,"m  =",{"$f":"((J78*J80*J82)/1000000)*AP78","v":0},"kg",null,null,null,null,null,null,null,null,null,null,null,null,null,null,null,null,{"$f":"V80*(-1)","v":0},false]
[]
[null,null,null,null,null,null,null,{"$f":"Translation!A87","v":"Höhe"},"H  =",0,"mm",null,null,null,null,null,null,0,"kg/dm3",null,null,null,null,null,null,null,null,null,null,null,null,null,null,null,null,null,null,null,null,null,false]
[]
[]
[]
[null,null,null,null,null,null,null,{"$f":"Translation!A76","v":"Massenschwerpunkts-Koordinaten"},null,null,null,null,null,null,null,null,"X =",0,"mm",null,"R  =",{"$f":"SQRT(POWER(R86,2)+POWER(R88,2))","v":0},"mm",null,null,null,null,null,null,null,null,null,null,null,null,null,null,null,null,{"$f":"V80*R86","v":0},{"$f":"V80*R88","v":0},{"$f":"V80*V88","v":0}]
[]
[null,null,null,null,null,null,null,null,null,null,null,null,null,null,null,null,"Y =",0,"mm",null,"Z =",0,"mm",null,null,null,null,null,null,null,null,null,null,null,null,null,null,null,null,{"$f":"AN80*R86","v":0},{"$f":"AN80*R88","v":0},{"$f":"AN80*V88","v":0}]
[]
[]
[]
[null,null,null,null,null,null,null,null,"=",{"$f":"Translation!A77","v":"Eingabefelder"}]
[]
[]
[]
[]
[]
[null,null,null,{"$f":"Translation!A92","v":"Scheibe"},null,null,null,null,null,null,null,null,null,null,null,null,null,{"$f":"Translation!A93","v":"Dichte"}]
[]
[null,null,null,null,null,null,null,{"$f":"Translation!A94","v":"Durch-"},"D  =",0,"mm",null,null,null,null,null,null,7.85,"kg/dm3",null,"J  =",{"$f":"(POWER(J100/1000,2)/8)*V102+(POWER(V108/1000,2)*V102)","v":0},"kgm2",null,null,null,null,null,null,null,null,null,null,null,null,null,null,null,null,{"$f":"V100*(-1)","v":0},false,{"$f":"IF(AO100=TRUE,7.85,IF(AO102=TRUE,2.7,IF(AO104=TRUE,R104,0)))","v":0}]
[]
[null,null,null,null,null,null,null,{"$f":"Translation!A95","v":"messer"},null,null,null,null,null,null,null,null,null,2.7,"kg/dm3",null,"m  =",{"$f":"(POWER(J100/100,2)/4)*3.1416*(J104/100)*AP100","v":0},"kg",null,null,null,null,null,null,null,null,null,null,null,null,null,null,null,null,{"$f":"V102*(-1)","v":0},false]
[]
[null,null,null,null,null,null,null,{"$f":"Translation!A96","v":"Dicke"},"H  =",0,"mm",null,null,null,null,null,null,0,"kg/dm3",null,null,null,null,null,null,null,null,null,null,null,null,null,null,null,null,null,null,null,null,null,false]
[]
[]
[]
[null,null,null,null,null,null,null,{"$f":"Translation!A76","v":"Massenschwerpunkts-Koordinaten"},null,null,null,null,null,null,null,null,"X =",0,"mm",null,"R  =",{"$f":"SQRT(POWER(R108,2)+POWER(R110,2))","v":0},"mm",null,null,null,null,null,null,null,null,null,null,null,null,null,null,null,null,{"$f":"V102*R108","v":0},{"$f":"V102*R110","v":0},{"$f":"V102*V110","v":0}]
[]
[null,null,null,null,null,null,null,null,null,null,null,null,null,null,null,null,"Y =",0,"mm",null,"Z =",0,"mm",null,null,null,null,null,null,null,null,null,null,null,null,null,null,null,null,{"$f":"AN102*R108","v":0},{"$f":"AN102*R110","v":0},{"$f":"AN102*V110","v":0}]
[]
[]
[]
[null,null,null,null,null,null,null,null,"=",{"$f":"Translation!A77","v":"Eingabefelder"}]
[]
[]
[]
[]
[]
[null,null,null,{"$f":"Translation!A98","v":"Welle längs zur Drehachse"},null,null,null,null,null,null,null,null,null,null,null,null,null,{"$f":"Translation!A99","v":"Dichte"}]
[]
[null,null,null,null,null,null,null,{"$f":"Translation!A100","v":"Durch-"},"Da  =",0,"mm",null,null,null,null,null,null,7.85,"kg/dm3",null,"J  =",{"$f":"(((POWER(AJ122/1000,2)+POWER(AJ124/1000,2))/8)*V124+(POWER(V130/1000,2)*V124))","v":0},"kgm2",null,null,null,null,null,null,null,null,null,null,null,null,{"$f":"IF(OR(J122=\"\",J124=\"\"),0,J122)","v":0},null,null,null,{"$f":"V122*(-1)","v":0},false,{"$f":"IF(AO122=TRUE,7.85,IF(AO124=TRUE,2.7,IF(AO126=TRUE,R126,0)))","v":0}]
[]
[null,null,null,null,null,null,null,{"$f":"Translation!A101","v":"messer"},"Di  =",0,"mm",null,null,null,null,null,null,2.7,"kg/dm3",null,"m  =",{"$f":"(POWER(AJ122/100,2)-POWER(AJ124/100,2))*(3.1416*(J126/100)/4)*AP122","v":0},"kg",null,null,null,null,null,null,null,null,null,null,null,null,{"$f":"IF(OR(J124=\"\",J122=\"\"),0,J124)","v":0},null,null,null,{"$f":"V124*(-1)","v":0},false]
[]
[null,null,null,null,null,null,null,{"$f":"Translation!A102","v":"Länge"},"L  =",0,"mm",null,null,null,null,null,null,0,"kg/dm3",null,null,null,null,null,null,null,null,null,null,null,null,null,null,null,null,null,null,null,null,null,false]
[]
[]
[]
[null,null,null,null,null,null,null,{"$f":"Translation!A76","v":"Massenschwerpunkts-Koordinaten"},null,null,null,null,null,null,null,null,"X =",0,"mm",null,"R  =",{"$f":"SQRT(POWER(R130,2)+POWER(R132,2))","v":0},"mm",null,null,null,null,null,null,null,null,null,null,null,null,null,null,null,null,{"$f":"V124*R130","v":0},{"$f":"V124*R132","v":0},{"$f":"V124*V132","v":0}]
[]
[null,null,null,null,null,null,null,null,null,null,null,null,null,null,null,null,"Y =",0,"mm",null,"Z =",0,"mm",null,null,null,null,null,null,null,null,null,null,null,null,null,null,null,null,{"$f":"AN124*R130","v":0},{"$f":"AN124*R132","v":0},{"$f":"AN124*V132","v":0}]
[]
[]
[]
[null,null,null,null,null,null,null,null,"=",{"$f":"Translation!A77","v":"Eingabefelder"}]
[]
[]
[]
[]
[]
[null,null,null,{"$f":"Translation!A104","v":"Welle quer zur Drehachse"},null,null,null,null,null,null,null,null,null,null,null,null,null,{"$f":"Translation!A105","v":"Dichte"}]
[]
[null,null,null,null,null,null,null,{"$f":"Translation!A106","v":"Durch-"},"Da  =",0,"mm",null,null,null,null,null,null,7.85,"kg/dm3",null,"J  =",{"$f":"((POWER(AJ144/1000,2)/16)+(POWER(AJ146/1000,2)/16)+(POWER(J148/1000,2)/12))*V146+(POWER(V152/1000,2)*V146)","v":0},"kgm2",null,null,null,null,null,null,null,null,null,null,null,null,{"$f":"IF(OR(J144=\"\",J146=\"\"),0,J144)","v":0},null,null,null,{"$f":"V144*(-1)","v":0},false,{"$f":"IF(AO144=TRUE,7.85,IF(AO146=TRUE,2.7,IF(AO148=TRUE,R148,0)))","v":0}]
[]
[null,null,null,null,null,null,null,{"$f":"Translation!A107","v":"messer"},"Di  =",0,"mm",null,null,null,null,null,null,2.7,"kg/dm3",null,"m  =",{"$f":"(POWER(AJ144/100,2)-POWER(AJ146/100,2))*(3.1416*(J148/100)/4)*AP144","v":0},"kg",null,null,null,null,null,null,null,null,null,null,null,null,{"$f":"IF(OR(J146=\"\",J144=\"\"),0,J146)","v":0},null,null,null,{"$f":"V146*(-1)","v":0},false]
[]
[null,null,null,null,null,null,null,{"$f":"Translation!A108","v":"Länge"},"L  =",0,"mm",null,null,null,null,null,null,0,"kg/dm3",null,null,null,null,null,null,null,null,null,null,null,null,null,null,null,null,null,null,null,null,null,false]
[]
[]
[]
[null,null,null,null,null,null,null,{"$f":"Translation!A76","v":"Massenschwerpunkts-Koordinaten"},null,null,null,null,null,null,null,null,"X =",0,"mm",null,"R  =",{"$f":"SQRT(POWER(R152,2)+POWER(R154,2))","v":0},"mm",null,null,null,null,null,null,null,null,null,null,null,null,null,null,null,null,{"$f":"V146*R152","v":0},{"$f":"V146*R154","v":0},{"$f":"V146*V154","v":0}]
[]
[null,null,null,null,null,null,null,null,null,null,null,null,null,null,null,null,"Y =",0,"mm",null,"Z =",0,"mm",null,null,null,null,null,null,null,null,null,null,null,null,null,null,null,null,{"$f":"AN146*R152","v":0},{"$f":"AN146*R154","v":0},{"$f":"AN146*V154","v":0}]
[]
[]
[]
[null,null,null,null,null,null,null,null,"=",{"$f":"Translation!A77","v":"Eingabefelder"}]
[]
[]
[]
[]
[]
[null,null,null,{"$f":"Translation!A110","v":"Grundfläche / Masse"}]
[]
[null,null,null,null,null,null,null,{"$f":"Translation!A111","v":"Länge"},"L  =",0,"mm",null,null,null,null,null,null,null,null,null,"J  =",{"$f":"((((POWER(J166/1000,2))+POWER(J168/1000,2))/12)*V168)+(POWER(V174/1000,2)*V168)","v":0},"kgm2",null,null,null,null,null,null,null,null,null,null,null,null,null,null,null,null,{"$f":"V166*(-1)","v":0}]
[]
[null,null,null,null,null,null,null,{"$f":"Translation!A112","v":"Breite"},"B  =",0,"mm",null,null,null,null,null,null,null,null,null,"m  =",{"$f":"J170","v":0},"kg",null,null,null,null,null,null,null,null,null,null,null,null,null,null,null,null,{"$f":"V168*(-1)","v":0}]
[]
[null,null,null,null,null,null,null,{"$f":"Translation!A113","v":"Masse"},"m  =",0,"kg"]
[]
[]
[]
[null,null,null,null,null,null,null,{"$f":"Translation!A76","v":"Massenschwerpunkts-Koordinaten"},null,null,null,null,null,null,null,null,"X =",0,"mm",null,"R  =",{"$f":"SQRT(POWER(R174,2)+POWER(R176,2))","v":0},"mm",null,null,null,null,null,null,null,null,null,null,null,null,null,null,null,null,{"$f":"V168*R174","v":0},{"$f":"V168*R176","v":0},{"$f":"V168*V176","v":0}]
[]
[null,null,null,null,null,null,null,null,null,null,null,null,null,null,null,null,"Y =",0,"mm",null,"Z =",0,"mm",null,null,null,null,null,null,null,null,null,null,null,null,null,null,null,null,{"$f":"AN168*R174","v":0},{"$f":"AN168*R176","v":0},{"$f":"AN168*V176","v":0}]
[]
[]
[]
[null,null,null,null,null,null,null,null,"=",{"$f":"Translation!A77","v":"Eingabefelder"}]
[]
[]
[]
[]
[]
[null,null,null,{"$f":"Translation!A115","v":"Greifmodule"}]
[]
[null,null,null,{"$f":"Translation!A116","v":"Parallel-Greifer"},null,null,null,{"$f":"A341&Translation!A116","v":"  Parallel-Greifer"},null,null,null,{"$f":"A341&Translation!A116","v":"  Parallel-Greifer"},null,null,null,null,null,{"$f":"#REF!&Translation!A117","v":{"$error":"#REF!"}},null,null,null,{"$f":"A341&A341&A341&Translation!A118","v":"      Winkel-Greifer"},null,null,null,null,null,null,{"$f":"Translation!A119","v":"Winkel-Parallel-Greifer"}]
[null,null,null,"    PGN-plus",null,null,"MPG / MPG-plus",null,null,null,null,"GMP",null,null,null,null,"     MPZ / PZN-plus",null,null,null,"GAP",null,null,null,"PRG",null,null,null,null,"PWG-plus"]
[]
[]
[]
[]
[]
[]
[]
[]
[]
[]
[]
[]
[]
[]
[]
[]
[null,null,null,{"$f":"Translation!A116&A341&AJ218","v":"Parallel-Greifer  "},null,null,null,null,null,null,null,null,null,null,null,null,null,null,null,null,null,null,null,null,null,null,null,null,null,null,null,null,null,null,null,null,null,null,null,null,null,null,"Eigenmassenträgheitsmoment J0 (kgm2)",null,null,1,"Masse m (kg)",null,null,null,"Maß h (mm)",null,null,null,"Eigenmassenträgheitsmoment Jz (kgm2)",null,null,null,"Eigenmassenträgheitsmoment Jy (kgm2)"]
[]
[null,null,null,null,null,null,null,null,null,null,null,null,null,null,null,null,null,null,null,null,"J  =",{"$f":"(AQ216+(POWER(V216/1000,2)*AU216))","v":0},"kgm2",null,null,null,null,null,null,null,null,null,null,null,null,false,false,null,null,null,null,null,{"$f":"IF($AT$206=1,BC208,IF($AT$206=2,BG208,0))","v":1.8E-5},{"$f":"IF($AT$206=1,BD208,IF($AT$206=2,BH208,0))","v":2.0999999999999999E-5},null,null,0.08,0.1,null,null,9.5,21.7,null,null,1.8E-5,2.0999999999999999E-5,null,null,1.9000000000000001E-5,2.5999999999999998E-5]
[]
[null,null,null,null,null,null,null,null,null,null,null,null,null,null,null,null,null,null,null,null,"m  =",{"$f":"AU216","v":0},"kg",null,null,null,null,null,null,null,null,null,null,null,null,false,false,null,null,null,null,null,{"$f":"IF($AT$206=1,BC210,IF($AT$206=2,BG210,0))","v":6.2000000000000003E-5},{"$f":"IF($AT$206=1,BD210,IF($AT$206=2,BH210,0))","v":7.2999999999999999E-5},null,null,0.17,0.21,null,null,19.100000000000001,29.2,null,null,6.2000000000000003E-5,7.2999999999999999E-5,null,null,6.3E-5,9.6000000000000002E-5]
[]
[null,null,null,null,null,null,null,null,null,null,null,null,null,null,null,null,null,null,null,null,"h  =",{"$f":"AY216","v":0},"mm",null,null,null,null,null,null,null,null,null,null,null,null,false,false,null,null,null,null,null,{"$f":"IF($AT$206=1,BC212,IF($AT$206=2,BG212,0))","v":1.4100000000000001E-4},{"$f":"IF($AT$206=1,BD212,IF($AT$206=2,BH212,0))","v":1.6699999999999999E-4},null,null,0.28000000000000003,0.37,null,null,23.5,34.6,null,null,1.4100000000000001E-4,1.6699999999999999E-4,null,null,1.4799999999999999E-4,2.24E-4]
[]
[]
[]
[null,null,null,null,null,null,null,{"$f":"Translation!A76","v":"Massenschwerpunkts-Koordinaten"},null,null,null,null,null,null,null,null,"X =",0,"mm",null,"R  =",{"$f":"SQRT(POWER(R216,2)+POWER(R218,2))","v":0},"mm",null,null,null,null,null,null,null,null,null,null,null,null,null,null,null,null,{"$f":"V210*R216","v":0},{"$f":"V210*R218","v":0},{"$f":"V210*V218","v":0},{"$f":"IF(AJ208=TRUE,AQ208,IF(AJ210=TRUE,AQ210,IF(AJ212=TRUE,AQ212,IF(AK208=TRUE,AR208,IF(AK210=TRUE,AR210,IF(AK212=TRUE,AR212,0))))))","v":0},null,null,null,{"$f":"IF(AJ208=TRUE,AU208,IF(AJ210=TRUE,AU210,IF(AJ212=TRUE,AU212,IF(AK208=TRUE,AV208,IF(AK210=TRUE,AV210,IF(AK212=TRUE,AV212,0))))))","v":0},null,null,null,{"$f":"IF(AJ208=TRUE,AY208,IF(AJ210=TRUE,AY210,IF(AJ212=TRUE,AY212,IF(AK208=TRUE,AZ208,IF(AK210=TRUE,AZ210,IF(AK212=TRUE,AZ212,0))))))","v":0}]
[]
[null,null,null,null,null,null,null,null,null,null,null,null,null,null,null,null,"Y =",0,"mm",null,"Z =",{"$f":"V212","v":0},"mm",null,null,null,null,null,null,null,null,null,null,null,null,{"$f":"IF(AJ208=TRUE,\"PGN-plus 40\",IF(AJ210=TRUE,\"PGN-plus 50\",IF(AJ212=TRUE,\"PGN-plus 64\",IF(AK208=TRUE,\"PGN-plus 40-AS/IS\",IF(AK210=TRUE,\"PGN-plus 50-AS/IS\",IF(AK212=TRUE,\"PGN-plus 64-AS/IS\",\"\"))))))","v":""}]
[]
[]
[]
[null,null,null,null,null,null,null,null,"=",{"$f":"Translation!A77","v":"Eingabefelder"}]
[]
[]
[]
[]
[]
[null,null,null,{"$f":"Translation!A116&A341&AK240","v":"Parallel-Greifer  "},null,null,null,null,null,null,null,null,null,null,null,null,null,null,null,null,null,null,null,null,null,null,null,null,null,null,null,null,null,null,null,null,null,null,null,null,null,null,"Eigenmassenträgheitsmoment J0 (kgm2)",null,null,1,"Masse m (kg)",null,null,null,"Maß h (mm)",null,null,null,"Eigenmassenträgheitsmoment Jz (kgm2)",null,null,null,"Eigenmassenträgheitsmoment Jy (kgm2)"]
[]
[null,null,null,null,null,null,null,null,null,null,null,null,null,null,null,null,null,null,null,null,"J  =",{"$f":"(AR238+(POWER(V238/1000,2)*AV238))","v":0},"kgm2",null,null,null,null,null,null,null,null,null,null,null,null,false,false,false,false,null,null,null,{"$f":"IF($AT$228=1,BC230,IF($AT$228=2,BG230,0))","v":3.0000000000000001E-6},{"$f":"IF($AT$228=1,BD230,IF($AT$228=2,BH230,0))","v":3.0000000000000001E-6},{"$f":"IF($AT$228=1,BE230,IF($AT$228=2,BI230,0))","v":2.5999999999999998E-5},{"$f":"IF($AT$228=1,BF230,IF($AT$228=2,BJ230,0))","v":4.8000000000000001E-5},0.04,0.05,0.18,0.24,14.9,20.9,24.4,39.700000000000003,3.0000000000000001E-6,3.0000000000000001E-6,2.5999999999999998E-5,4.8000000000000001E-5,3.9999999999999998E-6,6.9999999999999999E-6,5.3000000000000001E-5,1.27E-4]
[]
[null,null,null,null,null,null,null,null,null,null,null,null,null,null,null,null,null,null,null,null,"m  =",{"$f":"AV238","v":0},"kg",null,null,null,null,null,null,null,null,null,null,null,null,false,false,false,false,null,null,null,{"$f":"IF($AT$228=1,BC232,IF($AT$228=2,BG232,0))","v":5.0000000000000004E-6},{"$f":"IF($AT$228=1,BD232,IF($AT$228=2,BH232,0))","v":6.0000000000000002E-6},{"$f":"IF($AT$228=1,BE232,IF($AT$228=2,BI232,0))","v":9.5000000000000005E-5},{"$f":"IF($AT$228=1,BF232,IF($AT$228=2,BJ232,0))","v":2.0000000000000001E-4},0.06,7.0000000000000007E-2,0.35,0.4,16.600000000000001,24.6,29.3,34.5,5.0000000000000004E-6,6.0000000000000002E-6,9.5000000000000005E-5,2.0000000000000001E-4,6.9999999999999999E-6,1.4E-5,1.3300000000000001E-4,4.0499999999999998E-4]
[]
[null,null,null,null,null,null,null,null,null,null,null,null,null,null,null,null,null,null,null,null,"h  =",{"$f":"AZ238","v":0},"mm",null,null,null,null,null,null,null,null,null,null,null,null,false,false,false,false,null,null,null,{"$f":"IF($AT$228=1,BC234,IF($AT$228=2,BG234,0))","v":1.2999999999999999E-5},{"$f":"IF($AT$228=1,BD234,IF($AT$228=2,BH234,0))","v":1.7E-5},{"$f":"IF($AT$228=1,BE234,IF($AT$228=2,BI234,0))","v":2.7E-4},{"$f":"IF($AT$228=1,BF234,IF($AT$228=2,BJ234,0))","v":3.1199999999999999E-4},0.1,0.13,0.6,0.7,20.9,29.1,34.299999999999997,44.3,1.2999999999999999E-5,1.7E-5,2.7E-4,3.1199999999999999E-4,2.0999999999999999E-5,3.8999999999999999E-5,3.5599999999999998E-4,5.1699999999999999E-4]
[]
[]
[]
[null,null,null,null,null,null,null,{"$f":"Translation!A76","v":"Massenschwerpunkts-Koordinaten"},null,null,null,null,null,null,null,null,"X =",0,"mm",null,"R  =",{"$f":"SQRT(POWER(R238,2)+POWER(R240,2))","v":0},"mm",null,null,null,null,null,null,null,null,null,null,null,null,null,null,null,null,{"$f":"V232*R238","v":0},{"$f":"V232*R240","v":0},{"$f":"V232*V240","v":0},{"$f":"IF(AJ230=TRUE,AQ230,IF(AJ232=TRUE,AQ232,IF(AJ234=TRUE,AQ234,IF(AK230=TRUE,AR230,IF(AK232=TRUE,AR232,IF(AK234=TRUE,AR234,0))))))","v":0},{"$f":"IF(AQ238=0,AS238,AQ238)","v":0},{"$f":"IF(AL230=TRUE,AS230,IF(AL232=TRUE,AS232,IF(AL234=TRUE,AS234,IF(AM230=TRUE,AT230,IF(AM232=TRUE,AT232,IF(AM234=TRUE,AT234,0))))))","v":0},null,{"$f":"IF(AJ230=TRUE,AU230,IF(AJ232=TRUE,AU232,IF(AJ234=TRUE,AU234,IF(AK230=TRUE,AV230,IF(AK232=TRUE,AV232,IF(AK234=TRUE,AV234,0))))))","v":0},{"$f":"IF(AU238=0,AW238,AU238)","v":0},{"$f":"IF(AL230=TRUE,AW230,IF(AL232=TRUE,AW232,IF(AL234=TRUE,AW234,IF(AM230=TRUE,AX230,IF(AM232=TRUE,AX232,IF(AM234=TRUE,AX234,0))))))","v":0},null,{"$f":"IF(AJ230=TRUE,AY230,IF(AJ232=TRUE,AY232,IF(AJ234=TRUE,AY234,IF(AK230=TRUE,AZ230,IF(AK232=TRUE,AZ232,IF(AK234=TRUE,AZ234,0))))))","v":0},{"$f":"IF(AY238=0,BA238,AY238)","v":0},{"$f":"IF(AL230=TRUE,BA230,IF(AL232=TRUE,BA232,IF(AL234=TRUE,BA234,IF(AM230=TRUE,BB230,IF(AM232=TRUE,BB232,IF(AM234=TRUE,BB234,0))))))","v":0}]
[]
[null,null,null,null,null,null,null,null,null,null,null,null,null,null,null,null,"Y =",0,"mm",null,"Z =",{"$f":"V234","v":0},"mm",null,null,null,null,null,null,null,null,null,null,null,null,{"$f":"IF(AJ230=TRUE,\"MPG 20\",IF(AJ232=TRUE,\"MPG-plus 25\",IF(AJ234=TRUE,\"MPG-plus 32\",IF(AK230=TRUE,\"MPG 20-AS/IS\",IF(AK232=TRUE,\"MPG-plus 25-AS/IS\",IF(AK234=TRUE,\"MPG-plus 32-AS/IS\",\"\"))))))","v":""},{"$f":"IF(AJ240=\"\",AL240,AJ240)","v":""},{"$f":"IF(AL230=TRUE,\"MPG-plus 40\",IF(AL232=TRUE,\"MPG 50\",IF(AL234=TRUE,\"MPG 64\",IF(AM230=TRUE,\"MPG-plus 40-AS/IS\",IF(AM232=TRUE,\"MPG 50-AS/IS\",IF(AM234=TRUE,\"MPG 64-AS/IS\",\"\"))))))","v":""}]
[]
[]
[]
[null,null,null,null,null,null,null,null,"=",{"$f":"Translation!A77","v":"Eingabefelder"}]
[]
[]
[]
[]
[]
[null,null,null,{"$f":"Translation!A116&A341&AK264","v":"Parallel-Greifer  "},null,null,null,null,null,null,null,null,null,null,null,null,null,null,null,null,null,null,null,null,null,null,null,null,null,null,null,null,null,null,null,null,null,null,null,null,null,null,"Eigenmassenträgheitsmoment J0 (kgm2)",null,null,1,"Masse m (kg)",null,null,null,"Maß h (mm)",null,null,null,"Eigenmassenträgheitsmoment Jz (kgm2)",null,null,null,"Eigenmassenträgheitsmoment Jy (kgm2)"]
[]
[null,null,null,null,null,null,null,null,null,null,null,null,null,null,null,null,null,null,null,null,"J  =",{"$f":"(AR262+(POWER(V262/1000,2)*AV262))","v":0},"kgm2",null,null,null,null,null,null,null,null,null,null,null,null,false,false,false,false,null,null,null,{"$f":"IF($AT$250=1,BC252,IF($AT$250=2,BG252,0))","v":2.4199999999999999E-5},{"$f":"IF($AT$250=1,BD252,IF($AT$250=2,BH252,0))","v":5.0599999999999997E-5},{"$f":"IF($AT$250=1,BE252,IF($AT$250=2,BI252,0))","v":1.259E-4},{"$f":"IF($AT$250=1,BF252,IF($AT$250=2,BJ252,0))","v":3.4249999999999998E-4},0.14000000000000001,0.2,0.34,0.62,28.5,32.700000000000003,39.5,48.8,2.4199999999999999E-5,5.0599999999999997E-5,1.259E-4,3.4249999999999998E-4,4.5000000000000003E-5,8.7000000000000001E-5,2.04E-4,5.9199999999999997E-4]
[]
[null,null,null,null,null,null,null,null,null,null,null,null,null,null,null,null,null,null,null,null,"m  =",{"$f":"AV262","v":0},"kg",null,null,null,null,null,null,null,null,null,null,null,null,false,false,false,false,null,null,null,{"$f":"IF($AT$250=1,BC254,IF($AT$250=2,BG254,0))","v":2.73E-5},{"$f":"IF($AT$250=1,BD254,IF($AT$250=2,BH254,0))","v":5.7200000000000001E-5},{"$f":"IF($AT$250=1,BE254,IF($AT$250=2,BI254,0))","v":1.3909999999999999E-4},{"$f":"IF($AT$250=1,BF254,IF($AT$250=2,BJ254,0))","v":3.6739999999999999E-4},0.16,0.24,0.4,0.68,33.9,38.5,46.5,55.7,2.73E-5,5.7200000000000001E-5,1.3909999999999999E-4,3.6739999999999999E-4,6.7000000000000002E-5,1.26E-4,2.8899999999999998E-4,7.7899999999999996E-4]
[]
[null,null,null,null,null,null,null,null,null,null,null,null,null,null,null,null,null,null,null,null,"h  =",{"$f":"AZ262","v":0},"mm",null,null,null,null,null,null,null,null,null,null,null,null,false,false,false,false,null,null,null,{"$f":"IF($AT$250=1,BC256,IF($AT$250=2,BG256,0))","v":2.9899999999999998E-5},{"$f":"IF($AT$250=1,BD256,IF($AT$250=2,BH256,0))","v":6.2700000000000006E-5},{"$f":"IF($AT$250=1,BE256,IF($AT$250=2,BI256,0))","v":1.4689999999999999E-4},{"$f":"IF($AT$250=1,BF256,IF($AT$250=2,BJ256,0))","v":4.0420000000000001E-4},0.16,0.26,0.42,0.78,39.5,43,53.1,68.7,2.9899999999999998E-5,6.2700000000000006E-5,1.4689999999999999E-4,4.0420000000000001E-4,9.6000000000000002E-5,1.8200000000000001E-4,3.9899999999999999E-4,1.2489999999999999E-3]
[]
[null,null,null,null,null,null,null,null,null,null,null,null,null,null,null,null,null,null,null,null,null,null,null,null,null,null,null,null,null,null,null,null,null,null,null,false,false,false,false,null,null,null,{"$f":"IF($AT$250=1,BC258,IF($AT$250=2,BG258,0))","v":3.3099999999999998E-5},{"$f":"IF($AT$250=1,BD258,IF($AT$250=2,BH258,0))","v":6.9300000000000004E-5},{"$f":"IF($AT$250=1,BE258,IF($AT$250=2,BI258,0))","v":1.6009999999999999E-4},{"$f":"IF($AT$250=1,BF258,IF($AT$250=2,BJ258,0))","v":4.2910000000000002E-4},0.18,0.28000000000000003,0.48,0.86,44.9,48.7,60.1,75.5,3.3099999999999998E-5,6.9300000000000004E-5,1.6009999999999999E-4,4.2910000000000002E-4,1.34E-4,2.4800000000000001E-4,5.4199999999999995E-4,1.588E-3]
[]
[]
[]
[null,null,null,null,null,null,null,{"$f":"Translation!A76","v":"Massenschwerpunkts-Koordinaten"},null,null,null,null,null,null,null,null,"X =",0,"mm",null,"R  =",{"$f":"SQRT(POWER(R262,2)+POWER(R264,2))","v":0},"mm",null,null,null,null,null,null,null,null,null,null,null,null,null,null,null,null,{"$f":"V254*R262","v":0},{"$f":"V254*R264","v":0},{"$f":"V254*V264","v":0},{"$f":"IF(AJ252=TRUE,AQ252,IF(AJ254=TRUE,AQ254,IF(AJ256=TRUE,AQ256,IF(AJ258=TRUE,AQ258,IF(AK252=TRUE,AR252,IF(AK254=TRUE,AR254,IF(AK256=TRUE,AR256,IF(AK258=TRUE,AR258,0))))))))","v":0},{"$f":"IF(AQ262=0,AS262,AQ262)","v":0},{"$f":"IF(AL252=TRUE,AS252,IF(AL254=TRUE,AS254,IF(AL256=TRUE,AS256,IF(AL258=TRUE,AS258,IF(AM252=TRUE,AT252,IF(AM254=TRUE,AT254,IF(AM256=TRUE,AT256,IF(AM258=TRUE,AT258,0))))))))","v":0},null,{"$f":"IF(AJ252=TRUE,AU252,IF(AJ254=TRUE,AU254,IF(AJ256=TRUE,AU256,IF(AJ258=TRUE,AU258,IF(AK252=TRUE,AV252,IF(AK254=TRUE,AV254,IF(AK256=TRUE,AV256,IF(AK258=TRUE,AV258,0))))))))","v":0},{"$f":"IF(AU262=0,AW262,AU262)","v":0},{"$f":"IF(AL252=TRUE,AW252,IF(AL254=TRUE,AW254,IF(AL256=TRUE,AW256,IF(AL258=TRUE,AW258,IF(AM252=TRUE,AX252,IF(AM254=TRUE,AX254,IF(AM256=TRUE,AX256,IF(AM258=TRUE,AX258,0))))))))","v":0},null,{"$f":"IF(AJ252=TRUE,AY252,IF(AJ254=TRUE,AY254,IF(AJ256=TRUE,AY256,IF(AJ258=TRUE,AY258,IF(AK252=TRUE,AZ252,IF(AK254=TRUE,AZ254,IF(AK256=TRUE,AZ256,IF(AK258=TRUE,AZ258,0))))))))","v":0},{"$f":"IF(AY262=0,BA262,AY262)","v":0},{"$f":"IF(AL252=TRUE,BA252,IF(AL254=TRUE,BA254,IF(AL256=TRUE,BA256,IF(AL258=TRUE,BA258,IF(AM252=TRUE,BB252,IF(AM254=TRUE,BB254,IF(AM256=TRUE,BB256,IF(AM258=TRUE,BB258,0))))))))","v":0}]
[]
[null,null,null,null,null,null,null,null,null,null,null,null,null,null,null,null,"Y =",0,"mm",null,"Z =",{"$f":"V256","v":0},"mm",null,null,null,null,null,null,null,null,null,null,null,null,{"$f":"IF(AJ252=TRUE,\"GMP 12\",IF(AJ254=TRUE,\"GMP 12-D\",IF(AJ256=TRUE,\"GMP 12-S/K\",IF(AJ258=TRUE,\"GMP 12-X/Z\",IF(AK252=TRUE,\"GMP 16\",IF(AK254=TRUE,\"GMP 16-D\",IF(AK256=TRUE,\"GMP 16-S/K\",IF(AK258=TRUE,\"GMP 16-X/Z\",\"\"))))))))","v":""},{"$f":"IF(AJ264=\"\",AL264,AJ264)","v":""},{"$f":"IF(AL252=TRUE,\"GMP 20\",IF(AL254=TRUE,\"GMP 20-D\",IF(AL256=TRUE,\"GMP 20-S/K\",IF(AL258=TRUE,\"GMP 20-X/Z\",IF(AM252=TRUE,\"GMP 28\",IF(AM254=TRUE,\"GMP 28-D\",IF(AM256=TRUE,\"GMP 28-S/K\",IF(AM258=TRUE,\"GMP 28-X/Z\",\"\"))))))))","v":""}]
[]
[]
[]
[null,null,null,null,null,null,null,null,"=",{"$f":"Translation!A77","v":"Eingabefelder"}]
[]
[]
[]
[]
[]
[null,null,null,{"$f":"Translation!A117&A341&AK288","v":"3-Backen-Greifer     "},null,null,null,null,null,null,null,null,null,null,null,null,null,null,null,null,null,null,null,null,null,null,null,null,null,null,null,null,null,null,null,null,null,null,null,null,null,null,"Eigenmassenträgheitsmoment J0 (kgm2)",null,null,1,"Masse m (kg)",null,null,null,"Maß h (mm)",null,null,null,"Eigenmassenträgheitsmoment Jz (kgm2)",null,null,null,"Eigenmassenträgheitsmoment Jy (kgm2)"]
[]
[null,null,null,null,null,null,null,null,null,null,null,null,null,null,null,null,null,null,null,null,"J  =",{"$f":"(AR286+(POWER(V286/1000,2)*AV286))","v":0},"kgm2",null,null,null,null,null,null,null,null,null,null,null,null,false,false,false,false,null,null,null,{"$f":"IF($AT$274=1,BC276,IF($AT$274=2,BG276,0))","v":9.0000000000000002E-6},{"$f":"IF($AT$274=1,BD276,IF($AT$274=2,BH276,0))","v":1.1E-5},{"$f":"IF($AT$274=1,BE276,IF($AT$274=2,BI276,0))","v":3.3000000000000003E-5},{"$f":"IF($AT$274=1,BF276,IF($AT$274=2,BJ276,0))","v":3.6999999999999998E-5},0.08,0.09,0.13,0.15,18.8,26.5,15.8,21.1,9.0000000000000002E-6,1.1E-5,3.3000000000000003E-5,3.6999999999999998E-5,1.2E-5,2.3E-5,2.3E-5,3.3000000000000003E-5]
[]
[null,null,null,null,null,null,null,null,null,null,null,null,null,null,null,null,null,null,null,null,"m  =",{"$f":"AV286","v":0},"kg",null,null,null,null,null,null,null,null,null,null,null,null,false,false,false,false,null,null,null,{"$f":"IF($AT$274=1,BC278,IF($AT$274=2,BG278,0))","v":2.8E-5},{"$f":"IF($AT$274=1,BD278,IF($AT$274=2,BH278,0))","v":3.8000000000000002E-5},{"$f":"IF($AT$274=1,BE278,IF($AT$274=2,BI278,0))","v":1.15E-4},{"$f":"IF($AT$274=1,BF278,IF($AT$274=2,BJ278,0))","v":1.2899999999999999E-4},0.14000000000000001,0.19,0.27,0.32,22.4,33.700000000000003,19.899999999999999,26.5,2.8E-5,3.8000000000000002E-5,1.15E-4,1.2899999999999999E-4,3.4E-5,8.5000000000000006E-5,8.0000000000000007E-5,1.12E-4]
[]
[null,null,null,null,null,null,null,null,null,null,null,null,null,null,null,null,null,null,null,null,"h  =",{"$f":"AZ286","v":0},"mm",null,null,null,null,null,null,null,null,null,null,null,null,false,false,null,null,null,null,null,{"$f":"IF($AT$274=1,BC280,IF($AT$274=2,BG280,0))","v":6.2000000000000003E-5},{"$f":"IF($AT$274=1,BD280,IF($AT$274=2,BH280,0))","v":7.6000000000000004E-5},null,null,0.22,0.28000000000000003,null,null,25.7,34.1,null,null,6.2000000000000003E-5,7.6000000000000004E-5,null,null,6.9999999999999994E-5,1.2400000000000001E-4]
[]
[]
[]
[]
[]
[null,null,null,null,null,null,null,{"$f":"Translation!A76","v":"Massenschwerpunkts-Koordinaten"},null,null,null,null,null,null,null,null,"X =",0,"mm",null,"R  =",{"$f":"SQRT(POWER(R286,2)+POWER(R288,2))","v":0},"mm",null,null,null,null,null,null,null,null,null,null,null,null,null,null,null,null,{"$f":"V278*R286","v":0},{"$f":"V278*R288","v":0},{"$f":"V278*V288","v":0},{"$f":"IF(AJ276=TRUE,AQ276,IF(AJ278=TRUE,AQ278,IF(AJ280=TRUE,AQ280,IF(AJ282=TRUE,AQ282,IF(AK276=TRUE,AR276,IF(AK278=TRUE,AR278,IF(AK280=TRUE,AR280,IF(AK282=TRUE,AR282,0))))))))","v":0},{"$f":"IF(AQ286=0,AS286,AQ286)","v":0},{"$f":"IF(AL276=TRUE,AS276,IF(AL278=TRUE,AS278,IF(AL280=TRUE,AS280,IF(AL282=TRUE,AS282,IF(AM276=TRUE,AT276,IF(AM278=TRUE,AT278,IF(AM280=TRUE,AT280,IF(AM282=TRUE,AT282,0))))))))","v":0},null,{"$f":"IF(AJ276=TRUE,AU276,IF(AJ278=TRUE,AU278,IF(AJ280=TRUE,AU280,IF(AJ282=TRUE,AU282,IF(AK276=TRUE,AV276,IF(AK278=TRUE,AV278,IF(AK280=TRUE,AV280,IF(AK282=TRUE,AV282,0))))))))","v":0},{"$f":"IF(AU286=0,AW286,AU286)","v":0},{"$f":"IF(AL276=TRUE,AW276,IF(AL278=TRUE,AW278,IF(AL280=TRUE,AW280,IF(AL282=TRUE,AW282,IF(AM276=TRUE,AX276,IF(AM278=TRUE,AX278,IF(AM280=TRUE,AX280,IF(AM282=TRUE,AX282,0))))))))","v":0},null,{"$f":"IF(AJ276=TRUE,AY276,IF(AJ278=TRUE,AY278,IF(AJ280=TRUE,AY280,IF(AJ282=TRUE,AY282,IF(AK276=TRUE,AZ276,IF(AK278=TRUE,AZ278,IF(AK280=TRUE,AZ280,IF(AK282=TRUE,AZ282,0))))))))","v":0},{"$f":"IF(AY286=0,BA286,AY286)","v":0},{"$f":"IF(AL276=TRUE,BA276,IF(AL278=TRUE,BA278,IF(AL280=TRUE,BA280,IF(AL282=TRUE,BA282,IF(AM276=TRUE,BB276,IF(AM278=TRUE,BB278,IF(AM280=TRUE,BB280,IF(AM282=TRUE,BB282,0))))))))","v":0}]
[]
[null,null,null,null,null,null,null,null,null,null,null,null,null,null,null,null,"Y =",0,"mm",null,"Z =",{"$f":"V280","v":0},"mm",null,null,null,null,null,null,null,null,null,null,null,null,{"$f":"IF(AJ276=TRUE,\"MPZ 30\",IF(AJ278=TRUE,\"MPZ 38\",IF(AJ280=TRUE,\"MPZ 45\",IF(AJ282=TRUE,\"\",IF(AK276=TRUE,\"MPZ 30-AS/IS\",IF(AK278=TRUE,\"MPZ 38-AS/IS\",IF(AK280=TRUE,\"MPZ 45-AS/IS\",IF(AK282=TRUE,\"\",\"\"))))))))","v":""},{"$f":"IF(AJ288=\"\",AL288,AJ288)","v":""},{"$f":"IF(AL276=TRUE,\"PZN-plus 40\",IF(AL278=TRUE,\"PZN-plus 50\",IF(AL280=TRUE,\"\",IF(AL282=TRUE,\"\",IF(AM276=TRUE,\"PZN-plus 40-AS/IS\",IF(AM278=TRUE,\"PZN-plus 50-AS/IS\",IF(AM280=TRUE,\"\",IF(AM282=TRUE,\"\",\"\"))))))))","v":""}]
[]
[]
[]
[null,null,null,null,null,null,null,null,"=",{"$f":"Translation!A77","v":"Eingabefelder"}]
[]
[]
[]
[]
[]
[null,null,null,{"$f":"Translation!A119&A341&AK312","v":"Winkel-Parallel-Greifer  "},null,null,null,null,null,null,null,null,null,null,null,null,null,null,null,null,null,null,null,null,null,null,null,null,null,null,null,null,null,null,null,null,null,null,null,null,null,null,"Eigenmassenträgheitsmoment J0 (kgm2)",null,null,1,"Masse m (kg)",null,null,null,"Maß h (mm)",null,null,null,"Eigenmassenträgheitsmoment Jz (kgm2)",null,null,null,"Eigenmassenträgheitsmoment Jy (kgm2)"]
[]
[null,null,null,null,null,null,null,null,null,null,null,null,null,null,null,null,null,null,null,null,"J  =",{"$f":"(AR310+(POWER(V310/1000,2)*AV310))","v":0},"kgm2",null,null,null,null,null,null,null,null,null,null,null,null,false,false,null,null,null,null,null,{"$f":"IF($AT$298=1,BC300,IF($AT$298=2,BG300,0))","v":2.5999999999999998E-5},{"$f":"IF($AT$298=1,BD300,IF($AT$298=2,BH300,0))","v":3.4999999999999997E-5},null,null,0.16,0.22,null,null,35.299999999999997,47.4,null,null,2.5999999999999998E-5,3.4999999999999997E-5,null,null,7.1000000000000005E-5,1.6000000000000001E-4]
[]
[null,null,null,null,null,null,null,null,null,null,null,null,null,null,null,null,null,null,null,null,"m  =",{"$f":"AV310","v":0},"kg",null,null,null,null,null,null,null,null,null,null,null,null,false,false,null,null,null,null,null,{"$f":"IF($AT$298=1,BC302,IF($AT$298=2,BG302,0))","v":7.6000000000000004E-5},{"$f":"IF($AT$298=1,BD302,IF($AT$298=2,BH302,0))","v":9.8999999999999994E-5},null,null,0.3,0.39,null,null,41.9,55.5,null,null,7.6000000000000004E-5,9.8999999999999994E-5,null,null,1.85E-4,3.86E-4]
[]
[null,null,null,null,null,null,null,null,null,null,null,null,null,null,null,null,null,null,null,null,"h  =",{"$f":"AZ310","v":0},"mm",null,null,null,null,null,null,null,null,null,null,null,null,false,false,null,null,null,null,null,{"$f":"IF($AT$298=1,BC304,IF($AT$298=2,BG304,0))","v":1.9599999999999999E-4},{"$f":"IF($AT$298=1,BD304,IF($AT$298=2,BH304,0))","v":2.6200000000000003E-4},null,null,0.54,0.7,null,null,50.7,67.900000000000006,null,null,1.9599999999999999E-4,2.6200000000000003E-4,null,null,4.64E-4,1.013E-3]
[]
[null,null,null,null,null,null,null,null,null,null,null,null,null,null,null,null,null,null,null,null,null,null,null,null,null,null,null,null,null,null,null,null,null,null,null,false,false,null,null,null,null,null,{"$f":"IF($AT$298=1,BC306,IF($AT$298=2,BG306,0))","v":5.8500000000000002E-4},{"$f":"IF($AT$298=1,BD306,IF($AT$298=2,BH306,0))","v":7.7300000000000003E-4},null,null,1.03,1.33,null,null,62.6,82.5,null,null,5.8500000000000002E-4,7.7300000000000003E-4,null,null,1.358E-3,2.8670000000000002E-3]
[]
[]
[]
[null,null,null,null,null,null,null,{"$f":"Translation!A76","v":"Massenschwerpunkts-Koordinaten"},null,null,null,null,null,null,null,null,"X =",0,"mm",null,"R  =",{"$f":"SQRT(POWER(R310,2)+POWER(R312,2))","v":0},"mm",null,null,null,null,null,null,null,null,null,null,null,null,null,null,null,null,{"$f":"V302*R310","v":0},{"$f":"V302*R312","v":0},{"$f":"V302*V312","v":0},{"$f":"IF(AJ300=TRUE,AQ300,IF(AJ302=TRUE,AQ302,IF(AJ304=TRUE,AQ304,IF(AJ306=TRUE,AQ306,IF(AK300=TRUE,AR300,IF(AK302=TRUE,AR302,IF(AK304=TRUE,AR304,IF(AK306=TRUE,AR306,0))))))))","v":0},{"$f":"IF(AQ310=0,AS310,AQ310)","v":0},{"$f":"IF(AL300=TRUE,AS300,IF(AL302=TRUE,AS302,IF(AL304=TRUE,AS304,IF(AL306=TRUE,AS306,IF(AM300=TRUE,AT300,IF(AM302=TRUE,AT302,IF(AM304=TRUE,AT304,IF(AM306=TRUE,AT306,0))))))))","v":0},null,{"$f":"IF(AJ300=TRUE,AU300,IF(AJ302=TRUE,AU302,IF(AJ304=TRUE,AU304,IF(AJ306=TRUE,AU306,IF(AK300=TRUE,AV300,IF(AK302=TRUE,AV302,IF(AK304=TRUE,AV304,IF(AK306=TRUE,AV306,0))))))))","v":0},{"$f":"IF(AU310=0,AW310,AU310)","v":0},{"$f":"IF(AL300=TRUE,AW300,IF(AL302=TRUE,AW302,IF(AL304=TRUE,AW304,IF(AL306=TRUE,AW306,IF(AM300=TRUE,AX300,IF(AM302=TRUE,AX302,IF(AM304=TRUE,AX304,IF(AM306=TRUE,AX306,0))))))))","v":0},null,{"$f":"IF(AJ300=TRUE,AY300,IF(AJ302=TRUE,AY302,IF(AJ304=TRUE,AY304,IF(AJ306=TRUE,AY306,IF(AK300=TRUE,AZ300,IF(AK302=TRUE,AZ302,IF(AK304=TRUE,AZ304,IF(AK306=TRUE,AZ306,0))))))))","v":0},{"$f":"IF(AY310=0,BA310,AY310)","v":0},{"$f":"IF(AL300=TRUE,BA300,IF(AL302=TRUE,BA302,IF(AL304=TRUE,BA304,IF(AL306=TRUE,BA306,IF(AM300=TRUE,BB300,IF(AM302=TRUE,BB302,IF(AM304=TRUE,BB304,IF(AM306=TRUE,BB306,0))))))))","v":0}]
[]
[null,null,null,null,null,null,null,null,null,null,null,null,null,null,null,null,"Y =",0,"mm",null,"Z =",{"$f":"V304","v":0},"mm",null,null,null,null,null,null,null,null,null,null,null,null,{"$f":"IF(AJ300=TRUE,\"GAP 16\",IF(AJ302=TRUE,\"GAP 20\",IF(AJ304=TRUE,\"GAP 28\",IF(AJ306=TRUE,\"GAP 32\",IF(AK300=TRUE,\"GAP 16-AS\",IF(AK302=TRUE,\"GAP 20-AS\",IF(AK304=TRUE,\"GAP 28-AS\",IF(AK306=TRUE,\"GAP 32-AS\",\"\"))))))))","v":""},{"$f":"IF(AJ312=\"\",AL312,AJ312)","v":""},{"$f":"IF(AL300=TRUE,\"\",IF(AL302=TRUE,\"\",IF(AL304=TRUE,\"\",IF(AL306=TRUE,\"\",IF(AM300=TRUE,\"\",IF(AM302=TRUE,\"\",IF(AM304=TRUE,\"\",IF(AM306=TRUE,\"\",\"\"))))))))","v":""}]
[]
[]
[]
[null,null,null,null,null,null,null,null,"=",{"$f":"Translation!A77","v":"Eingabefelder"}]
[]
[]
[]
[]
[]
[null,null,null,{"$f":"Translation!A118&A341&AK334","v":"Winkel-Greifer  "},null,null,null,null,null,null,null,null,null,null,null,null,null,null,null,null,null,null,null,null,null,null,null,null,null,null,null,null,null,null,null,null,null,null,null,null,null,null,"Eigenmassenträgheitsmoment J0 (kgm2)",null,null,1,"Masse m (kg)",null,null,null,"Maß h (mm)",null,null,null,"Eigenmassenträgheitsmoment Jz (kgm2)",null,null,null,"Eigenmassenträgheitsmoment Jy (kgm2)"]
[]
[null,null,null,null,null,null,null,null,null,null,null,null,null,null,null,null,null,null,null,null,"J  =",{"$f":"(AR332+(POWER(V332/1000,2)*AV332))","v":0},"kgm2",null,null,null,null,null,null,null,null,null,null,null,null,false,false,false,false,null,null,null,{"$f":"IF($AT$322=1,BC324,IF($AT$322=2,BG324,0))","v":1.2E-5},{"$f":"IF($AT$322=1,BD324,IF($AT$322=2,BH324,0))","v":1.2999999999999999E-5},{"$f":"IF($AT$322=1,BE324,IF($AT$322=2,BI324,0))","v":2.7300000000000002E-4},{"$f":"IF($AT$322=1,BF324,IF($AT$322=2,BJ324,0))","v":2.7900000000000001E-4},0.13,0.13500000000000001,0.77,0.8,45.6,44.9,86.2,84.5,1.2E-5,1.2999999999999999E-5,2.7300000000000002E-4,2.7900000000000001E-4,7.4999999999999993E-5,7.6000000000000004E-5,1.4469999999999999E-3,1.7110000000000001E-3]
[]
[null,null,null,null,null,null,null,null,null,null,null,null,null,null,null,null,null,null,null,null,"m  =",{"$f":"AV332","v":0},"kg",null,null,null,null,null,null,null,null,null,null,null,null,false,false,false,false,null,null,null,{"$f":"IF($AT$322=1,BC326,IF($AT$322=2,BG326,0))","v":3.8000000000000002E-5},{"$f":"IF($AT$322=1,BD326,IF($AT$322=2,BH326,0))","v":3.8999999999999999E-5},{"$f":"IF($AT$322=1,BE326,IF($AT$322=2,BI326,0))","v":7.3300000000000004E-4},{"$f":"IF($AT$322=1,BF326,IF($AT$322=2,BJ326,0))","v":7.4899999999999999E-4},0.24,0.25,1.35,1.42,55.6,55,106.9,106.1,3.8000000000000002E-5,3.8999999999999999E-5,7.3300000000000004E-4,7.4899999999999999E-4,2.2699999999999999E-4,2.31E-4,4.5880000000000001E-3,4.7159999999999997E-3]
[]
[null,null,null,null,null,null,null,null,null,null,null,null,null,null,null,null,null,null,null,null,"h  =",{"$f":"AZ332","v":0},"mm",null,null,null,null,null,null,null,null,null,null,null,null,false,false,null,null,null,null,null,{"$f":"IF($AT$322=1,BC328,IF($AT$322=2,BG328,0))","v":9.7999999999999997E-5},{"$f":"IF($AT$322=1,BD328,IF($AT$322=2,BH328,0))","v":1E-4},null,null,0.41,0.43,null,null,70.3,68.8,null,null,9.7999999999999997E-5,1E-4,null,null,6.0099999999999997E-4,6.2299999999999996E-4]
[]
[]
[]
[null,null,null,null,null,null,null,{"$f":"Translation!A76","v":"Massenschwerpunkts-Koordinaten"},null,null,null,null,null,null,null,null,"X =",0,"mm",null,"R  =",{"$f":"SQRT(POWER(R332,2)+POWER(R334,2))","v":0},"mm",null,null,null,null,null,null,null,null,null,null,null,null,null,null,null,null,{"$f":"V326*R332","v":0},{"$f":"V326*R334","v":0},{"$f":"V326*V334","v":0},{"$f":"IF(AJ324=TRUE,AQ324,IF(AJ326=TRUE,AQ326,IF(AJ328=TRUE,AQ328,IF(AK324=TRUE,AR324,IF(AK326=TRUE,AR326,IF(AK328=TRUE,AR328,0))))))","v":0},{"$f":"IF(AQ332=0,AS332,AQ332)","v":0},{"$f":"IF(AL324=TRUE,AS324,IF(AL326=TRUE,AS326,IF(AL328=TRUE,AS328,IF(AM324=TRUE,AT324,IF(AM326=TRUE,AT326,IF(AM328=TRUE,AT328,0))))))","v":0},null,{"$f":"IF(AJ324=TRUE,AU324,IF(AJ326=TRUE,AU326,IF(AJ328=TRUE,AU328,IF(AK324=TRUE,AV324,IF(AK326=TRUE,AV326,IF(AK328=TRUE,AV328,0))))))","v":0},{"$f":"IF(AU332=0,AW332,AU332)","v":0},{"$f":"IF(AL324=TRUE,AW324,IF(AL326=TRUE,AW326,IF(AL328=TRUE,AW328,IF(AM324=TRUE,AX324,IF(AM326=TRUE,AX326,IF(AM328=TRUE,AX328,0))))))","v":0},null,{"$f":"IF(AJ324=TRUE,AY324,IF(AJ326=TRUE,AY326,IF(AJ328=TRUE,AY328,IF(AK324=TRUE,AZ324,IF(AK326=TRUE,AZ326,IF(AK328=TRUE,AZ328,0))))))","v":0},{"$f":"IF(AY332=0,BA332,AY332)","v":0},{"$f":"IF(AL324=TRUE,BA324,IF(AL326=TRUE,BA326,IF(AL328=TRUE,BA328,IF(AM324=TRUE,BB324,IF(AM326=TRUE,BB326,IF(AM328=TRUE,BB328,0))))))","v":0}]
[]
[null,null,null,null,null,null,null,null,null,null,null,null,null,null,null,null,"Y =",0,"mm",null,"Z =",{"$f":"V328","v":0},"mm",null,null,null,null,null,null,null,null,null,null,null,null,{"$f":"IF(AJ324=TRUE,\"PRG 26\",IF(AJ326=TRUE,\"PRG 34\",IF(AJ328=TRUE,\"PRG 42\",IF(AK324=TRUE,\"PRG 26-AS\",IF(AK326=TRUE,\"PRG 34-AS\",IF(AK328=TRUE,\"PRG 42-AS\",\"\"))))))","v":""},{"$f":"IF(AJ334=\"\",AL334,AJ334)","v":""},{"$f":"IF(AL324=TRUE,\"PRG 52\",IF(AL326=TRUE,\"PRG 64\",IF(AL328=TRUE,\"\",IF(AM324=TRUE,\"PRG 52-AS\",IF(AM326=TRUE,\"PRG 64-AS\",IF(AM328=TRUE,\"\",\"\"))))))","v":""}]
[]
[]
[]
[null,null,null,null,null,null,null,null,"=",{"$f":"Translation!A77","v":"Eingabefelder"}]
[]
[]
[{"$f":"\"  \"","v":"  "}]
[]
[]
[null,null,null,{"$f":"Translation!A118&A341&AK358","v":"Winkel-Greifer  "},null,null,null,null,null,null,null,null,null,null,null,null,null,null,null,null,null,null,null,null,null,null,null,null,null,null,null,null,null,null,null,null,null,null,null,null,null,null,"Eigenmassenträgheitsmoment J0 (kgm2)",null,null,1,"Masse m (kg)",null,null,null,"Maß h (mm)",null,null,null,"Eigenmassenträgheitsmoment Jz (kgm2)",null,null,null,"Eigenmassenträgheitsmoment Jy (kgm2)"]
[]
[null,null,null,null,null,null,null,null,null,null,null,null,null,null,null,null,null,null,null,null,"J  =",{"$f":"(AR356+(POWER(V356/1000,2)*AV356))","v":0},"kgm2",null,null,null,null,null,null,null,null,null,null,null,null,false,false,null,null,null,null,null,{"$f":"IF($AT$344=1,BC346,IF($AT$344=2,BG346,0))","v":4.1999999999999998E-5},{"$f":"IF($AT$344=1,BD346,IF($AT$344=2,BH346,0))","v":5.3000000000000001E-5},null,null,0.13,0.17,null,null,23.9,35,null,null,4.1999999999999998E-5,5.3000000000000001E-5,null,null,4.6999999999999997E-5,8.1000000000000004E-5]
[]
[null,null,null,null,null,null,null,null,null,null,null,null,null,null,null,null,null,null,null,null,"m  =",{"$f":"AV356","v":0},"kg",null,null,null,null,null,null,null,null,null,null,null,null,false,false,null,null,null,null,null,{"$f":"IF($AT$344=1,BC348,IF($AT$344=2,BG348,0))","v":1.1E-4},{"$f":"IF($AT$344=1,BD348,IF($AT$344=2,BH348,0))","v":1.5200000000000001E-4},null,null,0.24,0.33,null,null,27.7,40.200000000000003,null,null,1.1E-4,1.5200000000000001E-4,null,null,1.2400000000000001E-4,2.24E-4]
[]
[null,null,null,null,null,null,null,null,null,null,null,null,null,null,null,null,null,null,null,null,"h  =",{"$f":"AZ356","v":0},"mm",null,null,null,null,null,null,null,null,null,null,null,null,false,false,null,null,null,null,null,{"$f":"IF($AT$344=1,BC350,IF($AT$344=2,BG350,0))","v":2.5500000000000002E-4},{"$f":"IF($AT$344=1,BD350,IF($AT$344=2,BH350,0))","v":3.2000000000000003E-4},null,null,0.39,0.49,null,null,32.1,44.3,null,null,2.5500000000000002E-4,3.2000000000000003E-4,null,null,2.9100000000000003E-4,4.57E-4]
[]
[null,null,null,null,null,null,null,null,null,null,null,null,null,null,null,null,null,null,null,null,null,null,null,null,null,null,null,null,null,null,null,null,null,null,null,false,false,null,null,null,null,null,{"$f":"IF($AT$344=1,BC352,IF($AT$344=2,BG352,0))","v":7.67E-4},{"$f":"IF($AT$344=1,BD352,IF($AT$344=2,BH352,0))","v":9.5799999999999998E-4},null,null,0.76,0.95,null,null,40.299999999999997,55.5,null,null,7.67E-4,9.5799999999999998E-4,null,null,8.7600000000000004E-4,1.4159999999999999E-3]
[]
[null,null,null,null,null,null,null,null,null,null,null,null,null,null,null,null,null,0]
[]
[null,null,null,null,null,null,null,{"$f":"Translation!A76","v":"Massenschwerpunkts-Koordinaten"},null,null,null,null,null,null,null,null,"X =",0,"mm",null,"R  =",{"$f":"SQRT(POWER(R356,2)+POWER(R358,2))","v":0},"mm",null,null,null,null,null,null,null,null,null,null,null,null,null,null,null,null,{"$f":"V348*R356","v":0},{"$f":"V348*R358","v":0},{"$f":"V348*V358","v":0},{"$f":"IF(AJ346=TRUE,AQ346,IF(AJ348=TRUE,AQ348,IF(AJ350=TRUE,AQ350,IF(AJ352=TRUE,AQ352,IF(AK346=TRUE,AR346,IF(AK348=TRUE,AR348,IF(AK350=TRUE,AR350,IF(AK352=TRUE,AR352,0))))))))","v":0},{"$f":"IF(AQ356=0,AS356,AQ356)","v":0},{"$f":"IF(AL346=TRUE,AS346,IF(AL348=TRUE,AS348,IF(AL350=TRUE,AS350,IF(AL352=TRUE,AS352,IF(AM346=TRUE,AT346,IF(AM348=TRUE,AT348,IF(AM350=TRUE,AT350,IF(AM352=TRUE,AT352,0))))))))","v":0},null,{"$f":"IF(AJ346=TRUE,AU346,IF(AJ348=TRUE,AU348,IF(AJ350=TRUE,AU350,IF(AJ352=TRUE,AU352,IF(AK346=TRUE,AV346,IF(AK348=TRUE,AV348,IF(AK350=TRUE,AV350,IF(AK352=TRUE,AV352,0))))))))","v":0},{"$f":"IF(AU356=0,AW356,AU356)","v":0},{"$f":"IF(AL346=TRUE,AW346,IF(AL348=TRUE,AW348,IF(AL350=TRUE,AW350,IF(AL352=TRUE,AW352,IF(AM346=TRUE,AX346,IF(AM348=TRUE,AX348,IF(AM350=TRUE,AX350,IF(AM352=TRUE,AX352,0))))))))","v":0},null,{"$f":"IF(AJ346=TRUE,AY346,IF(AJ348=TRUE,AY348,IF(AJ350=TRUE,AY350,IF(AJ352=TRUE,AY352,IF(AK346=TRUE,AZ346,IF(AK348=TRUE,AZ348,IF(AK350=TRUE,AZ350,IF(AK352=TRUE,AZ352,0))))))))","v":0},{"$f":"IF(AY356=0,BA356,AY356)","v":0},{"$f":"IF(AL346=TRUE,BA346,IF(AL348=TRUE,BA348,IF(AL350=TRUE,BA350,IF(AL352=TRUE,BA352,IF(AM346=TRUE,BB346,IF(AM348=TRUE,BB348,IF(AM350=TRUE,BB350,IF(AM352=TRUE,BB352,0))))))))","v":0}]
[]
[null,null,null,null,null,null,null,null,null,null,null,null,null,null,null,null,"Y =",0,"mm",null,"Z =",{"$f":"V350","v":0},"mm",null,null,null,null,null,null,null,null,null,null,null,null,{"$f":"IF(AJ346=TRUE,\"PWG-plus 50\",IF(AJ348=TRUE,\"PWG-plus 64\",IF(AJ350=TRUE,\"PWG-plus 80\",IF(AJ352=TRUE,\"PWG-plus 100\",IF(AK346=TRUE,\"PWG-plus 50-AS\",IF(AK348=TRUE,\"PWG-plus 64-AS\",IF(AK350=TRUE,\"PWG-plus 80-AS\",IF(AK352=TRUE,\"PWG-plus 100-AS\",\"\"))))))))","v":""},{"$f":"IF(AJ358=\"\",AL358,AJ358)","v":""},{"$f":"IF(AL346=TRUE,\"\",IF(AL348=TRUE,\"\",IF(AL350=TRUE,\"\",IF(AL352=TRUE,\"\",IF(AM346=TRUE,\"\",IF(AM348=TRUE,\"\",IF(AM350=TRUE,\"\",IF(AM352=TRUE,\"\",\"\"))))))))","v":""}]
[]
[]
[]
[null,null,null,null,null,null,null,null,"=",{"$f":"Translation!A77","v":"Eingabefelder"}]
[]
[]
[]
[]
[]
[null,null,null,{"$f":"Translation!A128","v":"Zubehör"}]
[]
[null,null,null,null,null,null,null,null,null,null,{"$f":"Translation!A129","v":"Zubehörvarianten"}]
[]
[null,null,null,null,null,null,null,null,null,null,{"$f":"Translation!A299","v":"Anbausatz Energieschlauch AS-DRL 20/25-ES"}]
[null,null,null,null,null,null,null,null,null,null,{"$f":"Translation!A131","v":"und"}]
[null,null,null,null,null,null,null,null,null,null,{"$f":"Translation!A298","v":"Anbausatz Winkeladapter AS-DRL 20/25-WA"}]
[]
[null,null,null,null,null,null,null,null,null,null,{"$f":"Translation!A130","v":"müssen bei der Berechnung des Massenträgheitsmomentes nicht berücksichtigt werden. Sie können auf der \"DRL-Berechnungsseite\" angewählt werden !"}]

{"sheet":"Grafik","index":5,"n_rows":0,"n_cols":0,"rows_kept":0,"cut":false,"hidden":false,"merged":[]}

{"sheet":"Info-Anbau","index":6,"n_rows":40,"n_cols":12,"rows_kept":40,"cut":false,"hidden":false,"merged":[[39,3,42,19],[9,3,10,3],[9,11,10,11]]}
[]
[{"$f":"Translation!A14","v":"Toolbox-Pick&Place - MODULARE MONTAGEAUTOMATION"}]
[{"$f":"Translation!A38","v":"Berechnung PickPlace-Unit PPU-P"}]
[]
[]
[]
[]
[]
[]
[null,null,null,{"$f":"Translation!A27","v":"Beispiel 1"},null,null,null,null,null,null,null,{"$f":"Translation!A28","v":"Beispiel 2"}]
[]
[]
[]
[]
[]
[]
[]
[]
[]
[]
[]
[]
[]
[]
[]
[]
[]
[]
[]
[]
[]
[]
[]
[]
[]
[]
[]
[]
[]
[null,null,null,{"$f":"Translation!A302","v":"Für die Berechnung der Pick&Place-Unit muss der Schwerpunkt der bewegten Masse ermittelt werden."}]

{"sheet":"Massenschwerpunkt","index":7,"n_rows":362,"n_cols":54,"rows_kept":362,"cut":false,"hidden":false,"merged":[[53,26,53,32],[97,26,97,32],[119,26,119,32],[75,26,75,32],[343,26,343,32],[355,7,357,15],[141,26,141,32],[297,26,297,32],[321,26,321,32],[205,26,205,32],[215,7,217,15],[237,7,239,15],[331,7,333,15],[309,7,311,15],[261,7,263,15],[285,7,287,15],[227,26,227,32],[249,26,249,32],[273,26,273,32],[163,26,163,32],[107,7,109,15],[29,3,29,5],[29,8,29,9],[63,7,65,15],[55,7,55,10],[19,3,19,6],[20,3,20,6],[12,24,12,25],[25,3,25,6],[85,7,87,15],[16,3,16,6],[22,3,22,6],[17,3,17,6],[12,3,12,6],[12,15,12,16],[12,21,12,22],[27,3,27,6],[29,16,31,19],[9,28,10,32],[11,28,12,32],[151,7,153,15],[173,7,175,15],[12,17,12,18],[12,19,12,20],[9,3,10,20],[21,3,21,6],[18,3,18,6],[26,3,26,6],[129,7,131,15],[13,3,13,6],[14,3,14,6],[23,3,23,6],[24,3,24,6],[15,3,15,6]]}
[]
[{"$f":"Translation!A14","v":"Toolbox-Pick&Place - MODULARE MONTAGEAUTOMATION"}]
[{"$f":"Translation!A312","v":"Berechnung Massenschwerpunkt"}]
[]
[]
[]
[]
[]
[]
[null,null,null,{"$f":"Translation!A313","v":"Gesamtmassenschwerpunkt aus Einzelkörperberechnung"},null,null,null,null,null,null,null,null,null,null,null,null,null,null,null,null,null,null,null,null,null,null,null,null,{"$f":"Translation!A63","v":"Körper-"}]
[]
[null,null,null,null,null,null,null,null,null,null,null,null,null,null,null,null,null,null,null,null,null,null,null,null,null,null,null,null,{"$f":"Translation!A64","v":"auswahl"}]
[null,null,null,{"$f":"Translation!A54","v":"Bezeichnung"},null,null,null,null,"m (kg)","X (mm)","Y (mm)","Z (mm)","m x Z","m x X","m x Y",{"$f":"Translation!A55","v":"Bezeichnung 1"},null,{"$f":"Translation!A56","v":"Bezeichnung 2"},null,{"$f":"Translation!A57","v":"Bezeichnung 3"},null,{"$f":"Translation!A58","v":"Bezeichnung 4"},null,null,{"$f":"Translation!A59","v":"löschen"}]
[null,null,null,{"$f":"IF(D35=\"\",\"\",D35)","v":""},null,null,null,{"$f":"IF(H35=\"\",\"\",H35)","v":""},"","","","",{"$f":"M35","v":0},0,0,{"$f":"IF(P35=\"\",\"\",P35)","v":""},"","","","","","",""]
[null,null,null,"",null,null,null,"","","","","",0,0,0,"","","","","","","",""]
[null,null,null,"",null,null,null,"","","","","",0,0,0,"","","","","","","",""]
[null,null,null,"",null,null,null,"","","","","",0,0,0,"","","","","","","",""]
[null,null,null,"",null,null,null,"","","","","",0,0,0,"","","","","","","",""]
[null,null,null,"",null,null,null,"","","","","",0,0,0,"","","","","","","",""]
[null,null,null,"",null,null,null,"","","","","",0,0,0,"","","","","","","",""]
[null,null,null,"",null,null,null,"","","","","",0,0,0,"","","","","","","",""]
[null,null,null,"",null,null,null,"","","","","",0,0,0,"","","","","","","",""]
[null,null,null,"",null,null,null,"","","","","",0,0,0,"","","","","","","",""]
[null,null,null,"",null,null,null,"","","","","",0,0,0,"","","","","","","",""]
[null,null,null,"",null,null,null,"","","","","",0,0,0,"","","","","","","",""]
[null,null,null,"",null,null,null,"","","","","",0,0,0,"","","","","","","",""]
[null,null,null,"",null,null,null,"","","","","",0,0,0,"","","","","","","",""]
[null,null,null,"",null,null,null,"","","","","",0,0,0,"","","","","","","",""]
[]
[null,null,null,{"$f":"Translation!A61","v":"Gesamtmasse"},null,null,null,"m ges =",{"$f":"SUM(I14:I28)","v":0},null,"kg",null,{"$f":"SUM(M14:M28)","v":0},{"$f":"SUM(N14:N28)","v":0},{"$f":"SUM(O14:O28)","v":0},null,{"$f":"Translation!A62","v":"Koordinaten des Gesamtmassenschwerpunkts"},null,null,null,"Xs =",{"$f":"IF(OR(I30=0,I30<0),0,N30/I30)","v":0},"mm"]
[null,null,null,null,null,null,null,null,null,null,null,null,null,null,null,null,null,null,null,null,"Ys =",{"$f":"IF(OR(I30=0,I30<0),0,O30/I30)","v":0},"mm"]
[null,null,null,null,null,null,null,null,null,null,null,null,null,null,null,null,null,null,null,null,"Zs =",{"$f":"IF(OR(I30=0,I30<0),0,M30/I30)","v":0},"mm"]
[]
[]
[]
[]
[]
[]
[]
[]
[]
[]
[]
[]
[]
[]
[]
[]
[]
[]
[]
[]
[]
[null,null,null,{"$f":"Translation!A315","v":"Direkte Eingabe der Masse"}]
[]
[null,null,null,null,null,null,null,{"$f":"Translation!A75","v":"Masse des Körpers"},null,null,null,null,null,null,null,null,"m =",0,"kg",null,"m  =",{"$f":"R56","v":0},"kg",null,null,null,null,null,null,null,null,null,null,null,null,null,null,null,null,{"$f":"V56*(-1)","v":0}]
[]
[]
[]
[]
[]
[null,null,null,null,null,null,null,null,null,null,null,null,null,null,null,null,null,0]
[]
[null,null,null,null,null,null,null,{"$f":"Translation!A76","v":"Massenschwerpunkts-Koordinaten"},null,null,null,null,null,null,null,null,"X =",0,"mm",null,null,null,null,null,null,null,null,null,null,null,null,null,null,null,null,null,null,null,null,{"$f":"V56*R64","v":0},{"$f":"V56*R66","v":0},{"$f":"V56*V66","v":0}]
[]
[null,null,null,null,null,null,null,null,null,null,null,null,null,null,null,null,"Y =",0,"mm",null,"Z =",0,"mm",null,null,null,null,null,null,null,null,null,null,null,null,null,null,null,null,{"$f":"AN56*R64","v":0},{"$f":"AN56*R66","v":0},{"$f":"AN56*V66","v":0}]
[]
[]
[]
[null,null,null,null,null,null,null,null,"=",{"$f":"Translation!A77","v":"Eingabefelder"}]
[]
[]
[]
[]
[]
[null,null,null,{"$f":"Translation!A83","v":"Quader"},null,null,null,null,null,null,null,null,null,null,null,null,null,{"$f":"Translation!A84","v":"Dichte"}]
[]
[null,null,null,null,null,null,null,{"$f":"Translation!A85","v":"Länge"},"L  =",0,"mm",null,null,null,null,null,null,7.85,"kg/dm3",null,"m  =",{"$f":"((J78*J80*J82)/1000000)*AP78","v":0},"kg",null,null,null,null,null,null,null,null,null,null,null,null,null,null,null,null,{"$f":"V78*(-1)","v":0},false,{"$f":"IF(AO78=TRUE,7.85,IF(AO80=TRUE,2.7,IF(AO82=TRUE,R82,0)))","v":0}]
[]
[null,null,null,null,null,null,null,{"$f":"Translation!A86","v":"Breite"},"B  =",0,"mm",null,null,null,null,null,null,2.7,"kg/dm3",null,null,null,null,null,null,null,null,null,null,null,null,null,null,null,null,null,null,null,null,null,false]
[]
[null,null,null,null,null,null,null,{"$f":"Translation!A87","v":"Höhe"},"H  =",0,"mm",null,null,null,null,null,null,0,"kg/dm3",null,null,null,null,null,null,null,null,null,null,null,null,null,null,null,null,null,null,null,null,null,false]
[]
[]
[]
[null,null,null,null,null,null,null,{"$f":"Translation!A76","v":"Massenschwerpunkts-Koordinaten"},null,null,null,null,null,null,null,null,"X =",0,"mm",null,null,null,null,null,null,null,null,null,null,null,null,null,null,null,null,null,null,null,null,{"$f":"V78*R86","v":0},{"$f":"V78*R88","v":0},{"$f":"V78*V88","v":0}]
[]
[null,null,null,null,null,null,null,null,null,null,null,null,null,null,null,null,"Y =",0,"mm",null,"Z =",0,"mm",null,null,null,null,null,null,null,null,null,null,null,null,null,null,null,null,{"$f":"AN78*R86","v":0},{"$f":"AN78*R88","v":0},{"$f":"AN78*V88","v":0}]
[]
[]
[]
[null,null,null,null,null,null,null,null,"=",{"$f":"Translation!A77","v":"Eingabefelder"}]
[]
[]
[]
[]
[]
[null,null,null,{"$f":"Translation!A92","v":"Scheibe"},null,null,null,null,null,null,null,null,null,null,null,null,null,{"$f":"Translation!A93","v":"Dichte"}]
[]
[null,null,null,null,null,null,null,{"$f":"Translation!A94","v":"Durch-"},"D  =",0,"mm",null,null,null,null,null,null,7.85,"kg/dm3",null,"m  =",{"$f":"(POWER(J100/100,2)/4)*3.1416*(J104/100)*AP100","v":0},"kg",null,null,null,null,null,null,null,null,null,null,null,null,null,null,null,null,{"$f":"V100*(-1)","v":0},false,{"$f":"IF(AO100=TRUE,7.85,IF(AO102=TRUE,2.7,IF(AO104=TRUE,R104,0)))","v":0}]
[]
[null,null,null,null,null,null,null,{"$f":"Translation!A95","v":"messer"},null,null,null,null,null,null,null,null,null,2.7,"kg/dm3",null,null,null,null,null,null,null,null,null,null,null,null,null,null,null,null,null,null,null,null,null,false]
[]
[null,null,null,null,null,null,null,{"$f":"Translation!A96","v":"Dicke"},"H  =",0,"mm",null,null,null,null,null,null,0,"kg/dm3",null,null,null,null,null,null,null,null,null,null,null,null,null,null,null,null,null,null,null,null,null,false]
[]
[]
[]
[null,null,null,null,null,null,null,{"$f":"Translation!A76","v":"Massenschwerpunkts-Koordinaten"},null,null,null,null,null,null,null,null,"X =",0,"mm",null,null,null,null,null,null,null,null,null,null,null,null,null,null,null,null,null,null,null,null,{"$f":"V100*R108","v":0},{"$f":"V100*R110","v":0},{"$f":"V100*V110","v":0}]
[]
[null,null,null,null,null,null,null,null,null,null,null,null,null,null,null,null,"Y =",0,"mm",null,"Z =",0,"mm",null,null,null,null,null,null,null,null,null,null,null,null,null,null,null,null,{"$f":"AN100*R108","v":0},{"$f":"AN100*R110","v":0},{"$f":"AN100*V110","v":0}]
[]
[]
[]
[null,null,null,null,null,null,null,null,"=",{"$f":"Translation!A77","v":"Eingabefelder"}]
[]
[]
[]
[]
[]
[null,null,null,{"$f":"Translation!A316","v":"Welle längs"},null,null,null,null,null,null,null,null,null,null,null,null,null,{"$f":"Translation!A99","v":"Dichte"}]
[]
[null,null,null,null,null,null,null,{"$f":"Translation!A100","v":"Durch-"},"Da  =",0,"mm",null,null,null,null,null,null,7.85,"kg/dm3",null,"m  =",{"$f":"(POWER(AJ122/100,2)-POWER(AJ124/100,2))*(3.1416*(J126/100)/4)*AP122","v":0},"kg",null,null,null,null,null,null,null,null,null,null,null,null,{"$f":"IF(OR(J122=\"\",J124=\"\"),0,J122)","v":0},null,null,null,{"$f":"V122*(-1)","v":0},false,{"$f":"IF(AO122=TRUE,7.85,IF(AO124=TRUE,2.7,IF(AO126=TRUE,R126,0)))","v":0}]
[]
[null,null,null,null,null,null,null,{"$f":"Translation!A101","v":"messer"},"Di  =",0,"mm",null,null,null,null,null,null,2.7,"kg/dm3",null,null,null,null,null,null,null,null,null,null,null,null,null,null,null,null,{"$f":"IF(OR(J124=\"\",J122=\"\"),0,J124)","v":0},null,null,null,null,false]
[]
[null,null,null,null,null,null,null,{"$f":"Translation!A102","v":"Länge"},"L  =",0,"mm",null,null,null,null,null,null,0,"kg/dm3",null,null,null,null,null,null,null,null,null,null,null,null,null,null,null,null,null,null,null,null,null,false]
[]
[]
[]
[null,null,null,null,null,null,null,{"$f":"Translation!A76","v":"Massenschwerpunkts-Koordinaten"},null,null,null,null,null,null,null,null,"X =",0,"mm",null,null,null,null,null,null,null,null,null,null,null,null,null,null,null,null,null,null,null,null,{"$f":"V122*R130","v":0},{"$f":"V122*R132","v":0},{"$f":"V122*V132","v":0}]
[]
[null,null,null,null,null,null,null,null,null,null,null,null,null,null,null,null,"Y =",0,"mm",null,"Z =",0,"mm",null,null,null,null,null,null,null,null,null,null,null,null,null,null,null,null,{"$f":"AN122*R130","v":0},{"$f":"AN122*R132","v":0},{"$f":"AN122*V132","v":0}]
[]
[]
[]
[null,null,null,null,null,null,null,null,"=",{"$f":"Translation!A77","v":"Eingabefelder"}]
[]
[]
[]
[]
[]
[null,null,null,{"$f":"Translation!A317","v":"Welle quer"},null,null,null,null,null,null,null,null,null,null,null,null,null,{"$f":"Translation!A105","v":"Dichte"}]
[]
[null,null,null,null,null,null,null,{"$f":"Translation!A106","v":"Durch-"},"Da  =",0,"mm",null,null,null,null,null,null,7.85,"kg/dm3",null,"m  =",{"$f":"(POWER(AJ144/100,2)-POWER(AJ146/100,2))*(3.1416*(J148/100)/4)*AP144","v":0},"kg",null,null,null,null,null,null,null,null,null,null,null,null,{"$f":"IF(OR(J144=\"\",J146=\"\"),0,J144)","v":0},null,null,null,{"$f":"V144*(-1)","v":0},false,{"$f":"IF(AO144=TRUE,7.85,IF(AO146=TRUE,2.7,IF(AO148=TRUE,R148,0)))","v":0}]
[]
[null,null,null,null,null,null,null,{"$f":"Translation!A107","v":"messer"},"Di  =",0,"mm",null,null,null,null,null,null,2.7,"kg/dm3",null,null,null,null,null,null,null,null,null,null,null,null,null,null,null,null,{"$f":"IF(OR(J146=\"\",J144=\"\"),0,J146)","v":0},null,null,null,null,false]
[]
[null,null,null,null,null,null,null,{"$f":"Translation!A108","v":"Länge"},"L  =",0,"mm",null,null,null,null,null,null,0,"kg/dm3",null,null,null,null,null,null,null,null,null,null,null,null,null,null,null,null,null,null,null,null,null,false]
[]
[]
[]
[null,null,null,null,null,null,null,{"$f":"Translation!A76","v":"Massenschwerpunkts-Koordinaten"},null,null,null,null,null,null,null,null,"X =",0,"mm",null,null,null,null,null,null,null,null,null,null,null,null,null,null,null,null,null,null,null,null,{"$f":"V144*R152","v":0},{"$f":"V144*R154","v":0},{"$f":"V144*V154","v":0}]
[]
[null,null,null,null,null,null,null,null,null,null,null,null,null,null,null,null,"Y =",0,"mm",null,"Z =",0,"mm",null,null,null,null,null,null,null,null,null,null,null,null,null,null,null,null,{"$f":"AN144*R152","v":0},{"$f":"AN144*R154","v":0},{"$f":"AN144*V154","v":0}]
[]
[]
[]
[null,null,null,null,null,null,null,null,"=",{"$f":"Translation!A77","v":"Eingabefelder"}]
[]
[]
[]
[]
[]
[]
[]
[]
[]
[]
[]
[]
[]
[]
[]
[]
[]
[]
[]
[]
[]
[]
[]
[]
[]
[]
[]
[null,null,null,{"$f":"Translation!A115","v":"Greifmodule"}]
[]
[null,null,null,{"$f":"Translation!A116","v":"Parallel-Greifer"},null,null,null,{"$f":"A341&Translation!A116","v":" Parallel-Greifer"},null,null,null,{"$f":"A341&Translation!A116","v":" Parallel-Greifer"},null,null,null,null,null,{"$f":"A342&Translation!A117","v":"3-Backen-Greifer   "},null,null,null,{"$f":"A341&A341&A341&Translation!A118","v":"   Winkel-Greifer"},null,null,null,null,null,null,{"$f":"Translation!A119","v":"Winkel-Parallel-Greifer"}]
[null,null,null,"    PGN-plus",null,null,"MPG / MPG-plus",null,null,null,null,"GMP",null,null,null,null,"     MPZ / PZN-plus",null,null,null,"GAP",null,null,null,"PRG",null,null,null,null,"PWG-plus"]
[]
[]
[]
[]
[]
[]
[]
[]
[]
[]
[]
[]
[]
[]
[]
[]
[null,null,null,{"$f":"Translation!A116&A341&AJ218","v":"Parallel-Greifer "},null,null,null,null,null,null,null,null,null,null,null,null,null,null,null,null,null,null,null,null,null,null,null,null,null,null,null,null,null,null,null,null,null,null,null,null,null,null,null,null,null,null,"Masse m (kg)",null,null,null,"Maß h (mm)"]
[]
[null,null,null,null,null,null,null,null,null,null,null,null,null,null,null,null,null,null,null,null,"m  =",{"$f":"AU216","v":0},"kg",null,null,null,null,null,null,null,null,null,null,null,null,false,false,null,null,null,null,null,null,null,null,null,0.08,0.1,null,null,9.5,21.7]
[]
[null,null,null,null,null,null,null,null,null,null,null,null,null,null,null,null,null,null,null,null,"h  =",{"$f":"AY216","v":0},"mm",null,null,null,null,null,null,null,null,null,null,null,null,false,false,null,null,null,null,null,null,null,null,null,0.17,0.21,null,null,19.100000000000001,29.2]
[]
[null,null,null,null,null,null,null,null,null,null,null,null,null,null,null,null,null,null,null,null,null,null,null,null,null,null,null,null,null,null,null,null,null,null,null,false,false,null,null,null,null,null,null,null,null,null,0.28000000000000003,0.37,null,null,23.5,34.6]
[]
[]
[]
[null,null,null,null,null,null,null,{"$f":"Translation!A76","v":"Massenschwerpunkts-Koordinaten"},null,null,null,null,null,null,null,null,"X =",0,"mm",null,"h  =",{"$f":"V210","v":0},"mm",null,null,null,null,null,null,null,null,null,null,null,null,null,null,null,null,{"$f":"V208*R216","v":0},{"$f":"V208*R218","v":0},{"$f":"V208*V218","v":0},null,null,null,null,{"$f":"IF(AJ208=TRUE,AU208,IF(AJ210=TRUE,AU210,IF(AJ212=TRUE,AU212,IF(AK208=TRUE,AV208,IF(AJ218=TRUE,AV210,IF(AK212=TRUE,AV212,0))))))","v":0},null,null,null,{"$f":"IF(AJ208=TRUE,AY208,IF(AJ210=TRUE,AY210,IF(AJ212=TRUE,AY212,IF(AK208=TRUE,AZ208,IF(AK210=TRUE,AZ210,IF(AK212=TRUE,AZ212,0))))))","v":0}]
[]
[null,null,null,null,null,null,null,null,null,null,null,null,null,null,null,null,"Y =",0,"mm",null,"Z =",0,"mm",null,null,null,null,null,null,null,null,null,null,null,null,{"$f":"IF(AJ208=TRUE,\"PGN-plus 40\",IF(AJ210=TRUE,\"PGN-plus 50\",IF(AJ212=TRUE,\"PGN-plus 64\",IF(AK208=TRUE,\"PGN-plus 40-AS/IS\",IF(AK210=TRUE,\"PGN-plus 50-AS/IS\",IF(AK212=TRUE,\"PGN-plus 64-AS/IS\",\"\"))))))","v":""}]
[]
[]
[]
[null,null,null,null,null,null,null,null,"=",{"$f":"Translation!A77","v":"Eingabefelder"}]
[]
[]
[]
[]
[]
[null,null,null,{"$f":"Translation!A116&A341&AK240","v":"Parallel-Greifer "},null,null,null,null,null,null,null,null,null,null,null,null,null,null,null,null,null,null,null,null,null,null,null,null,null,null,null,null,null,null,null,null,null,null,null,null,null,null,null,null,null,null,"Masse m (kg)",null,null,null,"Maß h (mm)"]
[]
[null,null,null,null,null,null,null,null,null,null,null,null,null,null,null,null,null,null,null,null,"m =",{"$f":"AV238","v":0},"kg",null,null,null,null,null,null,null,null,null,null,null,null,false,false,false,false,null,null,null,null,null,null,null,0.04,0.05,0.18,0.24,14.9,20.9,24.4,39.700000000000003]
[]
[null,null,null,null,null,null,null,null,null,null,null,null,null,null,null,null,null,null,null,null,"h  =",{"$f":"AZ238","v":0},"mm",null,null,null,null,null,null,null,null,null,null,null,null,false,false,false,false,null,null,null,null,null,null,null,0.06,7.0000000000000007E-2,0.35,0.4,16.600000000000001,24.6,29.3,34.5]
[]
[null,null,null,null,null,null,null,null,null,null,null,null,null,null,null,null,null,null,null,null,null,null,null,null,null,null,null,null,null,null,null,null,null,null,null,false,false,false,false,null,null,null,null,null,null,null,0.1,0.13,0.6,0.7,20.9,29.1,34.299999999999997,44.3]
[]
[]
[]
[null,null,null,null,null,null,null,{"$f":"Translation!A76","v":"Massenschwerpunkts-Koordinaten"},null,null,null,null,null,null,null,null,"X =",0,"mm",null,"h  =",{"$f":"V232","v":0},"mm",null,null,null,null,null,null,null,null,null,null,null,null,null,null,null,null,{"$f":"V230*R238","v":0},{"$f":"V230*R240","v":0},{"$f":"V230*V240","v":0},null,null,null,null,{"$f":"IF(AJ230=TRUE,AU230,IF(AJ232=TRUE,AU232,IF(AJ234=TRUE,AU234,IF(AK230=TRUE,AV230,IF(AK232=TRUE,AV232,IF(AK234=TRUE,AV234,0))))))","v":0},{"$f":"IF(AU238=0,AW238,AU238)","v":0},{"$f":"IF(AL230=TRUE,AW230,IF(AL232=TRUE,AW232,IF(AL234=TRUE,AW234,IF(AM230=TRUE,AX230,IF(AM232=TRUE,AX232,IF(AM234=TRUE,AX234,0))))))","v":0},null,{"$f":"IF(AJ230=TRUE,AY230,IF(AJ232=TRUE,AY232,IF(AJ234=TRUE,AY234,IF(AK230=TRUE,AZ230,IF(AK232=TRUE,AZ232,IF(AK234=TRUE,AZ234,0))))))","v":0},{"$f":"IF(AY238=0,BA238,AY238)","v":0},{"$f":"IF(AL230=TRUE,BA230,IF(AL232=TRUE,BA232,IF(AL234=TRUE,BA234,IF(AM230=TRUE,BB230,IF(AM232=TRUE,BB232,IF(AM234=TRUE,BB234,0))))))","v":0}]
[]
[null,null,null,null,null,null,null,null,null,null,null,null,null,null,null,null,"Y =",0,"mm",null,"Z =",0,"mm",null,null,null,null,null,null,null,null,null,null,null,null,{"$f":"IF(AJ230=TRUE,\"MPG 20\",IF(AJ232=TRUE,\"MPG-plus 25\",IF(AJ234=TRUE,\"MPG-plus 32\",IF(AK230=TRUE,\"MPG 20-AS/IS\",IF(AK232=TRUE,\"MPG-plus 25-AS/IS\",IF(AK234=TRUE,\"MPG-plus 32-AS/IS\",\"\"))))))","v":""},{"$f":"IF(AJ240=\"\",AL240,AJ240)","v":""},{"$f":"IF(AL230=TRUE,\"MPG-plus 40\",IF(AL232=TRUE,\"MPG 50\",IF(AL234=TRUE,\"MPG 64\",IF(AM230=TRUE,\"MPG-plus 40-AS/IS\",IF(AM232=TRUE,\"MPG 50-AS/IS\",IF(AM234=TRUE,\"MPG 64-AS/IS\",\"\"))))))","v":""}]
[]
[]
[]
[null,null,null,null,null,null,null,null,"=",{"$f":"Translation!A77","v":"Eingabefelder"}]
[]
[]
[]
[]
[]
[null,null,null,{"$f":"Translation!A116&A341&AK264","v":"Parallel-Greifer "},null,null,null,null,null,null,null,null,null,null,null,null,null,null,null,null,null,null,null,null,null,null,null,null,null,null,null,null,null,null,null,null,null,null,null,null,null,null,null,null,null,null,"Masse m (kg)",null,null,null,"Maß h (mm)"]
[]
[null,null,null,null,null,null,null,null,null,null,null,null,null,null,null,null,null,null,null,null,"m  =",{"$f":"AV262","v":0},"kg",null,null,null,null,null,null,null,null,null,null,null,null,false,false,false,false,null,null,null,null,null,null,null,0.14000000000000001,0.2,0.34,0.62,28.5,32.700000000000003,39.5,48.8]
[]
[null,null,null,null,null,null,null,null,null,null,null,null,null,null,null,null,null,null,null,null,"h  =",{"$f":"AZ262","v":0},"mm",null,null,null,null,null,null,null,null,null,null,null,null,false,false,false,false,null,null,null,null,null,null,null,0.16,0.24,0.4,0.68,33.9,38.5,46.5,55.7]
[]
[null,null,null,null,null,null,null,null,null,null,null,null,null,null,null,null,null,null,null,null,null,null,null,null,null,null,null,null,null,null,null,null,null,null,null,false,false,false,false,null,null,null,null,null,null,null,0.16,0.26,0.42,0.78,39.5,43,53.1,68.7]
[]
[null,null,null,null,null,null,null,null,null,null,null,null,null,null,null,null,null,null,null,null,null,null,null,null,null,null,null,null,null,null,null,null,null,null,null,false,false,false,false,null,null,null,null,null,null,null,0.18,0.28000000000000003,0.48,0.86,44.9,48.7,60.1,75.5]
[]
[]
[]
[null,null,null,null,null,null,null,{"$f":"Translation!A76","v":"Massenschwerpunkts-Koordinaten"},null,null,null,null,null,null,null,null,"X =",0,"mm",null,"h  =",{"$f":"V254","v":0},"mm",null,null,null,null,null,null,null,null,null,null,null,null,null,null,null,null,{"$f":"V252*R262","v":0},{"$f":"V252*R264","v":0},{"$f":"V252*V264","v":0},null,null,null,null,{"$f":"IF(AJ252=TRUE,AU252,IF(AJ254=TRUE,AU254,IF(AJ256=TRUE,AU256,IF(AJ258=TRUE,AU258,IF(AK252=TRUE,AV252,IF(AK254=TRUE,AV254,IF(AK256=TRUE,AV256,IF(AK258=TRUE,AV258,0))))))))","v":0},{"$f":"IF(AU262=0,AW262,AU262)","v":0},{"$f":"IF(AL252=TRUE,AW252,IF(AL254=TRUE,AW254,IF(AL256=TRUE,AW256,IF(AL258=TRUE,AW258,IF(AM252=TRUE,AX252,IF(AM254=TRUE,AX254,IF(AM256=TRUE,AX256,IF(AM258=TRUE,AX258,0))))))))","v":0},null,{"$f":"IF(AJ252=TRUE,AY252,IF(AJ254=TRUE,AY254,IF(AJ256=TRUE,AY256,IF(AJ258=TRUE,AY258,IF(AK252=TRUE,AZ252,IF(AK254=TRUE,AZ254,IF(AK256=TRUE,AZ256,IF(AK258=TRUE,AZ258,0))))))))","v":0},{"$f":"IF(AY262=0,BA262,AY262)","v":0},{"$f":"IF(AL252=TRUE,BA252,IF(AL254=TRUE,BA254,IF(AL256=TRUE,BA256,IF(AL258=TRUE,BA258,IF(AM252=TRUE,BB252,IF(AM254=TRUE,BB254,IF(AM256=TRUE,BB256,IF(AM258=TRUE,BB258,0))))))))","v":0}]
[]
[null,null,null,null,null,null,null,null,null,null,null,null,null,null,null,null,"Y =",0,"mm",null,"Z =",0,"mm",null,null,null,null,null,null,null,null,null,null,null,null,{"$f":"IF(AJ252=TRUE,\"GMP 12\",IF(AJ254=TRUE,\"GMP 12-D\",IF(AJ256=TRUE,\"GMP 12-S/K\",IF(AJ258=TRUE,\"GMP 12-X/Z\",IF(AK252=TRUE,\"GMP 16\",IF(AK254=TRUE,\"GMP 16-D\",IF(AK256=TRUE,\"GMP 16-S/K\",IF(AK258=TRUE,\"GMP 16-X/Z\",\"\"))))))))","v":""},{"$f":"IF(AJ264=\"\",AL264,AJ264)","v":""},{"$f":"IF(AL252=TRUE,\"GMP 20\",IF(AL254=TRUE,\"GMP 20-D\",IF(AL256=TRUE,\"GMP 20-S/K\",IF(AL258=TRUE,\"GMP 20-X/Z\",IF(AM252=TRUE,\"GMP 28\",IF(AM254=TRUE,\"GMP 28-D\",IF(AM256=TRUE,\"GMP 28-S/K\",IF(AM258=TRUE,\"GMP 28-X/Z\",\"\"))))))))","v":""}]
[]
[]
[]
[null,null,null,null,null,null,null,null,"=",{"$f":"Translation!A77","v":"Eingabefelder"}]
[]
[]
[]
[]
[]
[null,null,null,{"$f":"Translation!A117&A341&AK288","v":"3-Backen-Greifer    "},null,null,null,null,null,null,null,null,null,null,null,null,null,null,null,null,null,null,null,null,null,null,null,null,null,null,null,null,null,null,null,null,null,null,null,null,null,null,null,null,null,null,"Masse m (kg)",null,null,null,"Maß h (mm)"]
[]
[null,null,null,null,null,null,null,null,null,null,null,null,null,null,null,null,null,null,null,null,"m  =",{"$f":"AV286","v":0},"kg",null,null,null,null,null,null,null,null,null,null,null,null,false,false,false,false,null,null,null,null,null,null,null,0.08,0.09,0.13,0.15,18.8,26.5,15.8,21.1]
[]
[null,null,null,null,null,null,null,null,null,null,null,null,null,null,null,null,null,null,null,null,"h  =",{"$f":"AZ286","v":0},"mm",null,null,null,null,null,null,null,null,null,null,null,null,false,false,false,false,null,null,null,null,null,null,null,0.14000000000000001,0.19,0.27,0.32,22.4,33.700000000000003,19.899999999999999,26.5]
[]
[null,null,null,null,null,null,null,null,null,null,null,null,null,null,null,null,null,null,null,null,null,null,null,null,null,null,null,null,null,null,null,null,null,null,null,false,false,null,null,null,null,null,null,null,null,null,0.22,0.28000000000000003,null,null,25.7,34.1]
[]
[]
[]
[]
[]
[null,null,null,null,null,null,null,{"$f":"Translation!A76","v":"Massenschwerpunkts-Koordinaten"},null,null,null,null,null,null,null,null,"X =",0,"mm",null,"h  =",{"$f":"V278","v":0},"mm",null,null,null,null,null,null,null,null,null,null,null,null,null,null,null,null,{"$f":"V276*R286","v":0},{"$f":"V276*R288","v":0},{"$f":"V276*V288","v":0},null,null,null,null,{"$f":"IF(AJ276=TRUE,AU276,IF(AJ278=TRUE,AU278,IF(AJ280=TRUE,AU280,IF(AJ282=TRUE,AU282,IF(AK276=TRUE,AV276,IF(AK278=TRUE,AV278,IF(AK280=TRUE,AV280,IF(AK282=TRUE,AV282,0))))))))","v":0},{"$f":"IF(AU286=0,AW286,AU286)","v":0},{"$f":"IF(AL276=TRUE,AW276,IF(AL278=TRUE,AW278,IF(AL280=TRUE,AW280,IF(AL282=TRUE,AW282,IF(AM276=TRUE,AX276,IF(AM278=TRUE,AX278,IF(AM280=TRUE,AX280,IF(AM282=TRUE,AX282,0))))))))","v":0},null,{"$f":"IF(AJ276=TRUE,AY276,IF(AJ278=TRUE,AY278,IF(AJ280=TRUE,AY280,IF(AJ282=TRUE,AY282,IF(AK276=TRUE,AZ276,IF(AK278=TRUE,AZ278,IF(AK280=TRUE,AZ280,IF(AK282=TRUE,AZ282,0))))))))","v":0},{"$f":"IF(AY286=0,BA286,AY286)","v":0},{"$f":"IF(AL276=TRUE,BA276,IF(AL278=TRUE,BA278,IF(AL280=TRUE,BA280,IF(AL282=TRUE,BA282,IF(AM276=TRUE,BB276,IF(AM278=TRUE,BB278,IF(AM280=TRUE,BB280,IF(AM282=TRUE,BB282,0))))))))","v":0}]
[]
[null,null,null,null,null,null,null,null,null,null,null,null,null,null,null,null,"Y =",0,"mm",null,"Z =",0,"mm",null,null,null,null,null,null,null,null,null,null,null,null,{"$f":"IF(AJ276=TRUE,\"MPZ 30\",IF(AJ278=TRUE,\"MPZ 38\",IF(AJ280=TRUE,\"MPZ 45\",IF(AJ282=TRUE,\"\",IF(AK276=TRUE,\"MPZ 30-AS/IS\",IF(AK278=TRUE,\"MPZ 38-AS/IS\",IF(AK280=TRUE,\"MPZ 45-AS/IS\",IF(AK282=TRUE,\"\",\"\"))))))))","v":""},{"$f":"IF(AJ288=\"\",AL288,AJ288)","v":""},{"$f":"IF(AL276=TRUE,\"PZN-plus 40\",IF(AL278=TRUE,\"PZN-plus 50\",IF(AL280=TRUE,\"\",IF(AL282=TRUE,\"\",IF(AM276=TRUE,\"PZN-plus 40-AS/IS\",IF(AM278=TRUE,\"PZN-plus 50-AS/IS\",IF(AM280=TRUE,\"\",IF(AM282=TRUE,\"\",\"\"))))))))","v":""}]
[]
[]
[]
[null,null,null,null,null,null,null,null,"=",{"$f":"Translation!A77","v":"Eingabefelder"}]
[]
[]
[]
[]
[]
[null,null,null,{"$f":"Translation!A119&A341&AK312","v":"Winkel-Parallel-Greifer "},null,null,null,null,null,null,null,null,null,null,null,null,null,null,null,null,null,null,null,null,null,null,null,null,null,null,null,null,null,null,null,null,null,null,null,null,null,null,null,null,null,null,"Masse m (kg)",null,null,null,"Maß h (mm)"]
[]
[null,null,null,null,null,null,null,null,null,null,null,null,null,null,null,null,null,null,null,null,"m  =",{"$f":"AV310","v":0},"kg",null,null,null,null,null,null,null,null,null,null,null,null,false,false,null,null,null,null,null,null,null,null,null,0.16,0.22,null,null,35.299999999999997,47.4]
[]
[null,null,null,null,null,null,null,null,null,null,null,null,null,null,null,null,null,null,null,null,"h  =",{"$f":"AZ310","v":0},"mm",null,null,null,null,null,null,null,null,null,null,null,null,false,false,null,null,null,null,null,null,null,null,null,0.3,0.39,null,null,41.9,55.5]
[]
[null,null,null,null,null,null,null,null,null,null,null,null,null,null,null,null,null,null,null,null,null,null,null,null,null,null,null,null,null,null,null,null,null,null,null,false,false,null,null,null,null,null,null,null,null,null,0.54,0.7,null,null,50.7,67.900000000000006]
[]
[null,null,null,null,null,null,null,null,null,null,null,null,null,null,null,null,null,null,null,null,null,null,null,null,null,null,null,null,null,null,null,null,null,null,null,false,false,null,null,null,null,null,null,null,null,null,1.03,1.33,null,null,62.6,82.5]
[]
[]
[]
[null,null,null,null,null,null,null,{"$f":"Translation!A76","v":"Massenschwerpunkts-Koordinaten"},null,null,null,null,null,null,null,null,"X =",0,"mm",null,"h  =",{"$f":"V302","v":0},"mm",null,null,null,null,null,null,null,null,null,null,null,null,null,null,null,null,{"$f":"V300*R310","v":0},{"$f":"V300*R312","v":0},{"$f":"V300*V312","v":0},null,null,null,null,{"$f":"IF(AJ300=TRUE,AU300,IF(AJ302=TRUE,AU302,IF(AJ304=TRUE,AU304,IF(AJ306=TRUE,AU306,IF(AK300=TRUE,AV300,IF(AK302=TRUE,AV302,IF(AK304=TRUE,AV304,IF(AK306=TRUE,AV306,0))))))))","v":0},{"$f":"IF(AU310=0,AW310,AU310)","v":0},{"$f":"IF(AL300=TRUE,AW300,IF(AL302=TRUE,AW302,IF(AL304=TRUE,AW304,IF(AL306=TRUE,AW306,IF(AM300=TRUE,AX300,IF(AM302=TRUE,AX302,IF(AM304=TRUE,AX304,IF(AM306=TRUE,AX306,0))))))))","v":0},null,{"$f":"IF(AJ300=TRUE,AY300,IF(AJ302=TRUE,AY302,IF(AJ304=TRUE,AY304,IF(AJ306=TRUE,AY306,IF(AK300=TRUE,AZ300,IF(AK302=TRUE,AZ302,IF(AK304=TRUE,AZ304,IF(AK306=TRUE,AZ306,0))))))))","v":0},{"$f":"IF(AY310=0,BA310,AY310)","v":0},{"$f":"IF(AL300=TRUE,BA300,IF(AL302=TRUE,BA302,IF(AL304=TRUE,BA304,IF(AL306=TRUE,BA306,IF(AM300=TRUE,BB300,IF(AM302=TRUE,BB302,IF(AM304=TRUE,BB304,IF(AM306=TRUE,BB306,0))))))))","v":0}]
[]
[null,null,null,null,null,null,null,null,null,null,null,null,null,null,null,null,"Y =",0,"mm",null,"Z =",0,"mm",null,null,null,null,null,null,null,null,null,null,null,null,{"$f":"IF(AJ300=TRUE,\"GAP 16\",IF(AJ302=TRUE,\"GAP 20\",IF(AJ304=TRUE,\"GAP 28\",IF(AJ306=TRUE,\"GAP 32\",IF(AK300=TRUE,\"GAP 16-AS\",IF(AK302=TRUE,\"GAP 20-AS\",IF(AK304=TRUE,\"GAP 28-AS\",IF(AK306=TRUE,\"GAP 32-AS\",\"\"))))))))","v":""},{"$f":"IF(AJ312=\"\",AL312,AJ312)","v":""},{"$f":"IF(AL300=TRUE,\"\",IF(AL302=TRUE,\"\",IF(AL304=TRUE,\"\",IF(AL306=TRUE,\"\",IF(AM300=TRUE,\"\",IF(AM302=TRUE,\"\",IF(AM304=TRUE,\"\",IF(AM306=TRUE,\"\",\"\"))))))))","v":""}]
[]
[]
[]
[null,null,null,null,null,null,null,null,"=",{"$f":"Translation!A77","v":"Eingabefelder"}]
[]
[]
[]
[]
[]
[null,null,null,{"$f":"Translation!A118&A341&AK334","v":"Winkel-Greifer "},null,null,null,null,null,null,null,null,null,null,null,null,null,null,null,null,null,null,null,null,null,null,null,null,null,null,null,null,null,null,null,null,null,null,null,null,null,null,null,null,null,null,"Masse m (kg)",null,null,null,"Maß h (mm)"]
[]
[null,null,null,null,null,null,null,null,null,null,null,null,null,null,null,null,null,null,null,null,"m  =",{"$f":"AV332","v":0},"kg",null,null,null,null,null,null,null,null,null,null,null,null,false,false,false,false,null,null,null,null,null,null,null,0.13,0.13500000000000001,0.77,0.8,45.6,44.9,86.2,84.5]
[]
[null,null,null,null,null,null,null,null,null,null,null,null,null,null,null,null,null,null,null,null,"h  =",{"$f":"AZ332","v":0},"mm",null,null,null,null,null,null,null,null,null,null,null,null,false,false,false,false,null,null,null,null,null,null,null,0.24,0.25,1.35,1.42,55.6,55,106.9,106.1]
[]
[null,null,null,null,null,null,null,null,null,null,null,null,null,null,null,null,null,null,null,null,null,null,null,null,null,null,null,null,null,null,null,null,null,null,null,false,false,null,null,null,null,null,null,null,null,null,0.41,0.43,null,null,70.3,68.8]
[]
[]
[]
[null,null,null,null,null,null,null,{"$f":"Translation!A76","v":"Massenschwerpunkts-Koordinaten"},null,null,null,null,null,null,null,null,"X =",0,"mm",null,"h  =",{"$f":"V326","v":0},"mm",null,null,null,null,null,null,null,null,null,null,null,null,null,null,null,null,{"$f":"V324*R332","v":0},{"$f":"V324*R334","v":0},{"$f":"V324*V334","v":0},null,null,null,null,{"$f":"IF(AJ324=TRUE,AU324,IF(AJ326=TRUE,AU326,IF(AJ328=TRUE,AU328,IF(AK324=TRUE,AV324,IF(AK326=TRUE,AV326,IF(AK328=TRUE,AV328,0))))))","v":0},{"$f":"IF(AU332=0,AW332,AU332)","v":0},{"$f":"IF(AL324=TRUE,AW324,IF(AL326=TRUE,AW326,IF(AL328=TRUE,AW328,IF(AM324=TRUE,AX324,IF(AM326=TRUE,AX326,IF(AM328=TRUE,AX328,0))))))","v":0},null,{"$f":"IF(AJ324=TRUE,AY324,IF(AJ326=TRUE,AY326,IF(AJ328=TRUE,AY328,IF(AK324=TRUE,AZ324,IF(AK326=TRUE,AZ326,IF(AK328=TRUE,AZ328,0))))))","v":0},{"$f":"IF(AY332=0,BA332,AY332)","v":0},{"$f":"IF(AL324=TRUE,BA324,IF(AL326=TRUE,BA326,IF(AL328=TRUE,BA328,IF(AM324=TRUE,BB324,IF(AM326=TRUE,BB326,IF(AM328=TRUE,BB328,0))))))","v":0}]
[]
[null,null,null,null,null,null,null,null,null,null,null,null,null,null,null,null,"Y =",0,"mm",null,"Z =",0,"mm",null,null,null,null,null,null,null,null,null,null,null,null,{"$f":"IF(AJ324=TRUE,\"PRG 26\",IF(AJ326=TRUE,\"PRG 34\",IF(AJ328=TRUE,\"PRG 42\",IF(AK324=TRUE,\"PRG 26-AS\",IF(AK326=TRUE,\"PRG 34-AS\",IF(AK328=TRUE,\"PRG 42-AS\",\"\"))))))","v":""},{"$f":"IF(AJ334=\"\",AL334,AJ334)","v":""},{"$f":"IF(AL324=TRUE,\"PRG 52\",IF(AL326=TRUE,\"PRG 64\",IF(AL328=TRUE,\"\",IF(AM324=TRUE,\"PRG 52-AS\",IF(AM326=TRUE,\"PRG 64-AS\",IF(AM328=TRUE,\"\",\"\"))))))","v":""}]
[]
[]
[]
[null,null,null,null,null,null,null,null,"=",{"$f":"Translation!A77","v":"Eingabefelder"}]
[]
[]
[{"$f":"\" \"","v":" "}]
[]
[]
[null,null,null,{"$f":"Translation!A118&A341&AK358","v":"Winkel-Greifer PWG-plus 100-AS"},null,null,null,null,null,null,null,null,null,null,null,null,null,null,null,null,null,null,null,null,null,null,null,null,null,null,null,null,null,null,null,null,null,null,null,null,null,null,null,null,null,null,"Masse m (kg)",null,null,null,"Maß h (mm)"]
[]
[null,null,null,null,null,null,null,null,null,null,null,null,null,null,null,null,null,null,null,null,"m  =",{"$f":"AV356","v":0.95},"kg",null,null,null,null,null,null,null,null,null,null,null,null,false,false,null,null,null,null,null,null,null,null,null,0.13,0.17,null,null,23.9,35]
[]
[null,null,null,null,null,null,null,null,null,null,null,null,null,null,null,null,null,null,null,null,"h  =",{"$f":"AZ356","v":55.5},"mm",null,null,null,null,null,null,null,null,null,null,null,null,false,false,null,null,null,null,null,null,null,null,null,0.24,0.33,null,null,27.7,40.200000000000003]
[]
[null,null,null,null,null,null,null,null,null,null,null,null,null,null,null,null,null,null,null,null,null,null,null,null,null,null,null,null,null,null,null,null,null,null,null,false,false,null,null,null,null,null,null,null,null,null,0.39,0.49,null,null,32.1,44.3]
[]
[null,null,null,null,null,null,null,null,null,null,null,null,null,null,null,null,null,null,null,null,null,null,null,null,null,null,null,null,null,null,null,null,null,null,null,false,true,null,null,null,null,null,null,null,null,null,0.76,0.95,null,null,40.299999999999997,55.5]
[]
[]
[]
[null,null,null,null,null,null,null,{"$f":"Translation!A76","v":"Massenschwerpunkts-Koordinaten"},null,null,null,null,null,null,null,null,"X =",0,"mm",null,"h  =",{"$f":"V348","v":55.5},"mm",null,null,null,null,null,null,null,null,null,null,null,null,null,null,null,null,{"$f":"V346*R356","v":0},{"$f":"V346*R358","v":0},{"$f":"V346*V358","v":0},null,null,null,null,{"$f":"IF(AJ346=TRUE,AU346,IF(AJ348=TRUE,AU348,IF(AJ350=TRUE,AU350,IF(AJ352=TRUE,AU352,IF(AK346=TRUE,AV346,IF(AK348=TRUE,AV348,IF(AK350=TRUE,AV350,IF(AK352=TRUE,AV352,0))))))))","v":0.95},{"$f":"IF(AU356=0,AW356,AU356)","v":0.95},{"$f":"IF(AL346=TRUE,AW346,IF(AL348=TRUE,AW348,IF(AL350=TRUE,AW350,IF(AL352=TRUE,AW352,IF(AM346=TRUE,AX346,IF(AM348=TRUE,AX348,IF(AM350=TRUE,AX350,IF(AM352=TRUE,AX352,0))))))))","v":0},null,{"$f":"IF(AJ346=TRUE,AY346,IF(AJ348=TRUE,AY348,IF(AJ350=TRUE,AY350,IF(AJ352=TRUE,AY352,IF(AK346=TRUE,AZ346,IF(AK348=TRUE,AZ348,IF(AK350=TRUE,AZ350,IF(AK352=TRUE,AZ352,0))))))))","v":55.5},{"$f":"IF(AY356=0,BA356,AY356)","v":55.5},{"$f":"IF(AL346=TRUE,BA346,IF(AL348=TRUE,BA348,IF(AL350=TRUE,BA350,IF(AL352=TRUE,BA352,IF(AM346=TRUE,BB346,IF(AM348=TRUE,BB348,IF(AM350=TRUE,BB350,IF(AM352=TRUE,BB352,0))))))))","v":0}]
[]
[null,null,null,null,null,null,null,null,null,null,null,null,null,null,null,null,"Y =",0,"mm",null,"Z =",0,"mm",null,null,null,null,null,null,null,null,null,null,null,null,{"$f":"IF(AJ346=TRUE,\"PWG-plus 50\",IF(AJ348=TRUE,\"PWG-plus 64\",IF(AJ350=TRUE,\"PWG-plus 80\",IF(AJ352=TRUE,\"PWG-plus 100\",IF(AK346=TRUE,\"PWG-plus 50-AS\",IF(AK348=TRUE,\"PWG-plus 64-AS\",IF(AK350=TRUE,\"PWG-plus 80-AS\",IF(AK352=TRUE,\"PWG-plus 100-AS\",\"\"))))))))","v":"PWG-plus 100-AS"},{"$f":"IF(AJ358=\"\",AL358,AJ358)","v":"PWG-plus 100-AS"},{"$f":"IF(AL346=TRUE,\"\",IF(AL348=TRUE,\"\",IF(AL350=TRUE,\"\",IF(AL352=TRUE,\"\",IF(AM346=TRUE,\"\",IF(AM348=TRUE,\"\",IF(AM350=TRUE,\"\",IF(AM352=TRUE,\"\",\"\"))))))))","v":""}]
[]
[]
[]
[null,null,null,null,null,null,null,null,"=",{"$f":"Translation!A77","v":"Eingabefelder"}]

{"sheet":"Eingabe1","index":8,"n_rows":65,"n_cols":19,"rows_kept":65,"cut":false,"hidden":false,"merged":[[41,12,42,18],[37,2,42,8],[5,2,5,8],[7,13,7,14],[5,12,5,18],[7,15,7,18],[9,13,9,14],[10,13,10,14],[9,15,10,18],[8,15,8,18],[8,13,8,14],[31,12,31,14],[15,12,15,18],[11,13,11,14],[18,14,18,18],[21,14,21,18],[23,14,23,18],[28,2,33,8],[28,12,28,14],[29,12,29,14],[38,12,38,14],[35,12,35,14],[37,12,37,14],[30,12,30,14],[36,12,36,14]]}
[]
[{"$f":"Translation!A14","v":"Toolbox-Pick&Place - MODULARE MONTAGEAUTOMATION"}]
[{"$f":"Translation!A279","v":"Berechnung Drehlader"}]
[]
[]
[null,null,{"$f":"Translation!A280","v":"Drehlader DRL 20-…/DRL 25-…"},null,null,null,null,null,null,null,null,null,{"$f":"Translation!A171","v":"Ergebnisse aus der Berechnung des Massenträgheitsmoments"}]
[]
[null,null,null,null,null,null,null,null,null,null,null,null,"J ges ( kgm2 ) =",{"$f":"Massenträgheitsmoment!I30","v":0},null,{"$f":"Translation!A172","v":"Gesamtmassenträgheitsmoment"}]
[null,null,null,null,null,null,null,null,null,null,null,null,"m ges ( kg ) =",{"$f":"Massenträgheitsmoment!I31","v":0},null,{"$f":"Translation!A173","v":"Gesamtmasse "}]
[null,null,null,null,null,null,null,null,null,null,null,null,"Xs ( mm ) =",{"$f":"Massenträgheitsmoment!V30","v":0},null,{"$f":"Translation!A174","v":"Gesamtmassenschwerpunkts-Koordinaten"}]
[null,null,null,null,null,null,null,null,null,null,null,null,"Ys ( mm ) =",{"$f":"Massenträgheitsmoment!V31","v":0}]
[null,null,null,null,null,null,null,null,null,null,null,null,"Zs ( mm ) =",{"$f":"Massenträgheitsmoment!V32","v":0}]
[]
[]
[]
[null,null,null,null,null,null,null,null,null,null,null,null,{"$f":"Translation!A175","v":"Geben Sie Ihre Werte mit -Enter- ein !"}]
[]
[]
[null,null,null,null,null,null,null,null,null,null,null,null,180,null,{"$f":"Translation!A286","v":"Schwenkwinkel ( 90° - 180° )"}]
[]
[null,null,null,null,null,null,null,null,null,null,"p (bar)",null,6,null,"p = Betriebsdruck ( 3 bis 8 )"]
[null,null,null,null,null,null,null,null,null,null,null,null,"Nein",null,{"$f":"Translation!A298","v":"Anbausatz Winkeladapter AS-DRL 20/25-WA"}]
[]
[null,null,null,null,null,null,null,null,null,null,null,null,"Nein",null,{"$f":"Translation!A299","v":"Anbausatz Energieschlauch AS-DRL 20/25-ES"}]
[]
[]
[]
[null,null,null,null,null,null,null,null,null,null,null,null,{"$f":"Translation!A185","v":"Module"}]
[null,null,{"$f":"Translation!A289","v":"Taktzeiten sind reine Fahrzeiten für die kombinierte Hub-Dreh-Bewegung unter optimalen Bedingungen * . Verweilzeiten oder SPS-Reaktionszeiten sind nicht enthalten und bei der Ermittlung von Gesamt-Zykluszeiten zu berücksichtigen !"},null,null,null,null,null,null,null,null,null,{"$f":"Translation!A186","v":"Berechneter Modul-Typ"},null,null,null,{"$f":"\"DRL 20-\"&M19","v":"DRL 20-180"},null,{"$f":"\"DRL 25-\"&M19","v":"DRL 25-180"}]
[null,null,null,null,null,null,null,null,null,null,null,null,{"$f":"Translation!A294","v":"Hubkraft  (N)"},null,null,null,"245 ( 6 bar )",null,"321 ( 5 bar )"]
[null,null,null,null,null,null,null,null,null,null,null,null,{"$f":"Translation!A288","v":"Antriebsmoment  ( Nm )"},null,null,null,"2,2 ( 6 bar )",null,"3,7 ( 5 bar )"]
[null,null,null,null,null,null,null,null,null,null,null,null,{"$f":"Translation!A246","v":"Schwenkwinkelbereich ( ° )"},null,null,null,{"$f":"IF(OR(Q36>1,N9>Q56),C54,\"90 - 180\")","v":"90 - 180"},null,{"$f":"IF(OR(S36>1,N9>S56),C54,\"90 - 180\")","v":"90 - 180"}]
[]
[null,null,null,null,null,null,null,null,null,null,null,null,null,null,null,null,{"$f":"IF(Q36>1,C57,IF(Q32=C54,C55,\" \"))","v":" "},null,{"$f":"IF(S36>1,C57,IF(S32=C54,C55,\" \"))","v":" "}]
[]
[null,null,null,null,null,null,null,null,null,null,null,null,{"$f":"Translation!A196","v":"Auslastung Massenträgheitsmoment"},null,null,null,{"$f":"(N8+Q59+Q63)/Q53","v":0},null,{"$f":"(N8+S59+S63)/S53","v":0}]
[null,null,null,null,null,null,null,null,null,null,null,null,{"$f":"Translation!A290","v":"Gesamtmasse (kg)"},null,null,null,{"$f":"N9+Q61+Q65","v":0},null,{"$f":"N9+S61+S65","v":0}]
[null,"*",{"$f":"Translation!A291","v":"Betrieb mit  Schlauchlängen zwischen  Ventilbox und DRL : 0,5 m ( DRL 20 ), 0,7 m ( DRL 25 ),\nBetriebsdruck: 6 bar ( DRL 20 ), 5 bar ( DRL 25 )"},null,null,null,null,null,null,null,null,null,{"$f":"Translation!A281","v":"Min. Taktzeit  (s)"},null,null,null,{"$f":"Ber_DRL20!B47","v":0.48},null,{"$f":"Ber_DRL25!B47","v":0.76}]
[null,null,null,null,null,null,null,null,null,null,null,null,{"$f":"Translation!A200","v":"Max. Zyklenzahl / min. **"},null,null,null,{"$f":"Ber_DRL20!G51","v":63},null,{"$f":"Ber_DRL25!G51","v":63}]
[]
[]
[null,null,null,null,null,null,null,null,null,null,null,"**",{"$f":"Translation!A292","v":"Zyklus: Vertikal auf - Schwenken - Vertikal ab - Vertikal auf - Schwenken - Vertikal ab"}]
[]
[]
[]
[]
[]
[]
[]
[]
[]
[]
[null,null,"Max. zul. J",null,null,null,null,null,null,null,{"$f":"Translation!A296","v":"Ja"},null,{"$f":"IF(M24=K53,\" \",K53)","v":"Ja"},null,{"$f":"IF(M22=K53,\" \",K53)","v":"Ja"},null,8.0000000000000002E-3,null,0.03]
[null,null,{"$f":"Translation!A189","v":"UNZULÄSSIG"},null,null,null,null,null,null,null,{"$f":"Translation!A297","v":"Nein"},null,{"$f":"Translation!A297","v":"Nein"},null,{"$f":"Translation!A297","v":"Nein"}]
[null,null,{"$f":"Translation!A190","v":"Masse zu hoch"}]
[null,null,"Max. zul. Zusatzgewicht",null,null,null,null,null,null,null,null,null,null,null,null,null,1,null,3]
[null,null,{"$f":"Translation!A295","v":"Jges zu hoch"}]
[null,null,"Massenträgheitsmoment Winkeladapter",null,null,null,null,null,null,null,null,null,null,null,null,null,2.9500000000000001E-4,null,4.2700000000000002E-4]
[null,null,null,null,null,null,null,null,null,null,null,null,null,null,null,null,{"$f":"IF(M22=K53,Q58,0)","v":0},null,{"$f":"IF(M22=K53,S58,0)","v":0}]
[null,null,"Masse  Winkeladapter",null,null,null,null,null,null,null,null,null,null,null,null,null,0.19,null,0.35]
[null,null,null,null,null,null,null,null,null,null,null,null,null,null,null,null,{"$f":"IF(M22=K53,Q60,0)","v":0},null,{"$f":"IF(M22=K53,S60,0)","v":0}]
[null,null,"Massenträgheitsmoment Energieführung ohne Schlauch",null,null,null,null,null,null,null,null,null,null,null,null,null,3.5E-4,null,8.7799999999999998E-4]
[null,null,null,null,null,null,null,null,null,null,null,null,null,null,null,null,{"$f":"IF(M24=K53,Q62,0)","v":0},null,{"$f":"IF(M24=K53,S62,0)","v":0}]
[null,null,"Masse Energieführung ohne Schlauch",null,null,null,null,null,null,null,null,null,null,null,null,null,8.5000000000000006E-2,null,0.14000000000000001]
[null,null,null,null,null,null,null,null,null,null,null,null,null,null,null,null,{"$f":"IF(M24=K53,Q64,0)","v":0},null,{"$f":"IF(M24=K53,S64,0)","v":0}]

{"sheet":"Eingabe2","index":9,"n_rows":55,"n_cols":19,"rows_kept":55,"cut":false,"hidden":false,"merged":[[5,2,5,8],[7,13,7,14],[5,11,5,18],[32,11,32,14],[8,15,10,18],[30,2,33,8],[10,13,10,14],[8,13,8,14],[9,13,9,14],[7,15,7,18],[20,11,20,14],[15,11,15,18],[31,11,31,14],[30,11,30,14],[29,11,29,14],[51,2,51,18],[52,2,52,18],[53,2,53,18],[54,2,54,18],[28,11,28,14],[33,11,33,14],[48,2,48,4],[39,2,39,4],[39,8,39,10],[40,2,40,4]]}
[]
[{"$f":"Translation!A14","v":"Toolbox-Pick&Place - MODULARE MONTAGEAUTOMATION"}]
[{"$f":"Translation!A326","v":"Berechnung Pick & Place-Unit"}]
[]
[]
[null,null,{"$f":"Translation!A328","v":"Pick&Place-Unit PPU-P-10 / PPU-P-30"},null,null,null,null,null,null,null,null,{"$f":"Translation!A330","v":"Ergebnisse aus der Berechnung des Massenschwerpunktes"}]
[]
[null,null,null,null,null,null,null,null,null,null,null,"m ges ( kg ) =",null,{"$f":"Massenschwerpunkt!I30","v":0},null,{"$f":"Translation!A173","v":"Gesamtmasse "}]
[null,null,null,null,null,null,null,null,null,null,null,"Xs ( mm ) =",null,{"$f":"Massenschwerpunkt!V30","v":0},null,{"$f":"Translation!A174","v":"Gesamtmassenschwerpunkts-Koordinaten"}]
[null,null,null,null,null,null,null,null,null,null,null,"Ys ( mm ) =",null,{"$f":"Massenschwerpunkt!V31","v":0}]
[null,null,null,null,null,null,null,null,null,null,null,"Zs ( mm ) =",null,{"$f":"Massenschwerpunkt!V32","v":0}]
[]
[]
[]
[]
[null,null,null,null,null,null,null,null,null,null,null,{"$f":"Translation!A335","v":"Berechnung"}]
[]
[]
[]
[]
[null,null,null,null,null,null,null,null,null,null,null,{"$f":"Translation!A186","v":"Berechneter Modul-Typ"}]
[null,null,null,null,null,null,null,null,null,null,null,"m ges max ( kg ) ",null,null,null,null,1,null,3]
[null,null,null,null,null,null,null,null,null,null,null,"Xs max ( mm ) ",null,null,null,25,"± 25,0",30,"± 30,0"]
[null,null,null,null,null,null,null,null,null,null,null,"Ys max ( mm ) ",null,null,null,25,"± 25,0",30,"± 30,0"]
[null,null,null,null,null,null,null,null,null,null,null,"Zs max ( mm ) ",null,null,null,50,"± 50,0",80,"± 80,0"]
[null,null,null,null,null,null,null,null,null,null,null,"Horizontalhub (mm)",null,null,null,null,{"$f":"IF(D42=1,C47,IF(D43=1,C45,\"121 - 145\"))","v":"121 - 145"},null,{"$f":"IF(F42=1,C47,IF(F43=1,C45,\"174 - 210\"))","v":"174 - 210"}]
[null,null,null,null,null,null,null,null,null,null,null,"Vertikalhub (mm)",null,null,null,null,{"$f":"IF(OR(D42=1,D43=1),C46,\"30 - 45\")","v":"30 - 45"},null,{"$f":"IF(OR(F42=1,F43=1),C46,\"40 - 60\")","v":"40 - 60"}]
[]
[null,null,null,null,null,null,null,null,null,null,null,{"$f":"Translation!A290","v":"Gesamtmasse (kg)"},null,null,null,null,{"$f":"N8","v":0},null,{"$f":"N8","v":0}]
[null,null,null,null,null,null,null,null,null,null,null,"Koordinate Xs (mm)",null,null,null,null,{"$f":"N9","v":0},null,{"$f":"N9","v":0}]
[null,null,{"$f":"Translation!A329","v":"Taktzeiten sind reine Fahrzeiten für die kombinierte Vertikal-Horizontal-Bewegung unter optimalen Bedingungen *. Verweilzeiten oder SPS-Reaktionszeiten sind nicht enthalten und bei der Ermittlung von Gesamt-Zykluszeiten zu berücksichtigen !"},null,null,null,null,null,null,null,null,"Koordinate Ys (mm)",null,null,null,null,{"$f":"N10","v":0},null,{"$f":"N10","v":0}]
[null,null,null,null,null,null,null,null,null,null,null,"Koordinate Zs (mm)",null,null,null,null,{"$f":"N11","v":0},null,{"$f":"N11","v":0}]
[null,null,null,null,null,null,null,null,null,null,null,{"$f":"Translation!A281","v":"Min. Taktzeit  (s)"},null,null,null,null,{"$f":"Ber_PPU!B15/1000","v":0.61},null,{"$f":"Ber_PPU!B25/1000","v":0.8}]
[null,null,null,null,null,null,null,null,null,null,null,{"$f":"Translation!A200","v":"Max. Zyklenzahl / min. **"},null,null,null,null,{"$f":"Ber_PPU!G32","v":95},null,{"$f":"Ber_PPU!G39","v":75}]
[]
[]
[]
[]
[]
[]
[]
[null,null,null,{"$f":"IF(Q29>Q22,1,0)","v":0},null,{"$f":"IF(S29>S22,1,0)","v":0}]
[null,null,null,{"$f":"IF(OR(ABS(Q30)>P23,ABS(Q31)>P24,ABS(Q32)>P25),1,0)","v":0},null,{"$f":"IF(OR(ABS(S30)>R23,ABS(S31)>R24,ABS(S32)>R25),1,0)","v":0}]
[]
[null,null,"Koordinate !"]
[null,null,{"$f":"Translation!A189","v":"UNZULÄSSIG"}]
[null,null,{"$f":"Translation!A190","v":"Masse zu hoch"}]
[]
[]
[]
[]
[null,null,{"$f":"Translation!A331","v":"*  Betrieb mit SCHUNK Ventilbox VCU 25 ( PPU-P-10 )"}]
[null,null,{"$f":"Translation!A332","v":"Schlauchlängen zwischen  Ventilbox und P&P-Unit : 0,5 m ( PPU-P-10 ), 0,7 m ( PPU-P-30 )"}]
[null,null,{"$f":"Translation!A333","v":"Betriebsdruck: 5 bar"}]
[null,null,{"$f":"Translation!A334","v":"** Zyklus: Vertikal auf - Horizontal vor - Vertikal ab - Vertikal auf - Horizontal zurück - Vertikal ab"}]

{"sheet":"Ber_DRL20","index":10,"n_rows":53,"n_cols":15,"rows_kept":53,"cut":false,"hidden":false,"merged":[[0,1,0,3],[8,1,8,13]]}
[null,"Werte aus Eingabeblatt"]
[]
[null,{"$f":"Eingabe1!N9","v":0},"Gesamtmasse m ges (kg)"]
[]
[null,{"$f":"Eingabe1!M19","v":180},"Schwenkwinkel (°)"]
[]
[null,{"$f":"Eingabe1!N8","v":0},"Gesamtmassenträgheitsmoment Jges( kgm2 )"]
[]
[null,"Berechnung der Zykluszeit ( Gesamtzyklus ohne Verweilzeit in der Endlage ) in Abhängigkeit der Gesamtmasse m ges"]
[]
[null,{"$f":"B13+(B15-B13)*((B$5-90)/90)","v":480},"t = t 90° + (t180° - t90°)*(Winkel-90/90)",null,null,null,"m max","m min","t max","t min","Steigung m","bei Schwenkwinkel",null,"Berechnung der Zeit über Geradengleichung"]
[]
[null,{"$f":"(B$3/K13)+J13","v":430},"t90° = ( mges / Steigung m90° ) + a90°",null,null,null,1,0,660,430,{"$f":"(G13-H13)/(I13-J13)","v":4.3478260869565218E-3},"90°",null,"Werte für t min und t max aus Zeitmessungen vom 23.10.2013"]
[]
[null,{"$f":"(B$3/K15)+J15","v":480},"t180° = ( mges / Steigung m180° ) + a180°",null,null,null,1,0,800,480,{"$f":"(G15-H15)/(I15-J15)","v":3.1250000000000002E-3},"180°"]
[]
[null,null,"a = tmin"]
[]
[null,"Berechnung der Zykluszeit ( Gesamtzyklus ohne Verweilzeit in der Endlage ) in Abhängigkeit des Gesamtmassenträgheitsmomentes J ges"]
[]
[null,{"$f":"B23+(B25-B23)*((B$5-90)/90)","v":480},"t1 = t 90° + (t180° - t90°)*(Winkel-90/90)",null,null,null,"J max","J min","t max","t min","Steigung m","bei Schwenkwinkel",null,"Berechnung der Zeit über Geradengleichung, Kurven des J-t Diagramms in 3 Teilbereiche aufgeteilt !!"]
[]
[null,{"$f":"((B$7-H23)/K23)+J23","v":430},"t90° = (( Jges - Jmin) / Steigung m90° ) + a90°",null,null,null,8.4000000000000003E-4,0,450,430,{"$f":"(G23-H23)/(I23-J23)","v":4.2000000000000004E-5},"90°",null,"Werte für t min und t max aus Zeitmessungen vom 23.10.2013"]
[]
[null,{"$f":"((B$7-H25)/K25)+J25","v":480},"t180° = ( (Jges - Jmin) / Steigung m180° ) + a180°",null,null,null,8.4000000000000003E-4,0,490,480,{"$f":"(G25-H25)/(I25-J25)","v":8.4000000000000009E-5},"180°",null,"Achtung:","t1 nur gültig für Teilbereich 1 ( J = 0 bis 0,00084 )"]
[]
[null,null,"a = tmin",null,null,null,null,null,null,null,null,null,null,null,"t2 nur gültig für Teilbereich 2  ( J = 0,00084 bis 0,00353 )"]
[]
[null,{"$f":"B31+(B33-B31)*((B$5-90)/90)","v":436.91449814126395},"t2 = t 90° + (t180° - t90°)*(Winkel-90/90)",null,null,null,"J max","J min","t max","t min","Steigung m","bei Schwenkwinkel",null,null,"t3 nur gültig für Teilbereich 3 ( J = 0,00353 bis 0,008 )"]
[]
[null,{"$f":"((B$7-H31)/K31)+J31","v":409.40520446096656},"t90° = (( Jges - Jmin) / Steigung m90° ) + a90°",null,null,null,3.5300000000000002E-3,8.4000000000000003E-4,580,450,{"$f":"(G31-H31)/(I31-J31)","v":2.0692307692307693E-5},"90°"]
[]
[null,{"$f":"((B$7-H33)/K33)+J33","v":436.91449814126395},"t180° = ( (Jges - Jmin) / Steigung m180° ) + a180°",null,null,null,3.5300000000000002E-3,8.4000000000000003E-4,660,490,{"$f":"(G33-H33)/(I33-J33)","v":1.5823529411764706E-5},"180°"]
[]
[null,null,"a = tmin"]
[]
[null,{"$f":"B39+(B41-B39)*((B$5-90)/90)","v":549.44071588366887},"t3 = t 90° + (t180° - t90°)*(Winkel-90/90)",null,null,null,"J max","J min","t max","t min","Steigung m","bei Schwenkwinkel"]
[]
[null,{"$f":"((B$7-H39)/K39)+J39","v":516.82326621923937},"t90° = (( Jges - Jmin) / Steigung m90° ) + a90°",null,null,null,8.0000000000000002E-3,3.5300000000000002E-3,660,580,{"$f":"(G39-H39)/(I39-J39)","v":5.5875000000000003E-5},"90°"]
[]
[null,{"$f":"((B$7-H41)/K41)+J41","v":549.44071588366887},"t180° = ( (Jges - Jmin) / Steigung m180° ) + a180°",null,null,null,8.0000000000000002E-3,3.5300000000000002E-3,800,660,{"$f":"(G41-H41)/(I41-J41)","v":3.1928571428571429E-5},"180°"]
[]
[null,null,"a = tmin"]
[]
[null,{"$f":"IF(B7<=0.00084,B21,IF(B7<=0.00353,B29,B37))","v":480},"gültige Zykluszeit aus Teilbereichen !"]
[null,null,null,null,null,null,null,null,null,null,null,null,null,null,"Betriebsdruck: 6 bar"]
[null,{"$f":"MAX(B11,B45)/1000","v":0.48},"Min. zulässige Zykluszeit in Abhängigkeit der Gesamtmasse und des Gesamtmassenträgheitsmomentes in Sekunden",null,null,null,null,null,null,null,null,null,null,null,"Ansteuerung VCU 50"]
[]
[null,"Berechnung der max. Zyklenzahl"]
[]
[null,"Kriterium: Zykluszeit",null,"max. Zykl. / min :",null,{"$f":"60/B47","v":125},{"$f":"MIN(F51,F53)","v":63},"Min. Zyklenzahl / min."]
[]
[null,"Kriterium: Stoßdämpfer",null,"max. Zykl. / min :",null,63]

{"sheet":"Ber_DRL25","index":11,"n_rows":61,"n_cols":21,"rows_kept":61,"cut":false,"hidden":false,"merged":[[0,1,0,3],[8,1,8,13]]}
[null,"Werte aus Eingabeblatt"]
[]
[null,{"$f":"Eingabe1!N9","v":0},"Gesamtmasse m ges (kg)"]
[]
[null,{"$f":"Eingabe1!M19","v":180},"Schwenkwinkel (°)"]
[]
[null,{"$f":"Eingabe1!N8","v":0},"Gesamtmassenträgheitsmoment Jges( kgm2 )"]
[]
[null,"Berechnung der Zykluszeit ( Gesamtzyklus ohne Verweilzeit in der Endlage ) in Abhängigkeit der Gesamtmasse m ges"]
[]
[null,{"$f":"B13+(B15-B13)*((B$5-90)/90)","v":760},"t = t 90° + (t180° - t90°)*(Winkel-90/90)",null,null,null,"m max","m min","t max","t min","Steigung m","bei Schwenkwinkel",null,"Berechnung der Zeit über Geradengleichung"]
[]
[null,{"$f":"(B$3/K13)+J13","v":680},"t90° = ( mges / Steigung m90° ) + a90°",null,null,null,3,0,900,680,{"$f":"(G13-H13)/(I13-J13)","v":1.3636363636363636E-2},"90°",null,"Werte für t min und t max aus Zeitmessungen vom 02.08.2012"]
[]
[null,{"$f":"(B$3/K15)+J15","v":760},"t180° = ( mges / Steigung m180° ) + a180°",null,null,null,3,0,1150,760,{"$f":"(G15-H15)/(I15-J15)","v":7.6923076923076927E-3},"180°"]
[]
[null,null,"a = tmin"]
[]
[null,"Berechnung der Zykluszeit ( Gesamtzyklus ohne Verweilzeit in der Endlage ) in Abhängigkeit des Gesamtmassenträgheitsmomentes J ges"]
[]
[null,{"$f":"B23+(B25-B23)*((B$5-90)/90)","v":760},"t1 = t 90° + (t180° - t90°)*(Winkel-90/90)",null,null,null,"J max","J min","t max","t min","Steigung m","bei Schwenkwinkel",null,"Berechnung der Zeit über Geradengleichung, Kurven des J-t Diagramms in 3 Teilbereiche aufgeteilt !!"]
[]
[null,{"$f":"((B$7-H23)/K23)+J23","v":680},"t90° = (( Jges - Jmin) / Steigung m90° ) + a90°",null,null,null,5.5999999999999999E-3,0,740,680,{"$f":"(G23-H23)/(I23-J23)","v":9.333333333333333E-5},"90°",null,"Werte für t min und t max aus Zeitmessungen vom 23.02.2012"]
[]
[null,{"$f":"((B$7-H25)/K25)+J25","v":760},"t180° = ( (Jges - Jmin) / Steigung m180° ) + a180°",null,null,null,5.5999999999999999E-3,0,800,760,{"$f":"(G25-H25)/(I25-J25)","v":1.3999999999999999E-4},"180°",null,"Achtung:","t1 nur gültig für Teilbereich 1 ( J = 0 bis 0,0056 )"]
[]
[null,null,"a = tmin",null,null,null,null,null,null,null,null,null,null,null,"t2 nur gültig für Teilbereich 2  ( J = 0,0056 bis 0,0138 )"]
[]
[null,{"$f":"B31+(B33-B31)*((B$5-90)/90)","v":772.68292682926824},"t2 = t 90° + (t180° - t90°)*(Winkel-90/90)",null,null,null,"J max","J min","t max","t min","Steigung m","bei Schwenkwinkel",null,null,"t3 nur gültig für Teilbereich 3 ( J = 0,0138 bis 0,03 )"]
[]
[null,{"$f":"((B$7-H31)/K31)+J31","v":719.51219512195121},"t90° = (( Jges - Jmin) / Steigung m90° ) + a90°",null,null,null,1.38E-2,5.5999999999999999E-3,770,740,{"$f":"(G31-H31)/(I31-J31)","v":2.7333333333333327E-4},"90°"]
[]
[null,{"$f":"((B$7-H33)/K33)+J33","v":772.68292682926824},"t180° = ( (Jges - Jmin) / Steigung m180° ) + a180°",null,null,null,1.38E-2,5.5999999999999999E-3,840,800,{"$f":"(G33-H33)/(I33-J33)","v":2.0499999999999997E-4},"180°"]
[]
[null,null,"a = tmin"]
[]
[null,{"$f":"B39+(B41-B39)*((B$5-90)/90)","v":610},"t3 = t 90° + (t180° - t90°)*(Winkel-90/90)",null,null,null,"J max","J min","t max","t min","Steigung m","bei Schwenkwinkel",null,null,null,null,null,null,null,null,"Grafik mit alten Werten"]
[]
[null,{"$f":"((B$7-H39)/K39)+J39","v":710.37037037037032},"t90° = (( Jges - Jmin) / Steigung m90° ) + a90°",null,null,null,0.03,1.38E-2,840,770,{"$f":"(G39-H39)/(I39-J39)","v":2.3142857142857142E-4},"90°"]
[]
[null,{"$f":"((B$7-H41)/K41)+J41","v":610},"t180° = ( (Jges - Jmin) / Steigung m180° ) + a180°",null,null,null,0.03,1.38E-2,1110,840,{"$f":"(G41-H41)/(I41-J41)","v":5.9999999999999995E-5},"180°"]
[]
[null,null,"a = tmin"]
[]
[null,{"$f":"IF(B7<=0.0056,B21,IF(B7<=0.0138,B29,B37))","v":760},"gültige Zykluszeit aus Teilbereichen !"]
[]
[null,{"$f":"MAX(B11,B45)/1000","v":0.76},"Min. zulässige Zykluszeit in Abhängigkeit der Gesamtmasse und des Gesamtmassenträgheitsmomentes in Sekunden"]
[]
[null,"Berechnung der max. Zyklenzahl",null,null,null,null,null,null,null,null,null,null,null,"Gesamtdiagramm",null,null,null,"Masse / Zeit"]
[null,null,null,null,null,null,null,null,null,null,null,null,null,"Zeiten korrigiert am 08.06.16",null,null,null,"Zeiten korrigiert am 08.06.16"]
[null,"Kriterium: Zykluszeit",null,"max. Zykl. / min :",null,{"$f":"60/B47","v":78.94736842105263},{"$f":"MIN(F51,F53)","v":63},"Min. Zyklenzahl / min.",null,null,null,null,null,null,null,"180°","90°",null,null,"180°","90°"]
[null,null,null,null,null,null,null,null,null,null,null,null,null,null,"J (kg/m2)","t (s) ","t (s)",null,"M (kg)","t (ms) ","t (ms)"]
[null,"Kriterium: Stoßdämpfer",null,"max. Zykl. / min :",null,63]
[null,null,null,null,null,null,null,null,null,null,null,null,null,null,0,0.76,0.68,null,0,0.76,0.68]
[null,null,null,null,null,null,null,null,null,null,null,null,null,null,5.5999999999999999E-3,0.8,0.74,null,3,1.1499999999999999,0.9]
[null,null,null,null,null,null,null,null,null,null,null,null,null,null,1.0500000000000001E-2,0.82,0.76]
[null,null,null,null,null,null,null,null,null,null,null,null,null,null,1.38E-2,0.84,0.77]
[null,null,null,null,null,null,null,null,null,null,null,null,null,null,1.67E-2,0.87,0.78]
[null,null,null,null,null,null,null,null,null,null,null,null,null,null,2.12E-2,0.94,0.79]
[null,null,null,null,null,null,null,null,null,null,null,null,null,null,2.3900000000000001E-2,0.99,0.8]
[null,null,null,null,null,null,null,null,null,null,null,null,null,null,3.0099999999999998E-2,1.1100000000000001,0.84]

{"sheet":"Ber_PPU","index":12,"n_rows":41,"n_cols":13,"rows_kept":41,"cut":false,"hidden":false,"merged":[[29,1,29,2],[36,1,36,2],[0,1,0,3],[8,1,8,13],[10,1,10,2],[18,1,18,2]]}
[null,"Werte aus Eingabeblatt"]
[]
[null,{"$f":"Eingabe2!N8","v":0},"Gesamtmasse m ges (kg)"]
[]
[]
[]
[]
[]
[null,"Berechnung der Zykluszeit ( Gesamtzyklus ohne Verweilzeit in der Endlage ) in Abhängigkeit der Gesamtmasse m ges"]
[]
[null,"PPU-P-10"]
[]
[null,null,null,null,null,null,"m max","m min","t max","t min","Steigung m",null,"Berechnung der Zeit über Geradengleichung"]
[]
[null,{"$f":"K15*(B3-H15)+J15","v":610},"t =Steigung m *( mges - m min ) + b",null,null,null,1,0,640,610,{"$f":"(I15-J15)/(G15-H15)","v":30},null,"Werte für t min und t max aus Zeitmessungen vom 06.07.2011"]
[]
[null,null,"b = tmin"]
[]
[null,"PPU-P-30"]
[]
[null,{"$f":"K21*(B3-H21)+J21","v":775},"t =Steigung m *( mges - m min ) + b",null,null,null,3,0.5,925,800,{"$f":"(I21-J21)/(G21-H21)","v":50}]
[]
[null,null,"b = tmin"]
[]
[null,{"$f":"IF(B3<0.5,800,B21)","v":800}]
[]
[]
[null,"Berechnung der max. Zyklenzahl"]
[]
[null,"PPU-P-10"]
[]
[null,"Kriterium: Zykluszeit",null,"max. Zykl. / min :",null,{"$f":"60/B15*1000","v":98.360655737704917},{"$f":"MIN(F32,F34)","v":95},"Min. Zyklenzahl / min."]
[]
[null,"Kriterium: Stoßdämpfer",null,"max. Zykl. / min :",null,95]
[]
[]
[null,"PPU-P-30"]
[]
[null,"Kriterium: Zykluszeit",null,"max. Zykl. / min :",null,{"$f":"60/B25*1000","v":75},{"$f":"MIN(F39,F41)","v":75},"Min. Zyklenzahl / min."]
[]
[null,"Kriterium: Stoßdämpfer",null,"max. Zykl. / min :",null,75]

{"sheet":"Info-Translation","index":13,"n_rows":139,"n_cols":6,"rows_kept":139,"cut":false,"hidden":false,"merged":[]}
[]
[{"$f":"STARTSEITE!A50","v":1},"Deutsch","Englisch","Französisch","Italienisch","Spanisch"]
[]
[{"$f":"IF($A$2=1,B4,IF($A$2=2,C4,IF($A$2=3,D4,IF($A$2=4,E4,IF($A$2=5,F4)))))","v":"Startseite"},"Startseite","Start page","Page d'accueil","Pagina iniziale","Página de inicio"]
[{"$f":"IF($A$2=1,B5,IF($A$2=2,C5,IF($A$2=3,D5,IF($A$2=4,E5,IF($A$2=5,F5)))))","v":"Zum Anfang"},"Zum Anfang","To Start","Haut de page","Torna all'inizio","Ir al principio"]
["Infos zur Toolbox-Pick&Place","Infos zur Toolbox-Pick&Place","Info on Toolbox Pick&Place","Infos sur la Toolbox-Pick&Place","Informazioni su Toolbox-Pick&Place","Información sobre la caja de herramientas Pick&Place"]
["Klicken Sie hier...","Klicken Sie hier...","Click here...","Cliquez ici ...","Clicca qui...","Haga clic aquí..."]
["Linearmodule","Linearmodule","Linear actuators","Modules linéaires","Moduli lineari","Módulos lineales"]
["Drehlader DRL","Drehlader DRL","Rotary loader DRL","Chargeur rotatif DRL","Caricatore rotante DRL","Cargador giratorio DRL"]
["Mehrachssysteme","Mehrachssysteme","Multi-axis systems","Systèmes multiaxes","Sistemi multiasse","Sistemas de ejes múltiples"]
["Allgemeine Infos","Allgemeine Infos","General info","Info`s générales","Informazioni generali","Información general"]
["Berechnung der Taktzeiten und Massenschwerpunkte","Berechnung der Taktzeiten und Massenschwerpunkte","Calculation of the cycle times and mass centers of gravity","Calcul des cadences et des points de gravité de la masse","Calcolo dei tempi di ciclo e dei baricentri della massa","Cálculos de tiempos de ciclo y de centros de gravedad de masa"]
["Berechnung der Taktzeiten und Massenträgheitsmomente","Berechnung der Taktzeiten und Massenträgheitsmomente","Calculation of cycle times and moments of inertia","Calcul des temps de cycle et des couples d'inertie","Calcolo dei tempi ciclo e dei momenti di inerzia della massa","Cálculo de los tiempos de ciclo y momentos de inercia de la masa"]
["Berechnung der Taktzeiten und Belastungen","Berechnung der Taktzeiten und Belastungen","Calculation of cycle times and loads","Calcul des temps de cycle et des charges","Calcolo dei tempi ciclo e dei carichi","Cálculo de los tiempos de ciclo y cargas"]
["Informationen","Informationen","Information","Information","Informazioni","Información"]
["Pick&Place-Unit PPU-P","Pick&Place-Unit PPU-P","Pick&Place-Unit PPU-P","Pick&Place-Unit PPU-P","Pick&Place-Unit PPU-P","Pick&Place-Unit PPU-P"]
[]
[]
[]
["Drehlader"]
[]
[{"$f":"IF($A$2=1,B22,IF($A$2=2,C22,IF($A$2=3,D22,IF($A$2=4,E22,IF($A$2=5,F22)))))","v":"SCHUNK bietet Ihnen Produkte und Dienstleistungen mit zukunftsgerichtetem technischen Niveau. Um Ihnen die geforderte Planungssicherheit zu garantieren, wurde diese Software entwickelt, mit der Pick&Place-Einheiten berechnet werden können. Nachfolgend ist die Funktion und Bedienung kurz beschrieben."},"SCHUNK bietet Ihnen Produkte und Dienstleistungen mit zukunftsgerichtetem technischen Niveau. Um Ihnen die geforderte Planungssicherheit zu garantieren, wurde diese Software entwickelt, mit der Pick&Place-Einheiten berechnet werden können. Nachfolgend ist die Funktion und Bedienung kurz beschrieben.","SCHUNK offers you products and services of a future-oriented technical level. This software for calculating Pick&Place units was developed to guarantee you the required planning reliability. The functions and operation are described below.","SCHUNK vous propose des produits et des prestations de service d'un niveau technique axé sur l'avenir. Ce logiciel a été développé pour vous garantir la sécurité demandée de planification. Il permet de calculer les unités Pick&Place. Voici une brève description de son fonctionnement et de son utilisation.","SCHUNK offre prodotti e servizi di livello tecnico futuribile. Questo software che consente di calcolare le unità Pick&Place è stato sviluppato per garantirvi la sicurezza di progettazione richiesta. Qui di seguito ne sono descritti in maniera sintetica il funzionamento e l'uso.","SCHUNK le ofrece productos y servicios con un nivel técnico orientado hacia el futuro. Para garantizarle la seguridad de planificación requerida, hemos desarrollado este software, con el que se pueden calcular unidades Pick&Place. A continuación, se describe brevemente su funcionamiento y su manejo."]
[{"$f":"IF($A$2=1,B23,IF($A$2=2,C23,IF($A$2=3,D23,IF($A$2=4,E23,IF($A$2=5,F23)))))","v":"Zur Berechnung von Drehladern ist - VORHER - das Massenträgheitsmoment J der zu schwenkenden Masse zu berechnen !"},"Zur Berechnung von Drehladern ist - VORHER - das Massenträgheitsmoment J der zu schwenkenden Masse zu berechnen !","Calculation of rotary loaders requires that you FIRST calculate the mass moment of inertia J of the mass to be rotated!","Pour calculer les chargeurs rotatifs, il faut - D'ABORD - calculer le couple d'inertie J de la masse à pivoter !","Per il calcolo dei caricatori rotanti - PRIMA - deve essere calcolato il momento di inerzia di massa J della massa da far oscillare!","Para calcular cargadores giratorios, hay que calcular PREVIAMENTE el momento de inercia de masa J de la masa a bascular."]
[{"$f":"IF($A$2=1,B24,IF($A$2=2,C24,IF($A$2=3,D24,IF($A$2=4,E24,IF($A$2=5,F24)))))","v":"Aus nachfolgend aufgezeigten Einzelkörpern, deren Massenträgheitsmomente und Schwerpunktskoordinaten mit dieser Software berechnet werden können, ist es möglich durch Zusammensetzen, Aufsummieren oder Subtrahieren das Gesamtmassenträgheitsmoment mit Schwerpunktskoordinaten eines spezifischen Schwenkaufbaus zu ermitteln."},"Aus nachfolgend aufgezeigten Einzelkörpern, deren Massenträgheitsmomente und Schwerpunktskoordinaten mit dieser Software berechnet werden können, ist es möglich durch Zusammensetzen, Aufsummieren oder Subtrahieren das Gesamtmassenträgheitsmoment mit Schwerpunktskoordinaten eines spezifischen Schwenkaufbaus zu ermitteln.","Using the individual bodies listed below, whose mass moments of inertia and co-ordinates of centre of gravity can be calculated using this software, the total mass moment of inertia with co-ordinates of centre of gravity can be determined for a specific swivel design by combination, addition or subtraction.","Il est possible, à partir des pièces individuelles dont les couples d'inertie et coordonnées du centre de gravité peuvent être calculés à l'aide de ce logiciel, de déterminer le couple d'inertie total avec les coordonnées du centre de gravité d'un ensemble pivotant spécifique par composition, addition ou soustraction.","Dai singoli corpi indicati in seguito, i cui momenti di inerzia della massa e le cui coordinate del baricentro possono essere calcolati con questo software, è possibile, mediante composizione, somma e sottrazione, calcolare il momento di inerzia della massa totale con le coordinate del baricentro di una specifica struttura di rotazione.","Mediante la integración, suma, o sustracción, se puede calcular a partir de los distintos cuerpos que se muestran a continuación, cuyos momentos de inercia y coordinadas del centro de masa se pueden calcular con este software, el momento de inercia de la masa total con las coordinadas del centro de masa de una construcción de giro específica. "]
[{"$f":"IF($A$2=1,B25,IF($A$2=2,C25,IF($A$2=3,D25,IF($A$2=4,E25,IF($A$2=5,F25)))))","v":"Direkte Eingabe von J "},"Direkte Eingabe von J ","Direct input of J ","Saisie directe de J ","Immissione diretta di J ","Introducción directa de J "]
[{"$f":"IF($A$2=1,B26,IF($A$2=2,C26,IF($A$2=3,D26,IF($A$2=4,E26,IF($A$2=5,F26)))))","v":"Quader"},"Quader","Cuboid","Parallélépipède","Parallelepipedo","Paralelepípedo"]
["Scheibe","Scheibe","Disc","Disque","Disco","Disco"]
["Welle längs","Welle längs","Shaft, longitudinal","Arbre longitudinal","Albero longitudinale","Eje longitudinal"]
["Welle quer","Welle quer","Shaft, transverse","Arbre transversal","Albero trasversale","Eje transversal"]
["Grundfläche/Masse","Grundfläche/Masse","Base area/mass","Surface / masse","Superficie di base/massa","Base/Masa"]
["Greifmodule","Greifmodule","Gripper actuators","Modules de préhension","Moduli di presa","Módulos de agarre"]
["Zur Berechnungsmaske","Zur Berechnungsmaske","To calculation mask","Masque de saisie","Vai alla maschera di calcolo","Ir a la máscara de cálculo"]
["Einzelkörper-Massenträgheitsmomente","Einzelkörper-Massenträgheitsmomente","Single body mass moments of inertia","Couples d'inertie de pièces individuelles","Momenti di inerzia della massa corpi singoli","Momentos de inercia de las masas de cuerpos individuales"]
["Nach Auswahl des gewünschten Körpers und Eingabe der Körperdaten sind die Koordinaten des Massenschwerpunktes dieses Körpers zur Drehachse zu bestimmen.","Nach Auswahl des gewünschten Körpers und Eingabe der Körperdaten sind die Koordinaten des Massenschwerpunktes dieses Körpers zur Drehachse zu bestimmen.","After selecting the desired body and entering the data and coordinates, the mass center of gravity of the body to the rotational axis must be calculated.","Après avoir choisi le corps souhaité et indiqué les données du corps, il faut déterminer les coordonnées du centre de gravité de la masse de ce corps par rapport à l'axe de rotation.","Dopo la selezione del corpo desiderato e l'immissione dei dati del corpo devono essere determinate le coordinate del baricentro della massa di tale corpo rispetto all'asse di rotazione.","Tras escoger el cuerpo deseado e introducir los datos del cuerpo, es necesario determinar las coordenadas del centro de gravedad de masa de este cuerpo con respecto al eje giratorio."]
["Bei der Bestimmung der Startpunktkoordinaten ist auf die Vorzeichen zu achten. Ob die Schwenkachse horizontal oder vertikal angeordnet ist spielt hier noch keine Rolle.","Bei der Bestimmung der Startpunktkoordinaten ist auf die Vorzeichen zu achten. Ob die Schwenkachse horizontal oder vertikal angeordnet ist spielt hier noch keine Rolle.","When determining the start point co-ordinates, pay attention to the sign. A horizontal or vertical swivel axis is not significant at this point.","Attention aux signes lors de la détermination des coordonnées du point de départ. La disposition horizontale ou verticale de l'axe de pivotement n'a pas encore d'importance à ce niveau.","Per la determinazione delle coordinate del punto di avvio si deve prestare attenzione al segno iniziale. Qui non è ancora rilevante se l'asse rotante è disposto orizzontalmente o verticalmente.","Al definir las coordenadas del punto inicial se debe prestar atención al signo. En este caso, no tiene ninguna importancia si el eje de giro está orientado horizontal o verticalmente."]
["Nach vollständiger Eingabe aller Daten müssen die Werte zur Berechnung des Gesamtmassenträgheitsmoments in die Liste addiert oder subtrahiert werden.","Nach vollständiger Eingabe aller Daten müssen die Werte zur Berechnung des Gesamtmassenträgheitsmoments in die Liste addiert oder subtrahiert werden.","After all data have been entered in full, the values for calculating the total mass moment of inertia must be added or subtracted in the list.","Après la saisie de l'ensemble des données les valeurs nécessaires au calcul du couple d'inertie de masse totale doivent être ajoutées ou soustraites de la liste.","Dopo l'immissione completa di tutti i dati i valori per il calcolo del momento di inerzia della massa totale devono essere sommati o sottratti nella lista.","Tras introducir todos los datos, se deben sumar o sustraer los valores en la lista para calcular el momento de inercia de la masa total."]
["Gesamt-Massenträgheitsmoment","Gesamt-Massenträgheitsmoment","Total mass moment of inertia","Moment d’inertie de la masse totale","Momento di inerzia della massa totale","Momento de inercia de la masa total"]
["Durch die Möglichkeit der Aufsummierung einzelner Körper ist es möglich das Gesamtmassenträgheitsmoment sowie die Koordinaten des Gesamtmassenschwerpunkts unterschiedlichster Schwenkaufbauten zu berechnen. Diese sind dann die Grundlage zur Berechnung eines geeigneten Drehladers.","Durch die Möglichkeit der Aufsummierung einzelner Körper ist es möglich das Gesamtmassenträgheitsmoment sowie die Koordinaten des Gesamtmassenschwerpunkts unterschiedlichster Schwenkaufbauten zu berechnen. Diese sind dann die Grundlage zur Berechnung eines geeigneten Drehladers.","The possibility of adding up single bodies allows calculation of the total mass moment of inertia as well as the coordinates of the total mass center of gravity of a wide range of different rotary assemblies. They are the basis for calculation of a suitable rotary loader.","La possibilité d'additionner les différents corps permet de calculer le couple d'inertie de la masse totale ainsi que les coordonnées du centre de gravité de la masse totale des constructions pivotantes les plus diverses. Il s'agit ensuite de la base de calcul d'un chargeur rotatif adapté.","Grazie alla possibilità di sommare i singoli corpi è possibile calcolare il momento di inerzia di massa totale nonché le coordinate del baricentro della massa totale delle più svariate strutture oscillanti. Questi costituiscono quindi il fondamento per il calcolo di un caricatore rotante idoneo.","Gracias a la posibilidad de sumar distintos cuerpos, se pueden calcular el momento de inercia de la masa total y las coordenadas del centro de gravedad de la masa total de distintas estructuras basculantes. Esto es lo que sirve más adelante como base para calcular un cargador giratorio adecuado."]
["Alle in die Liste übernommenen Einzelkörperwerte können zeilenweise gelöscht werden.","Alle in die Liste übernommenen Einzelkörperwerte können zeilenweise gelöscht werden.","All single body values included in the list can be deleted line by line.","Toutes les valeurs de pièces individuelles reprises dans la liste peuvent être supprimées temporairement.","Tutti i valori dei corpi singoli registrati nella lista possono essere cancellati una riga alla volta.","Todos los cuerpos individuales aceptados en la lista se pueden borrar por líneas."]
["Sind in die letzte Zeile der Liste bereits Einzelkörperwerte übernommen worden und Sie wollen weitere Einzelkörper berechnen und in die Liste übernehmen, erhalten Sie eine Meldung die Sie mit - JA - bestätigen. Das bisher berechnete Gesamtmassenträgheitsmoment mit Schwerpunktskoorinaten  wird dann in die erste Zeile der Liste übernommen. Sie können nun weitere Einzelkörper berechnen und in die Liste übernehmen.","Sind in die letzte Zeile der Liste bereits Einzelkörperwerte übernommen worden und Sie wollen weitere Einzelkörper berechnen und in die Liste übernehmen, erhalten Sie eine Meldung die Sie mit - JA - bestätigen. Das bisher berechnete Gesamtmassenträgheitsmoment mit Schwerpunktskoorinaten  wird dann in die erste Zeile der Liste übernommen. Sie können nun weitere Einzelkörper berechnen und in die Liste übernehmen.","If single body values have been included in the last line of the list and you want to calculate further single bodies and include these in the list, you will receive a message you must confirm with -YES-. The total mass moment of inertia and co-ordinates of centre of gravity previously calculated will then be included in the first line of the list. You can now calculate other single bodies and include these in the list.","Si des valeurs de pièces individuelles sont déjà saisies dans la dernière ligne de la liste et que vous souhaitez calculer d'autres pièces individuelles et les ajouter à la liste, le logiciel génère un message que vous confirmerez par - OUI -. Le couple d'inertie de masse totale calculé avec les coordonnées du centre de gravité sera alors repris en première ligne de la liste. Vous pouvez ainsi calculer d'autres pièces individuelles et les ajouter à la liste.","Se nell'ultima riga della lista sono già stati registrati valori di corpi singoli e si desiderano calcolare e registrare nella lista ulteriori corpi singoli, si riceve un messaggio da confermare con - SÌ -. Il momento di inerzia della massa totale con coordinate del baricentro, calcolato precedentemente, viene quindi registrato nella prima riga della lista. Ora è possibile calcolare e registrare nella lista ulteriori corpi singoli.","Si ya se han aceptado valores de cuerpos individuales en la última línea de la lista, y se desea calcular otros cuerpos individuales y aceptarlos en la lista, aparece un mensaje que debe ser confirmado con - SÍ -. El momento de inercia de la masa total, con las coordenadas del centro de masa, ya calculado es aceptado en la primera línea de la lista. Se pueden calcular otros cuerpos individuales y aceptarlos en la lista."]
["Über den Button - NEUBERECHNUNG - können Sie die komplette Berechnung löschen.","Über den Button - NEUBERECHNUNG - können Sie die komplette Berechnung löschen.","Using the button - NEW CALCULATION - you can delete the entire calculation.","L'icône - NOUVEAU CALCUL - permet de supprimer l'ensemble du calcul.","Mediante il pulsante - NUOVO CALCOLO - è possibile cancellare l'intero calcolo.","Con el botón - NUEVO CÁLCULO - se puede borrar el cálculo completo."]
["Nach vollständiger Berechnung des Gesamtmassenträgheitsmoments mit Schwerpunktkoordinaten Ihres zu schwenkenden Aufbaus, gelangen sie über den Button - Zur DRL-Berechnung - in die Modul-Berechnungsmaske, in der Sie bitte den gewünschten Schwenkwinkel und evtl. eine der Optionen ( beide gleichzeitig sind nicht möglich !) eingeben.","Nach vollständiger Berechnung des Gesamtmassenträgheitsmoments mit Schwerpunktkoordinaten Ihres zu schwenkenden Aufbaus, gelangen sie über den Button - Zur DRL-Berechnung - in die Modul-Berechnungsmaske, in der Sie bitte den gewünschten Schwenkwinkel und evtl. eine der Optionen ( beide gleichzeitig sind nicht möglich !) eingeben.","After complete calculation of the total mass moment of inertia with center of gravity coordinates of your assembly to be rotated, push the button - DRL calculation - to open the module calculation mask where you then enter the desired angle of rotation and possibly one of the options (both at the same time are not possible!).","Après calcul complet du couple d'inertie de la masse totale avec les coordonnées du centre de gravité de votre construction devant pivoter, vous parvenez au bouton - pour le calcul DRL - dans le masque de calcul du module dans lequel vous indiquez l'angle souhaité de pivotement et éventuellement une des options (les deux en même temps ne sont pas possibles !).","Dopo il calcolo completo del momento di inerzia di massa totale con coordinate del baricentro della vostra struttura da far oscillare, tramite il pulsante - Al calcolo del DRL - si va alla schermata di calcolo del modulo in cui vanno immessi l'angolo di oscillazione desiderato ed eventualmente una delle opzioni (entrambe contemporaneamente è impossibile!).","Tras el cálculo completo del momento de inercia de la masa total con las coordenadas del centro de gravedad de la estructura a bascular, puede pulsar el botón \"Ir al cálculo DRL\" para pasar a la interfaz de cálculo de módulo, en la que introducirá el ángulo de giro deseado y, eventualmente, una de las opciones (no es posible seleccionar las dos al mismo tiempo)."]
["Hier wählen Sie den gewünschten Typ aus, dessen zulässiges Massenträgheitsmoment im Bereich Ihres berechnenten Wertes liegt. Durch anklicken gelangen Sie in die Modul-Berechnungsmaske in der Sie bitte Ihre Daten eingeben.","Hier wählen Sie den gewünschten Typ aus, dessen zulässiges Massenträgheitsmoment im Bereich Ihres berechnenten Wertes liegt. Durch anklicken gelangen Sie in die Modul-Berechnungsmaske in der Sie bitte Ihre Daten eingeben.","Here you can choose the desired type, and its admissible mass moment of inertia within the calculated value. Click on the module selection screen to enter your data.","Ici, sélectionner le type de module souhaité dont le couple d'inertie de masse admissible est compris dans la plage de la valeur calculée. Un clic sur le module permet d'accéder au masque de calcul du module où il faut saisir les données.","Qui potete scegliere il tipo desiderato e il suo momento d'inerzia  di massa ammissibile entro il valore calcolato. Fare clic sulla schermata di selezione del modulo per inserire i vostri dati.","Aqui eligen en deseado tipo que cumple corespondiente con su valor calculado. Marcando llegaran al modul de calcular y aqui introducen sus sus valores."]
["Berechnungsgrundlagen für Drehlader","Berechnungsgrundlagen für Drehlader","Calculation principles for rotary loaders","Principes de calcul pour le chargeur rotatif","Fondamenti per il calcolo del caricatore rotante","Principios básicos para calcular cargadores giratorios"]
["Anwendungsdaten:","Anwendungsdaten:","Application data:","Données d'application :","Dati di applicazione:","Datos de aplicación:"]
["Kundenanforderungen","Kundenanforderungen","Customer requirements","Exigences du client","Richieste del cliente","Exigencias del cliente"]
["Gesamt-Massenträgheitsmoment ","Gesamt-Massenträgheitsmoment ","Total mass moment of inertia","Moment d’inertie de la masse totale ","Momento di inerzia della massa totale ","Momento de inercia de la masa total "]
["Koordinaten des Massenschwerpunkts","Koordinaten des Massenschwerpunkts","Co-ordinates of centre of gravity","Coordonnées du centre de gravité de la masse","Coordinate del baricentro della massa","Coordinadas del centro de masa total"]
["Schwenkwinkel","Schwenkwinkel","Swivel angle","Angle de pivotement","Angolo di rotazione","Ángulo de giro"]
["Drehachse horizontal oder vertikal","Drehachse horizontal oder vertikal","Axis of rotation: horizontal or vertical","Axe de rotation horizontal ou vertical","Asse di rotazione orizzontale o verticale","Eje de rotación horizontal o vertical"]
["Drehrichtung UZ oder GUZ","Drehrichtung UZ oder GUZ","Direction of rotation: clockwise or anticlockwise","Sens de rotation dans le sens des aiguilles d'une montre ou dans le sens contraire aux aiguilles d'une montre.","Senso di rotazione OR o AOR","Sentido de rotación AR o CAR"]
["Moduldaten:","Moduldaten:","Actuator data:","Données des modules :","Dati del modulo:","Datos del módulo:"]
["Betriebsdruck 6/5 bar ( DRL20/DRL25 )","Betriebsdruck 6/5 bar ( DRL20/DRL25 )","Operating pressure 6/5 bar ( DRL20/DRL25 )","Pression de service 6/5 bars ( DRL20/DRL25 )","Pressione d'esercizio 6/5 bar ( DRL20/DRL25 )","Presión de trabajo 6/5 bar ( DRL20/DRL25 )"]
["Stoßdämpferauslastung pro Hub und Stunde max. 100%","Stoßdämpferauslastung pro Hub und Stunde max. 100%","Shock absorber utilisation per stroke and hour max. 100%","Taux d'utilisation des amortisseurs par course et par heure 100% maximum","Distribuzione del carico sull'ammortizzatore per ogni corsa e all'ora max. 100%","Sobreutilización del amortiguador por carrera y hora máx. 100%"]
["Lagerbelastung durch Beschleunigung und Verzögerung unter Berücksichtigung aller auftretenden Kräfte und Momente","Lagerbelastung durch Beschleunigung und Verzögerung unter Berücksichtigung aller auftretenden Kräfte und Momente","Bearing load by acceleration and deceleration taking account of all forces and moments","Charge de palier par accélération et décélération en tenant compte de toutes les forces et de tous les couples présents","Carico sul cuscinetto mediante accelerazione e ritardo considerando tutti i momenti e le forze che si verificano","Carga sobre el cojinete por aceleración y desaceleración considerando todas las fuerzas y momentos que actúan"]
["Wirkt eine externe Kraft F bzw. ein externes Moment M auf das Rotationsmodul, ist die Auslastung der Lagerung neu zu berechnen.","Wirkt eine externe Kraft F bzw. ein externes Moment M auf das Rotationsmodul, ist die Auslastung der Lagerung neu zu berechnen.","If an external force F or external moment M acts on the rotary actuator, the utilisation of the bearing arrangement must be recalculated.","Si une force externe ou un couple externe agit sur le module de rotation, le taux d'utilisation du palier doit être recalculé.","Se sul modulo di rotazione agiscono una forza esterna F o un momento esterno M, la distribuzione del carico sul cuscinetto deve essere ricalcolata.","Si actúa una fuerza externa F o un momento externo M sobre el módulo rotatorio, se debe calcular de nuevo la sobreutilización de la disposición de los cojinetes."]
["Setzen Sie sich bitte mit uns in Verbindung !!","Setzen Sie sich bitte mit uns in Verbindung !!","Please contact us !!","Veuillez prendre contact avec notre service technique !!","Siete pregati di contattarci !!","Contacte inmediatamente con nosotros."]
["Eine extern einwirkende Kraft kann auch eine Belastung durch Beschleunigung oder Verzögerung darstellen. Dies ist der Fall wenn das mit dieser Software zu berechnende Modul auf einer weiteren Bewegungsachse aufgebaut ist und somit einer dynamischen Belastung ausgesetzt wird.","Eine extern einwirkende Kraft kann auch eine Belastung durch Beschleunigung oder Verzögerung darstellen. Dies ist der Fall wenn das mit dieser Software zu berechnende Modul auf einer weiteren Bewegungsachse aufgebaut ist und somit einer dynamischen Belastung ausgesetzt wird.","An external force can also influence the greater load on acceleration or deceleration. This is particularly the case if  a module has been calculated with this software, and will be attached to a further motion axis. In this case it will be exposed to a dynamic load.","Une force appliquée de l'extérieur peut également représenter une charge dû à l'accélération ou à la décélération. C'est le cas, lorsque le module à calculer avec ce logiciel est installé sur un axe de déplacement supplémentaire et par conséquent exposé à une charge dynamique.","Una forza esterna può anche influenzare il carico in accelerazione o decelerazione. Questo è in particolare il caso se il modulo è stato calcolato con questo software, e sarà collegato ad un unlteriore asse di movimentazione. In questo caso sarà sottoposto ad un carico dinamico.","Una fuerza actuando externamente tambien puede significar una carga por aceleración o deaceleración.  Eso en el caso de que su aplicación esta montado sobre otro eje de movimiento y así sometido a una carga dinamica."]
["Sind alle Daten eingegeben, können von den ursprünglich aufgezeigten Modulen aus folgenden Gründen einige Typen entfallen sein:","Sind alle Daten eingegeben, können von den ursprünglich aufgezeigten Modulen aus folgenden Gründen einige Typen entfallen sein:","Once all data are entered, some of the actuators originally displayed may be omitted for the following reasons:","Lorsque toutes les données sont saisies, certains parmi les types de modules présentés initialement peuvent ne plus être affichés pour les raisons suivantes :","Dopo aver immesso tutti i dati, è possibile che alcuni tipi dei moduli indicati in origine siano venuti meno per i seguenti motivi:","Una vez introducidos todos los datos, se pueden suprimir algunos tipos de los módulos mostrados en un principio debido a las siguientes razones: "]
["Drehwinkel < 10 Grad  (nur bei RM 50)","Drehwinkel < 10 Grad  (nur bei RM 50)","Rotation angle < 10 deg  (only RM 50)","Angle de rotation < 10° (uniquement sur RM 50)","Angolo di rotazione < 10 gradi  (solo con RM 50)","Ángulo de rotación < 10 grados (sólo para RM 50)"]
["Auslastung der Stoßdämpfer pro Zyklus > 100%","Auslastung der Stoßdämpfer pro Zyklus > 100%","Utilisation of shock absorbers per cycle > 100%","Taux d'utilisation des amortisseurs par cycle > 100%","Distribuzione del carico degli ammortizzatori per ogni ciclo > 100%","Sobreutilización de los amortiguadores por ciclo > 100%"]
["Massenträgheitsmoment  > 100% des jeweils zulässigen Wertes","Massenträgheitsmoment  > 100% des jeweils zulässigen Wertes","Mass moment of inertia  > 100% of permissible value","Couple d'inertie de masse > 100% de la valeur admissible respective","Momento di inerzia della massa  > 100% del valore rispettivamente ammissibile","Momento de inercia de la masa  > 100% del valor admisible correspondiente"]
["Gesamtmasse  > zulässiger Wert","Gesamtmasse  > zulässiger Wert","Total mass > permissible value","Masse totale > valeur autorisée","Massa totale > valore ammesso","Masa total > Valor admisible"]
["Massenbedingte Reduzierung des Antriebsmoments > 50% bei horizontaler Drehachse","Massenbedingte Reduzierung des Antriebsmoments > 50% bei horizontaler Drehachse","Mass-induced reduction in drive moment > 50% for horizontal axis of rotation","Réduction du couple d'entraînement due à la masse > 50% pour un axe de rotation horizontal","Riduzione della coppia motrice dovuta alla massa > 50% con asse di rotazione orizzontale","Reducción del momento de accionamiento debido a la masa > 50% para eje de rotación horizontal"]
["Mit allen verbliebenen Typen ist Ihr Anwendungsfall realisierbar.","Mit allen verbliebenen Typen ist Ihr Anwendungsfall realisierbar.","Your application can be implemented with all remaining types.","Avec tous les types restants, votre cas d'application est réalisable.","Il suo caso di applicazione è realizzabile con tutti i modelli rimasti.","Su caso de aplicación se puede realizar con todos los modelos restantes."]
["Berechnungsergebnisse","Berechnungsergebnisse","Calculation results","Résultats de calcul","Risultati del calcolo","Resultados del cálculo"]
["Auslastung Stoßdämpfer pro Zyklus","Auslastung Stoßdämpfer pro Zyklus","Utilisation of shock absorber per cycle","Taux d'utilisation des amortisseurs par cycle","Distribuzione del carico sull'ammortizzatore per ogni ciclo","Sobreutilización amortiguador por ciclo"]
["Auslastung Massenträgheitsmoment","Auslastung Massenträgheitsmoment","Utilisation of mass moment of inertia","Taux d'utilisation du couple d'inertie de la masse","Distribuzione del carico momento di inerzia della massa","Sobreutilización momento de inercia de la masa"]
["Gesamtmasse   ","Gesamtmasse   ","Total mass   ","Masse totale   ","Massa totale   ","Masa total   "]
["Auslastung Antriebsmoment bei horizontaler Drehachse","Auslastung Antriebsmoment bei horizontaler Drehachse","Utilisation of drive moment with horizontal axis of rotation","Taux d'utilisation du couple d'entraînement pour un axe de rotation horizontal","Distribuzione del carico coppia motrice con asse di rotazione orizzontale","Sobreutilización del momento de accionamiento para eje de rotación horizontal"]
["Minimale Taktzeit","Minimale Taktzeit","Minimum cycle time","Cadence minimale","Tempo di ciclo minimo","Tiempo de ciclo mínimo"]
["Maximale Zyklenzahl pro Minute","Maximale Zyklenzahl pro Minute","Maximum number of cycles per minute","Nombre maximal de cycles par minute","Massimo numero di cicli al minuto","Número de ciclos máximo por minuto"]
["Beispiel","Beispiel","Example","Exemple","Esempio","Ejemplo"]
["ACHTUNG:","ACHTUNG:","NOTE:","ATTENTION :","ATTENZIONE:","ATENCIÓN:"]
["Die berechneten Werte dürfen nicht über- bzw. unterschritten werden !","Die berechneten Werte dürfen nicht über- bzw. unterschritten werden !","Actual values must not be higher or lower than calculated values !","Les valeurs calculées ne doivent être dépassées ni vers le haut, ni vers le bas !","I valori calcolati devono sempre essere raggiunti e non devono essere superati !","Los valores calculados no pueden ser excedidos ni quedar por debajo."]
["Wegen der vielfältigen Gestaltungsmöglichkeiten sind in den Taktzeiten und Zykluszahlen keine Ansteuerungs- und Ventilschaltzeiten berücksichtigt. Je nach Aufbau und Art der verwendeten Steuerungen und Ventile sind Ansteuerungs- und Schaltzeiten von 0,05 sek. pro Bewegung realisierbar. Diese sind zu den berechneten Zeiten zu addieren.","Wegen der vielfältigen Gestaltungsmöglichkeiten sind in den Taktzeiten und Zykluszahlen keine Ansteuerungs- und Ventilschaltzeiten berücksichtigt. Je nach Aufbau und Art der verwendeten Steuerungen und Ventile sind Ansteuerungs- und Schaltzeiten von 0,05 sek. pro Bewegung realisierbar. Diese sind zu den berechneten Zeiten zu addieren.","Due to the diverse design possibilities the cycle times and cycle numbers do not take into account any actuation and valve switching times. Depending on the assembly and the type of controllers and valves used, actuation and switching times of 0.05 seconds per movement can be achieved. They must be added to the calculated times.","Du fait des multiples possibilités de conception, les cadences et les nombres de cycles ne prennnent pas en compte les temps de déclenchement et de commutations de vannes. Selon la construction et le type de commandes et de vannes utilisées, des temps de déclenchement et de commutation de 0,05 sec. par mouvement sont réalisables. Il faut les additionner aux temps devant être calculés.","A fronte delle svariate possibilità di strutturazione i tempi di pilotaggio e di commutazione della valvola non sono tenuti presenti nei tempi di ciclo e nei numeri di cicli. A seconda della struttura e del tipo di comandi e delle valvole utilizzati sono realizzabili tempi di pilotaggio e di commutazione di 0,05 sec. per movimento. Questi vanno quindi aggiuti ai tempi calcolati.","Debido a las múltiples posibilidades de configuración, en los tiempos y en los números de ciclo no se tienen en cuenta tiempos de accionamiento ni tiempos de conmutación de válvulas. Dependiendo de la estructura y del tipo de controles y válvulas utilizados, se podrán ejecutar tiempos de accionamiento y de conmutación de 0,05 s por movimiento. Estos deberán sumarse a los tiempos calculados."]
["Keine harten Schläge durch die bewegten Massen !","Keine harten Schläge durch die bewegten Massen !","No hard impacts by moving masses !","Les chocs durs provoqués par les masses déplacées ne sont pas admis !","Evitare forti urti causati dalle masse in movimento !","Se deben evitar que se produzcan fuertes impactos por masas en movimiento."]
["Die bewegten Massen dürfen beim Aufprall auf den Stoßdämpfer und in den Endlagen keine Schläge verursachen. Dies ist durch entsprechende Hubeinstellung der Stoßdämpfer in den Anschlaghülsen sicherzustellen.","Die bewegten Massen dürfen beim Aufprall auf den Stoßdämpfer und in den Endlagen keine Schläge verursachen. Dies ist durch entsprechende Hubeinstellung der Stoßdämpfer in den Anschlaghülsen sicherzustellen.","The moving masses must not cause impacts when coming into contact with the shock absorber and at the end positions. This must be ensured by appropriate stroke adjustment of the shock absorbers in the stop sleeves.","Les masses en mouvement ne doivent pas provoquer de chocs au niveau de l'amortisseur et des fins de courses. Un ajustement correct de la course de l’amortisseur sur les douilles d'arrêt permet d'assurer l'absence de chocs.","Le masse in movimento non devono causare urti quando collidono con l'ammortizzatore e le posizioni finali. Questo deve essere garantito mediante rispettiva regolazione della corsa degli ammortizzatori nelle boccole di arresto.","Las masas en movimiento no deben causar ningún impacto al chocar con los amortiguadores y alcanzar las posiciones finales. Esto se debe garantizar mediante el debido ajuste de la carrera de los amortiguadores en los manguitos de tope."]
["Zur Ergebnismaske","Zur Ergebnismaske","Results mask","A propos du masque de résultat","Alla schermata dei risultati","Ir a la interfaz de resultados"]
[]
[]
[]
[]
[]
[]
[]
[]
[]
[]
[]
[]
["Allgemeine Infos"]
[]
[{"$f":"IF($A$2=1,B94,IF($A$2=2,C94,IF($A$2=3,D94,IF($A$2=4,E94,IF($A$2=5,F94)))))","v":"Systemvorraussetzungen"},"Systemvorraussetzungen","System requirements","Config. de base du système","Requisiti di sistema","Requisitos del sistema"]
["Diese Software muss nicht auf Ihrem Rechner installiert werden da es sich um eine Excel-Datei mit Anwendungen in Visual Basic handelt. Unter Umständen muß Ihr Virenschutz für Excel-Makros auf eine mittlere Sicherheitsstufe gesetzt werden. Im Zweifelsfall wenden Sie sich bitte an Ihren Systemadministrator. Folgende MINDESTVORAUSSETZUNGEN müssen auf Ihrem Arbeitsplatz erfüllt sein: ","Diese Software muss nicht auf Ihrem Rechner installiert werden da es sich um eine Excel-Datei mit Anwendungen in Visual Basic handelt. Unter Umständen muß Ihr Virenschutz für Excel-Makros auf eine mittlere Sicherheitsstufe gesetzt werden. Im Zweifelsfall wenden Sie sich bitte an Ihren Systemadministrator. Folgende MINDESTVORAUSSETZUNGEN müssen auf Ihrem Arbeitsplatz erfüllt sein: ","This software does not require installation on your computer, since itis an Excel file with applications in Visual Basic. In certain circumstances, your virus protection for Excel macros will require setting to a moderate safety level. If in doubt, please consult your system administrator. Your workstation must fulfil the following MINIMUM REQUIREMENTS: ","Ce logiciel ne doit pas être installé sur votre ordinateur, puisqu'il s'agît simplement d'un fichier Excell avec applications en Visual Basic. Il sera éventuellement nécessaire de régler votre anti-virus pour les macros Excel sur un niveau de protection moyen. En cas de doute adressez-vous à votre administrateur système. Les CONIGURATIONS MINIMALES suivantes doivent être disponibles sur votre lieu de travail : ","Questo software non deve essere installato sul vostro computer, dato che si tratta di un file Excel con applicazioni in Visual Basic. È possibile che il vostro antivirus per macro Excel debba essere impostato su un grado di sicurezza medio. In caso di dubbio rivolgersi al proprio amministratore di sistema. Nelle vostre risorse del sistema devono esserci i seguenti REQUISITI MINIMI: ","No instale este software en su ordenador, ya que se trata de un archivo Excel con aplicaciones para Visual Basic. Quizás sea necesario actualizar su antivirus para macros de Excel a un nivel de seguridad medio. En caso de duda, póngase en contacto con su administrador de sistema. REQUISITOS MÍNIMOS de su equipo de trabajo: "]
["Hardware:","Hardware:","Hardware:","Matériel informatique :","Hardware:","Hardware:"]
["Software:","Software:","Software:","Logiciels :","Software:","Software:"]
["Prozessor:","Prozessor:","Processor:","Processeur :","Processore:","Procesador:"]
["Freier Arbeitsspeicher:","Freier Arbeitsspeicher:","Free space:","Mémoire vive disponible :","Memoria di lavoro libera:","Capacidad de mem. libre:"]
["Betriebssystem:","Betriebssystem:","Operating system:","Système d'exploitation :","Sistema operativo:","Sistema operativo:"]
["Software:","Software:","Software:","Logiciels :","Software:","Software:"]
["Pentium III - 500MHz","Pentium III - 500MHz","Pentium III - 500MHz","Pentium III - 500MHz","Pentium III - 500MHz","Pentium III - 500MHz"]
["min. 35MB","min. 35MB","min. 35MB","min. 35MO","min. 35MB","mín. 35MB"]
["Microsoft Windows 98","Microsoft Windows 98","Microsoft Windows 98","Microsoft Windows 98","Microsoft Windows 98","Microsoft Windows 98"]
["MS-Excel 2000-2003","MS-Excel 2000-2003","MS-Excel 2000-2003","MS-Excel 2000-2003","MS-Excel 2000-2003","MS-Excel 2000-2003"]
["Je nach Hardwarevoraussetzung kann das Öffnen der umfangreichen Datei bis zu einer Minute in Anspruch nehmen. Bei der Anwendung der geöffneten Datei entstehen keine langen Wartezeiten.","Je nach Hardwarevoraussetzung kann das Öffnen der umfangreichen Datei bis zu einer Minute in Anspruch nehmen. Bei der Anwendung der geöffneten Datei entstehen keine langen Wartezeiten.","Depending on the hardward configuration, opening the extensive file may take up to one minute. Use of the file once opened does not involve long waiting times.","L'ouverture de ce fichier volumineux peut prendre jusqu'à une minute selon votre configuration matérielle. Ensuite, lorsque vous travaillez sur le fichier, il n'y aura plus de temps d'attente prolongés.","A seconda dei requisiti hardware è possibile che l'apertura del file molto esteso richieda fino a un minuto. Durante l'impiego del file aperto non insorgono tempi di attesa lunghi.","En función de las características del hardware es posible que el archivo tarde hasta un minuto en abrirse. Una vez abierto, la utilización del mismo no conlleva largos tiempos de espera."]
["Haftung","Haftung","Liability","Garantie","Garanzia","Responsabilidad"]
["Alle Angaben und technische Werte wurden nach bestem Wissen und Gewissen zusammengestellt. Eine Rechtsverbindlichkeit besteht nur dann, wenn Ihnen diese Daten, bezogen auf Ihren Anwendungsfall, schriftlich durch uns direkt zugesichert wurden. Änderungen und Abweichungen in der Ausführung eines in Auftrag gegebenen Produkts sind zulässig, insbesondere wenn sie qualitätsfördernd sind oder dem technischen Fortschritt dienen, also eine Produktverbesserung beinhalten. Sie sind aber immer so ausgelegt, daß sie den berechtigten Interessen des Verwenders zumutbar sind.","Alle Angaben und technische Werte wurden nach bestem Wissen und Gewissen zusammengestellt. Eine Rechtsverbindlichkeit besteht nur dann, wenn Ihnen diese Daten, bezogen auf Ihren Anwendungsfall, schriftlich durch uns direkt zugesichert wurden. Änderungen und Abweichungen in der Ausführung eines in Auftrag gegebenen Produkts sind zulässig, insbesondere wenn sie qualitätsfördernd sind oder dem technischen Fortschritt dienen, also eine Produktverbesserung beinhalten. Sie sind aber immer so ausgelegt, daß sie den berechtigten Interessen des Verwenders zumutbar sind.","All data and technical values were compiled to the best of our knowledge and in good faith. No legal liability can be accepted unless these data are directly confirmed to you in writing in specific relation to your application. Changes and deviations in the design of a product stated in an order are permitted, especially where these serve to improve quality or aid technical progress and thus constitute an improvement in the product. These will always be carried out, however, such that they correspond to the justified interests of the user.","Toutes les données et valeurs techniques ont été rassemblées à partir des meilleures connaissanes et savoir-faire. Une obligation juridique existe seulement si nous vous avons assuré ces données relatives à votre cas d’application directement par écrit. Des modifications et des écarts lors de la fabrication d’un produit commandé sont autorisées, en particulier lorsqu’elles contribuent à la qualité ou au progès technique, et donc à une amélioration du produit. Toutefois celle-ci doivent toujours servir l'intérêt légitime de l'utilisateur.","Tutte le indicazioni e i valori tecnici sono stati riportati secondo scienza e coscienza. Il vincolo giuridico sussiste solo qualora tali dati siano stati confermati direttamente per iscritto da parte nostra, in riferimento al vostro tipo di impiego. Sono ammesse modifiche e variazioni nella realizzazione di un prodotto ordinato, soprattutto se incentivano la qualità o favoriscono il progresso tecnico, con una conseguente ottimizzazione del prodotto. Esse sono sempre realizzate compatibilmente ai legittimi interessi dell'utente.","Todos los datos y valores técnicos han sido confeccionados según nuestro leal saber y entender. Estos datos sólo son de obligatoriedad jurídica si se los hemos confirmado por escrito referidos a su caso concreto. Los cambios y variaciones del producto original son admisibles especialmente cuando respondan a un aumento de la calidad o a la actualización técnica, es decir, cuando se trate de una mejora del producto. Están pensados de forma que respeten siempre las exigencias de los intereses del usuario."]
[]
[]
[]
[]
[]
["PPU-P"]
[{"$f":"IF($A$2=1,B115,IF($A$2=2,C115,IF($A$2=3,D115,IF($A$2=4,E115,IF($A$2=5,F115)))))","v":"Zur Berechnung von Pick&Place-Einheiten ist - VORHER - die zu bewegende Masse und deren Schwerpunkt zu berechnen !"},"Zur Berechnung von Pick&Place-Einheiten ist - VORHER - die zu bewegende Masse und deren Schwerpunkt zu berechnen !","For calculation of Pick&Place units the mass to be moved and its center of gravity must be calculated FIRST!","Pour calculer les unités Pick&Place, il faut - D'ABORD - calculer la masse devant être mise en mouvement et sont centre de gravité !","Per il calcolo delle unità Pick&Place - PRIMA - è necessario calcolare la massa da movimentare e il relativo baricentro!","Para calcular unidades Pick&Place, hay que calcular PREVIAMENTE la masa a mover y su punto de gravedad."]
["Berechnung Massenträgheitsmoment","Berechnung Massenträgheitsmoment","Calculation of the mass moment of inertia","Calcul du couple d'inertie de masse","Calcolo del momento d'inerzia della massa","Calculación del momento del centro de la gravedad"]
["Zurück zu \"Ringschalttische\"","Zurück zu \"Ringschalttische\"","Back to the \"ring indexing tables\"","Retour aux « plateaux tournants à indexation »","Torna a \"tavole rotanti indicizzate\"","Volver a \"Mesas de indexado\""]
["Berechnungsgrundlagen für Pick&Place-Einheiten","Berechnungsgrundlagen für Pick&Place-Einheiten","Calculation principles for Pick&Place units","Principes de calcul des unités Pick&Place","Fondamenti per il calcolo delle unità Pick&Place","Principios básicos para calcular unidades Pick&Place"]
["Teilung","Teilung","Pitch","Division","Divisione","Index"]
["Teilung nicht möglich","Teilung nicht möglich","Pitch not possible","Division impossible","Divisione non possibile","Index no posible"]
["Minimale Zykluszeit ","Minimale Zykluszeit ","Minimum cycle time","Temps de cycle minimal ","Tempo ciclo minimo","Tiempo de ciclo minimo"]
["Minimale Schwenkzeit","Minimale Schwenkzeit","Minimum swivelling time","Temps de pivotement minimal","Tempo di rotazione minimo","Tiempo de giro minimo"]
["Die bewegten Massen dürfen beim Aufprall auf den Stoßdämpfer und in den Endlagen keine Schläge verursachen. Dies ist durch entsprechende Hubeinstellung der Stoßdämpfer sicherzustellen.","Die bewegten Massen dürfen beim Aufprall auf den Stoßdämpfer und in den Endlagen keine Schläge verursachen. Dies ist durch entsprechende Hubeinstellung der Stoßdämpfer sicherzustellen.","The moving masses shouldn't cause any shocks if they hit the shock absorber and the end positions. This has to be ensured by correspondingly adjusting the stroke position of the shock absorber ","Les masses en mouvement ne doivent pas causer de chocs lors de l'impact sur l'amortisseur et dans les positions de fin de course. Cela doit être assuré par le réglage correspondant de la course des amortisseurs.","Le masse in movimento non dovrebbe causare urti quando raggiungono con l'ammortizzatore le posizioni finali. Questo deve essere evitanto regolando opportunamente la posizione, ovvero la corsa dell'ammortizzatore","Las masas no deben producir golpes en el momento de llegar a su posición final (contacto con el amortiguador) Se puede evitar eso ajustando las carreras de los amortiguadores."]
["Wirkt eine externe Kraft F bzw. ein externes Moment M auf den Ringschalttisch, ist die Auslastung der Lagerung neu zu berechnen.","Wirkt eine externe Kraft F bzw. ein externes Moment M auf den Ringschalttisch, ist die Auslastung der Lagerung neu zu berechnen.","If an external force (F) or an external moment (M) effects the ring indexing table, the maximum load capacity has to be re-calculated.","Si une force externe F ou un couple externe M agit sur le plateau tournant à indexation, calculer de nouveau le taux d'utilisation du palier.","In  presenza di una forza esterna (F) o di un momento esterno (M) sulla tavola rotante indicizzata, la capacità di carico massima della medesima deve essere ricalcolata.","Sí actua una fuerza F o un momento M externo a la mesa de indexado, se ha de calcula la carga de nuevo."]
["Aus nachfolgend aufgezeigten Einzelkörpern ist es möglich, durch Zusammensetzen, Aufsummieren oder Subtrahieren die Gesamtschwerpunktskoordinaten eines spezifischen Aufbaus zu ermitteln.","Aus nachfolgend aufgezeigten Einzelkörpern ist es möglich, durch Zusammensetzen, Aufsummieren oder Subtrahieren die Gesamtschwerpunktskoordinaten eines spezifischen Aufbaus zu ermitteln.","From the single bodies calculated below it is possible, through combination, addition or subtraction to determine the total center of gravity coordinates of a specific assembly.","A partir des différents corps désignés ci-dessous, il est possible de déterminer, en regroupant, en additionnant ou en soustrayant, l'ensemble des coordonnées du centre de gravité d'une construction spécifique.","Dai corpi singoli indicati qui di seguito è possibile determinare, mediante composizione, addizione o sottrazione, le coordinate del baricentro totale di una struttura specifica.","A partir de los cuerpos individuales que se indican a continuación, es posible averiguar las coordenadas totales del centro de gravedad de una estructura específica mediante combinaciones, sumas o restas."]
["Direkte Eingabe von m","Direkte Eingabe von m","Direct input of m","Saisie directe de m","Immissione diretta di m","Introducción directa de m"]
["Nach vollständiger Berechnung der Gesamtmasse mit Schwerpunktkoordinaten des Aufbaus, gelangen sie über den Button - Zur PPU-P-Berechnung - in die Modul-Berechnungsmaske.","Nach vollständiger Berechnung der Gesamtmasse mit Schwerpunktkoordinaten des Aufbaus, gelangen sie über den Button - Zur PPU-P-Berechnung - in die Modul-Berechnungsmaske.","After complete calculation of the total mass with center of gravity coordinates of the assembly, you can press the button - PPU-P calculation - to open the module calculation mask.","Après calcul complet de la masse totale avec les coordonnées de centre de gravité de la construction, vous parvenez dans le masque de calcul du module à l'aide du bouton - Pour le calcul PPU-P -.","Dopo il calcolo completo della massa totale con coordinate del baricentro della struttura, con il pulsante - Al calcolo di PPU-P - si va alla schermata di calcolo del modulo.","Tras el cálculo completo de la masa total con las coordenadas del centro de gravedad de la estructura, puede pulsar el botón - Ir al cálculo PPU-P - para pasar a la interfaz de cálculo de módulo."]
["Einzelkörper-Massenwerte","Einzelkörper-Massenwerte","Single body mass values","Valeurs de la masse du corps individuel","Valori di massa del singolo corpo","Valores de masa de cuerpos individuales"]
["Nach Auswahl des gewünschten Körpers und Eingabe der Körperdaten sind die Koordinaten des Massenschwerpunktes dieses Körpers zum Ausleger zu bestimmen.","Nach Auswahl des gewünschten Körpers und Eingabe der Körperdaten sind die Koordinaten des Massenschwerpunktes dieses Körpers zum Ausleger zu bestimmen.","After selecting the desired body and entering the data and coordinates, the mass center of gravity of the body to the pivot arm must be calculated.","Après avoir choisi le corps souhaité et indiqué les données du corps, il faut déterminer les coordonnées du centre de gravité de la masse de ce corps par rapport à la flèche.","Dopo la selezione del corpo desiderato e l'immissione dei dati del corpo devono essere determinate le coordinate del baricentro della massa di tale corpo rispetto all'asse a sbalzo.","Tras escoger el cuerpo deseado e introducir los datos del cuerpo, es necesario determinar las coordenadas del centro de gravedad de masa de este cuerpo con respecto al brazo."]
["Nach vollständiger Eingabe aller Daten müssen die Werte zur Berechnung der Gesamtmasse und des Gesamtmassen-Schwerpunkts in die Liste addiert oder subtrahiert werden.","Nach vollständiger Eingabe aller Daten müssen die Werte zur Berechnung der Gesamtmasse und des Gesamtmassen-Schwerpunkts in die Liste addiert oder subtrahiert werden.","After complete input of all data the values for calculation of the total mass and of the total mass center of gravity must be added to or subtracted from the list.","Après avoir saisi toutes les données, il faut additionner ou soustraire les valeurs pour calculer la masse totale et le centre de gravité de la masse totale dans la liste.","Dopo l'immissione completa di tutti i dati i valori per il calcolo della massa totale e del baricentro della massa totale nella lista devono essere sommati o sottratti.","Tras introducir la totalidad de los datos, se deben sumar o restar en la lista los valores para calcular la masa total y el centro de gravedad de la masa total."]
["Gesamtmasse / Schwerpunkt","Gesamtmasse / Schwerpunkt","Total mass / center of gravity","Masse totale / centre de gravité","Massa totale / baricentro","Masa total / centro de gravedad"]
["Durch die Möglichkeit der Aufsummierung einzelner Körper werden die Gesamtmasse sowie die Koordinaten des Gesamtmassenschwerpunkts unterschiedlichster Aufbauten berechnet. Diese sind dann die Grundlage zur Berechnung einer geeigneten Pick&Place-Einheit.","Durch die Möglichkeit der Aufsummierung einzelner Körper werden die Gesamtmasse sowie die Koordinaten des Gesamtmassenschwerpunkts unterschiedlichster Aufbauten berechnet. Diese sind dann die Grundlage zur Berechnung einer geeigneten Pick&Place-Einheit.","The possibility of adding up single bodies allows calculation of the total mass as well as the coordinates of the total mass center of gravity of a wide range of different assemblies. They are the basis for calculation of a suitable Pick&Place unit.","La possibilité d'additionner les différents corps permet de calculer la masse totale ainsi que les coordonnées du centre de gravité de la masse totale des constructions les plus diverses. Il s'agit ensuite de la base de calcul d'une unité Pick&Place adaptée.","Grazie alla possibilità di sommare singoli corpi vengono calcolate la massa totale nonché le coordinate del baricentro della massa totale delle strutture più disparate. Queste costituiscono quindi il fondamento per il calcolo di un'unità Pick&Place idonea.","Gracias a la posibilidad de sumar distintos cuerpos, se pueden calcular la masa total y las coordenadas del punto de gravedad de la masa total de distintas estructuras. Esto es lo que sirve más adelante como base para calcular una unidad Pick&Place adecuada."]
["Sind in die letzte Zeile der Liste bereits Einzelkörperwerte übernommen worden und Sie wollen weitere Einzelkörper berechnen und in die Liste übernehmen, erhalten Sie eine Meldung die Sie mit - JA - bestätigen. Die bisher berechnete Gesamtmasse mit Schwerpunktskoorinaten  werden dann in die erste Zeile der Liste übernommen. Sie können nun weitere Einzelkörper berechnen und in die Liste übernehmen.","Sind in die letzte Zeile der Liste bereits Einzelkörperwerte übernommen worden und Sie wollen weitere Einzelkörper berechnen und in die Liste übernehmen, erhalten Sie eine Meldung die Sie mit - JA - bestätigen. Die bisher berechnete Gesamtmasse mit Schwerpunktskoorinaten  werden dann in die erste Zeile der Liste übernommen. Sie können nun weitere Einzelkörper berechnen und in die Liste übernehmen.","If single body values have already been entered in the last line of the list and you wish to calculate additional single bodies and add them to the list, you will see a prompt, which must be confirmed with -YES-. The previously calculated total mass and center of gravity coordinates are then entered in the first line of the list. You can now calculate additional single bodies and add them to the list.","Si des valeurs de corps individuels ont déjà été prises en charge sur la dernière ligne de la liste, et que vous voulez calculer d'autres corps individuels, et les prendre en charge dans la liste, vous recevez un message que vous validez avec - OUI -. La masse totale calculée jusqu'à présent avec les coordonnées du centre de gravité sont alors prises en charge sur la dernière ligne de la liste. Vous pouvez alors calculer d'autres corps individuels et les prendre en charge dans la liste.","Se nell'ultima riga dell'elenco sono già stati rilevati valori di corpi singoli e si vogliono calcolare e rilevare nell'elenco altri corpi singoli, si riceve un messaggio che va confermato con SI'. La massa totale con coordinate del baricentro calcolata sinora è quindi rilevata nella prima riga dell'elenco. A questo punto è possibile calcolare e rilevare nell'elenco altri corpi singoli.","Si ya se han incorporado valores de cuerpos individuales a la última fila de la lista y desea calcular más cuerpos individuales e incorporarlos a la lista, confirme con \"SÍ\" el mensaje que reciba. La masa total calculada hasta el momento con coordenadas del centro de gravedad, se incorporará entonces a la primera fila de la lista. A continuación, podrá seguir calculando más cuerpos individuales e incorporarlos a la lista."]
["Gesamtmasse","Gesamtmasse","Total mass","Masse totale","Massa totale","Masa total"]
["Schwerpunktskoordinate  liegt außerhalb des zulässigen Bereichs","Schwerpunktskoordinate  liegt außerhalb des zulässigen Bereichs","Center of gravity coordinate outside of permitted range","Les coordonnées du centre de gravité se trouvent en dehors de la zone autorisée","La coordinata del baricentro è al di fuori dell'intervallo ammesso","Coordenada del centro de gravedad fuera del rango admisible"]
["Schwerpunktskoordinate in X-Richtung","Schwerpunktskoordinate in X-Richtung","Center of gravity coordinate in X direction","Coordonnées du centre de gravité dans le sens X","Coordinata del baricentro in direzione X","Coordenada del centro de gravedad en dirección X"]
["Schwerpunktskoordinate in Y-Richtung","Schwerpunktskoordinate in Y-Richtung","Center of gravity coordinate in Y direction","Coordonnées du centre de gravité dans le sens Y","Coordinata del baricentro in direzione Y","Coordenada del centro de gravedad en dirección Y"]
["Schwerpunktskoordinate in Z-Richtung","Schwerpunktskoordinate in Z-Richtung","Center of gravity coordinate in Z direction","Coordonnées du centre de gravité dans le sens Z","Coordinata del baricentro in direzione Z","Coordenada del centro de gravedad en dirección Z"]
["Betriebsdruck 5 bar ","Betriebsdruck 5 bar ","Operating pressure 5 bar","Pression de service 5 bars","Pressione d'esercizio 5 bar","Presión de trabajo 5 bar"]

{"sheet":"Translation","index":14,"n_rows":335,"n_cols":6,"rows_kept":335,"cut":false,"hidden":false,"merged":[]}
[]
[{"$f":"STARTSEITE!A50","v":1},"Deutsch","Englisch","Französisch","Italienisch","Spanisch"]
[]
["Startseite"]
[]
[{"$f":"IF($A$2=1,B6,IF($A$2=2,C6,IF($A$2=3,D6,IF($A$2=4,E6,IF($A$2=5,F6)))))","v":"Modul-Berechnungsprogramm"},"Modul-Berechnungsprogramm","Actuator Calculation Program","Programme de calcul de module","Programma di calcolo dei moduli","Programa de cálculo de módulos"]
["Mit diesem Software-Tool werden für Pick&Place-Geräte die zulässigen Belastungen und Taktzeiten berechnet","Mit diesem Software-Tool werden für Pick&Place-Geräte die zulässigen Belastungen und Taktzeiten berechnet","This software tool is used to calculate the permissible loads and cycle times for Pick&Place units","Cet outil logiciel permet de calculer les charges et cadences autorisées pour les appareils Pick&Place","Con questo tool software vengono calcolati le sollecitazioni e i tempi di ciclo per gli apparecchi Pick&Place","Con esta herramienta de software, se calculan las cargas y los tiempos de ciclo admisibles para aparatos Pick&Place."]
["Software: MS Excel 2007","Software: MS Excel 2007","Software: MS Excel 2007","Software: MS Excel 2007","Software: MS Excel 2007","Software: MS Excel 2007"]
["Start","Start","Start","Démarrage","Avvio","Inicio"]
["Info","Info","Info","Info","Informazioni","Información"]
["ActiveX Steuerelemente müssen aktiviert sein !","ActiveX Steuerelemente müssen aktiviert sein !","ActiveX control must be activated !","Le contrôle ActiveX doit être activé !","Il controllo ActiveX deve essere attivato !","El control ActiveX tiene que esta activado !"]
["MAKROS müssen aktiviert sein !","MAKROS müssen aktiviert sein !","MACROS must be activated !","Les macros doivent être activées !","Le MACRO devono essere attivate !","Las MACROS deben estar activadas."]
[{"$f":"IF($A$2=1,B13,IF($A$2=2,C13,IF($A$2=3,D13,IF($A$2=4,E13,IF($A$2=5,F13)))))","v":"Version 06/16"},"Version 06/16","Version 06/16","Version 06/16","Versione 06/16","Versión 06/16"]
[{"$f":"IF($A$2=1,B14,IF($A$2=2,C14,IF($A$2=3,D14,IF($A$2=4,E14,IF($A$2=5,F14)))))","v":"Toolbox-Pick&Place - MODULARE MONTAGEAUTOMATION"},"Toolbox-Pick&Place - MODULARE MONTAGEAUTOMATION","Toolbox-Pick&Place - MODULARE MONTAGEAUTOMATION","Toolbox-Pick&Place - MODULARE MONTAGEAUTOMATION","Toolbox-Pick&Place - MODULARE MONTAGEAUTOMATION ","Caja de herramientas Pick&Place - MODULARE MONTAGEAUTOMATION"]
[{"$f":"IF($A$2=1,B15,IF($A$2=2,C15,IF($A$2=3,D15,IF($A$2=4,E15,IF($A$2=5,F15)))))","v":"Zoom (%)"},"Zoom (%)","Zoom (%)","Zoom (%)","Zoom (%)","Zoom (%)"]
[{"$f":"IF($A$2=1,B16,IF($A$2=2,C16,IF($A$2=3,D16,IF($A$2=4,E16,IF($A$2=5,F16)))))","v":"Bitte überprüfen Sie regelmäßig die Aktualität dieses Berechnungsprogramms im \"Download-Bereich\" unserer Homepage !"},"Bitte überprüfen Sie regelmäßig die Aktualität dieses Berechnungsprogramms im \"Download-Bereich\" unserer Homepage !","Please check regularly for the latest update to this calculation program in the “Download” area of our website!","Veuillez régulièrement vérifier l'actualité de ce programme de calcul dans \"Zone de téléchargement\" de notre page d'accueil !","Si raccomanda di verificare regolarmente lo stato di aggiornamento di questo programma di calcolo nell\"Area download\" della nostra homepage!","Compruebe periódicamente las actualizaciones disponibles para este programa de cálculo en la \"Zona de descargas\" de nuestra página web."]
[{"$f":"IF($A$2=1,B17,IF($A$2=2,C17,IF($A$2=3,D17,IF($A$2=4,E17,IF($A$2=5,F17)))))","v":"Achtung:"},"Achtung:","Note:","Attention:","Attenzione:","Atención:"]
[]
[]
[]
[]
[]
[]
["Info-Massenträgheitsmoment"]
[]
[{"$f":"IF($A$2=1,B26,IF($A$2=2,C26,IF($A$2=3,D26,IF($A$2=4,E26,IF($A$2=5,F26)))))","v":"Berechnung von Drehlader und Pick&Place-Unit"},"Berechnung von Drehlader und Pick&Place-Unit","Calculation of rotary loader and Pick&Place unit","Calcul du chargeur rotatif et Pick&Place-Unit","Calcolo di caricatore rotante e unità Pick&Place","Cálculo de cargador giratorio y unidad Pick&Place"]
["Beispiel 1","Beispiel 1","Example 1","Exemple 1","Esempio 1","Ejemplo 1"]
["Beispiel 2","Beispiel 2","Example 2","Exemple 2","Esempio 2","Ejemplo 2"]
["Beispiel 3","Beispiel 3","Example 3","Exemple 3","Esempio 3","Ejemplo 3"]
["Greif-Dreh-Einheit","Greif-Dreh-Einheit","Index/grip unit","Unité de prise - rotation","Unità presa-rotazione","Unidad de giro y agarre"]
["Rotationsmodul mit Doppelgreifer","Rotationsmodul mit Doppelgreifer","Rotary actuator with double gripper","Module rotatif avec double griffe","Modulo di rotazione con pinza doppia","Módulo rotatorio con pinza doble"]
["Rotationsmodul mit Schwenkarm","Rotationsmodul mit Schwenkarm","Rotary actuator with swivel arm","Module rotatif avec bras pivotant","Modulo di rotazione con braccio rotante","Módulo rotatorio con brazo giratorio"]
["Vor der Berechnung des Drehladers müssen die Massenträgheitsmomente der zu schwenkenden Massen ermittelt werden.","Vor der Berechnung des Drehladers müssen die Massenträgheitsmomente der zu schwenkenden Massen ermittelt werden.","Before calculating the rotary loader the mass moments of inertia of the masses to be rotated must be determined.","Avant de calculer le chargeur rotatif, il faut déterminer les couples d'inertie des masses devant être pivotées.","Prima del calcolo del caricatore rotante devono essere determinati i momenti di inerzia di massa e le masse da far oscillare.","Antes de calcular el cargador giratorio, se deben averiguar los momentos de inercia de masa de las masas a bascular."]
["Zur Berechnung des Massenträgheitsmoments","Zur Berechnung des Massenträgheitsmoments","To Calculation of mass moment of inertia","A la page de calcul du couple d'inertie de masse","Vai al calcolo del momento di inerzia della massa","Ir a cálculo del momento de inercia de la masa"]
["Startseite","Startseite","Start page","Page d`accueil","Pagina iniziale","Página de inicio"]
["Info","Info","Info","Info","Informazioni","Información"]
["Berechnung Drehlader DRL","Berechnung Drehlader DRL","Calculation of rotary loader DRL","Calcul du chargeur rotatif DRL","Calcolo di caricatore rotante DRL","Cálculo de cargador giratorio DRL"]
["Berechnung PickPlace-Unit PPU-P","Berechnung PickPlace-Unit PPU-P","Calculation of Pick&Place-Unit PPU-P","Calcul du Pick&Place-Unit PPU-P","Calcolo di unità Pick&Place PPU-P","Cálculo de unidad Pick&Place PPU-P"]
["Auswahlseite","Auswahlseite","Selection page","Page de sélection","Pagina di selezione","Página de selección"]
[]
[]
[]
[]
[]
[]
["Massenträgheitsmoment"]
[]
[{"$f":"IF($A$2=1,B48,IF($A$2=2,C48,IF($A$2=3,D48,IF($A$2=4,E48,IF($A$2=5,F48)))))","v":"Berechnung Massenträgheitsmoment"},"Berechnung Massenträgheitsmoment","Calculation of mass moment of inertia","Calcul du couple d'inertie de masse","Calcolo del momento di inerzia della massa","Cálculo del momento de inercia de la masa"]
["Zurück","Zurück","Back","Retour","Indietro","Volver"]
["Info","Info","Info","Info","Informazioni","Información"]
["Neu- berechnung","Neu- berechnung","New calculation","Nouveau calcul","Nuovo calcolo","Nuevo cálculo"]
["Zur DRL-Berechnung","Zur DRL-Berechnung","DRL calculation","Pour calculer DRL","Al calcolo DRL","Ir al cálculo DRL"]
["Gesamtmassenträgheitsmoment aus Einzelkörperberechnung","Gesamtmassenträgheitsmoment aus Einzelkörperberechnung","Mass moment of inertia from single body calculation","Couple d'intertie de masse totale issu du calcul de corps individuels","Momento di inerzia della massa totale derivante dal calcolo del corpo singolo","Momento de inercia de la masa total a partir del cálculo con cuerpos individuales"]
["Bezeichnung","Bezeichnung","Designation","Désignation","Descrizione","Denominación"]
["Bezeichnung 1","Bezeichnung 1","Designation 1","Désignation 1","Descrizione 1","Denominación 1"]
["Bezeichnung 2","Bezeichnung 2","Designation 2","Désignation 2","Descrizione 2","Denominación 2"]
["Bezeichnung 3","Bezeichnung 3","Designation 3","Désignation 3","Descrizione 3","Denominación 3"]
["Bezeichnung 4","Bezeichnung 4","Designation 4","Désignation 4","Descrizione 4","Denominación 4"]
["löschen","löschen","Delete","supprimer","cancella","borrar"]
["Massenträgheitsmom.","Massenträgheitsmom.","Mass moment of inertia","Couple d'iner. de masse","Mom. inerzia massa","Mom. de iner. de la masa"]
["Gesamtmasse","Gesamtmasse","Total mass","Masse totale","Massa totale","Masa total"]
["Koordinaten des Gesamtmassenschwerpunkts","Koordinaten des Gesamtmassenschwerpunkts","Co-ordinates of overall centre of gravity","Coordonnées du centre de gravité de la masse totale","Coordinate del baricentro della massa totale","Coordinadas del centro de masa total"]
["Körper-","Körper-","Element","Sélection","Selezione","Selección del"]
["auswahl","auswahl","selection","du corps","corpo","cuerpo"]
["Eingabe J0","Eingabe J0","Input J0","Saisie J0","Immissione J0","Introducción J0"]
["Quader","Quader","Cuboid","Parallèlipipède","Parallelepipedo","Paralelepípedo"]
["Scheibe","Scheibe","Washer","Disque","Disco","Disco"]
["Welle längs","Welle längs","Shaft long.","Arbre longitud.","Albero longitudinale","Eje longitudinal"]
["Welle quer","Welle quer","Shaft trans.","Arbre transver.","Albero trasversale","Eje transversal"]
["Grundfläche / Masse","Grundfläche / Masse","Base area / mass","Surface / masse","Superficie di base / massa","Base / Masa"]
["Greifmodule","Greifmodule","Gripper actuators","Modules de préhen.","Moduli di presa","Módulos de agarre"]
[]
["Direkte Eingabe von J0","Direkte Eingabe von J0","Direct input of J0","Saisiedirecte de J0","Immissione diretta di J0","Introducción directa  de J0"]
["Eigenmassenträgheitsmom.","Eigenmassenträgheitsmom.","Inherent mass mom. of inertia","Couple d'iner. de la masse propre","Mom. di iner. d. massa propria","Mom. de iner. de la masa propia"]
["Masse des Körpers","Masse des Körpers","Mass of body","Masse du corps","Massa del corpo","Masa del cuerpo"]
["Massenschwerpunkts-Koordinaten","Massenschwerpunkts-Koordinaten","Mass center of gravity coordinates","Coordonnées du centre de gravité de la masse","Coordinate del baricentro della massa","Coordenadas del centro de gravedad de masa"]
["Eingabefelder","Eingabefelder","Input fields","Erreur de saisie","Campi d'immissione","Campos de introducción de datos"]
["Z=Höhenkoordinate ab Mitte Flansch","Z=Höhenkoordinate ab Mitte Flansch","Z = height coordinate from center of flange","Z=Coordonnées de la hauteur à partir du milieu de la bride","Z=coordinata di altezza da metà flangia","Z = Coordenada de altura a partir del centro de la brida"]
["In Liste addieren","In Liste addieren","Add in list","Additionner à la liste","Sommare nella lista","Añadir a la lista"]
["In Liste subtrahieren","In Liste subtrahieren","Subtract in list","Soustraire de la liste","Detrarre nella lista","Restar a la lista"]
["Info","Info","Info","Information","Informazioni","Información"]
[]
["Quader","Quader","Cuboid","Parallèlipipède","Parallelepipedo","Paralelepípedo"]
["Dichte","Dichte","Density","Densité","Compattezza","Densidad"]
["Länge","Länge","Length","Long.","Lung.","Long."]
["Breite","Breite","Width","Larg.","Larg.","Anchura"]
["Höhe","Höhe","Height","Haut.","Altezza","Altura"]
["Stahl","Stahl","Steel","Acier","Accia.","Acero"]
["Alu","Alu","Al","Al","Al","Al"]
["sonst","sonst","Other","autre","altro","otro"]
[]
["Scheibe","Scheibe","Washer","Disque","Disco","Disco"]
["Dichte","Dichte","Density","Densité","Compattezza","Densidad"]
["Durch-","Durch-","Dia-","Dia-","Dia-","Diá-"]
["messer","messer","meter","mètre","metro","metro"]
["Dicke","Dicke","Thickn.","Epaiss.","Spess.","Espesor"]
[]
["Welle längs zur Drehachse","Welle längs zur Drehachse","Shaft along rotation axis","Arbre dans le sens longitud. par rapport à l'axe de rot.","Albero longitudinale rispetto all'asse di rotazione","Eje longitudinal al eje de rotación"]
["Dichte","Dichte","Density","Densité","Compattezza","Densidad"]
["Durch-","Durch-","Dia-","Dia-","Dia-","Diá-"]
["messer","messer","meter","mètre","metro","metro"]
["Länge","Länge","Length","Long.","Lung.","Long."]
[]
["Welle quer zur Drehachse","Welle quer zur Drehachse","Shaft square to rotation axis","Arbre dans le sens transver. par rapport à l'axe de rot.","Albero trasversale rispetto all'asse di rotazione","Eje transversal al eje de rotación"]
["Dichte","Dichte","Density","Densité","Compattezza","Densidad"]
["Durch-","Durch-","Dia-","Dia-","Dia-","Diá-"]
["messer","messer","meter","mètre","metro","metro"]
["Länge","Länge","Length","Long.","Lung.","Long."]
[]
["Grundfläche / Masse","Grundfläche / Masse","Base area / mass","Surface / masse","Superficie di base / massa","Base / Masa"]
["Länge","Länge","Length","Long.","Lung.","Long."]
[{"$f":"IF($A$2=1,B112,IF($A$2=2,C112,IF($A$2=3,D112,IF($A$2=4,E112,IF($A$2=5,F112)))))","v":"Breite"},"Breite","Width","Larg.","Larg.","Anchura"]
["Masse","Masse","Mass","Masse","Massa","Masa"]
[]
["Greifmodule","Greifmodule","Gripper actuators","Modules de préhension","Moduli di presa","Módulos de agarre"]
["Parallel-Greifer","Parallel-Greifer","Parallel gripper","Griffe de préhension parallèle","Pinze parallele","Pinzas paralelas"]
["3-Backen-Greifer   ","3-Backen-Greifer   ","3 jaw gripper","Griffe de préhension à trois doigts   ","Pinze a 3 ganasce   ","Pinzas de 3 mordazas    "]
["Winkel-Greifer","Winkel-Greifer","Angled gripper","Griffe de prehension angulaire","Pinze angolari","Pinzas angulares"]
["Winkel-Parallel-Greifer","Winkel-Parallel-Greifer","Angled parallel gripper","Griffe de prehension angulaire parallèle","Pinze parallele angolari","Pinzas paralelas y angulares"]
[]
[]
[{"$f":"IF($A$2=1,B122,IF($A$2=2,C122,IF($A$2=3,D122,IF($A$2=4,E122,IF($A$2=5,F122)))))","v":"Drehachse"},"Drehachse","Z axis = rotation axis","Axe Z = axe de rotation","Asse Z = asse di rotazione","Eje Z = eje de rotación"]
[]
[{"$f":"IF($A$2=1,B124,IF($A$2=2,C124,IF($A$2=3,D124,IF($A$2=4,E124,IF($A$2=5,F124)))))","v":"Wollen Sie weitere Massenträgheitsmomente eingeben ?"},"Wollen Sie weitere Massenträgheitsmomente eingeben ?","More mass moments of inertia ?","Autre couples d´inertie de masse ?","Vuoi immettere ulteriori momenti di inerzia della massa ?","Desea introducir otros momentos de inercia de la masa?"]
[{"$f":"IF($A$2=1,B125,IF($A$2=2,C125,IF($A$2=3,D125,IF($A$2=4,E125,IF($A$2=5,F125)))))","v":"Übernahme"},"Übernahme","Takeover","Prise en charge","Registrazione","Aceptación"]
[]
[{"$f":"IF($A$2=1,B127,IF($A$2=2,C127,IF($A$2=3,D127,IF($A$2=4,E127,IF($A$2=5,F127)))))","v":"Körperauswahl"},"Körperauswahl","Element selection","Sélection du corps","Selezione corpo","Selección del cuerpo"]
[{"$f":"IF($A$2=1,B128,IF($A$2=2,C128,IF($A$2=3,D128,IF($A$2=4,E128,IF($A$2=5,F128)))))","v":"Zubehör"},"Zubehör","Accessories","Accessoires","Accessori","Accesorios"]
[{"$f":"IF($A$2=1,B129,IF($A$2=2,C129,IF($A$2=3,D129,IF($A$2=4,E129,IF($A$2=5,F129)))))","v":"Zubehörvarianten"},"Zubehörvarianten","Various accessories","Variantes","Varianti","Variantes de accesorios"]
[{"$f":"IF($A$2=1,B130,IF($A$2=2,C130,IF($A$2=3,D130,IF($A$2=4,E130,IF($A$2=5,F130)))))","v":"müssen bei der Berechnung des Massenträgheitsmomentes nicht berücksichtigt werden. Sie können auf der \"DRL-Berechnungsseite\" angewählt werden !"},"müssen bei der Berechnung des Massenträgheitsmomentes nicht berücksichtigt werden. Sie können auf der \"DRL-Berechnungsseite\" angewählt werden !","do not have to be considered for calculation of the mass moment of inertia. They can be selected on the \"DRL calculation page\"!","ne pas prendre en compte dans le calcul du moment d'inertie. Il sera pris en compte en le sélectionnant dans la \"page de calcul DRL\".","non devono essere considerati nel calcolo del momento d'inerzia. Possono essere selezionati alla pagina \"DRL - Pagina di calcolo\"!","no deben ser considerados para el cálculo de la masa del momento de inercia. Pueden seleccionarse en \"la página de cálculo del DRL\""]
[{"$f":"IF($A$2=1,B131,IF($A$2=2,C131,IF($A$2=3,D131,IF($A$2=4,E131,IF($A$2=5,F131)))))","v":"und"},"und","and","et","e","y"]
[]
[]
[]
["RM-Berechnung"]
[]
[{"$f":"IF($A$2=1,B137,IF($A$2=2,C137,IF($A$2=3,D137,IF($A$2=4,E137,IF($A$2=5,F137)))))","v":"Berechnung von Rotationsmodulen und Ringschalttischen"},"Berechnung von Rotationsmodulen und Ringschalttischen","Calculation of rotary modules and ring indexing tables.","Calcul des modules rotatifs et les plateaux tournants à indexation","Calcolo di moduli rotanti e tavole rotanti indicizzate","Calculo para modulos de giro y mesas de indexado"]
["Massenträgheitsmoment  =","Massenträgheitsmoment  =","Mass moment of inertia  =","Moments d’inertie de masse  =","Momento di inerzia della massa  =","Momento de inercia de la masa ="]
["Zur RM/RST-Berechnung bitte gewünschten Typ auswählen !","Zur RM/RST-Berechnung bitte gewünschten Typ auswählen !","Choose the desired type for the RM/RST calculation!","Sélectionner le type de calcul RM / RST souhaité !","Scegli il tipo desidertato per il calcolo di RM/RST","Para los calculos RM/RST seleciona el tipo"]
["Kompaktbauweise","Kompaktbauweise","Compact design","Type de construction compacte","Struttura compatta","Diseño compacto"]
["Flachbauweise","Flachbauweise","Flat design","Type de construction à plat","Struttura piana","Diseño plano"]
["Flachbauweise mit Zwischenanschlag","Flachbauweise mit Zwischenanschlag","Flat design with intermediate stop","Type de constr. à plat avec butée interméd.","Struttura piana con arresto intermedio","Diseño plano con tope intermedio"]
["Max.zul. Massenträgheitsmoment","Max.zul. Massenträgheitsmoment","Max. mass moment of inertia","Couples d’inertie de masse max.","Momento inerzia massa max. ammesso","Mom. de inercia de la masa máx. admisible "]
["Antriebsmoment","Antriebsmoment","Drive torque","Couple d’entraînement","Coppia motrice","Momento de accionamiento"]
["Zurück zur Berechnung des Massenträgheitsmoments","Zurück zur Berechnung des Massenträgheitsmoments","Back to Calculation of mass moment of inertia","Retour à la page de calcul du couple d'inertie de masse","Torna al calcolo del momento di inerzia della massa","Volver al cálculo del momento de inercia de la masa"]
["Startseite","Startseite","Start page","Page d`accueil","Pagina iniziale","Página de inicio"]
["Info","Info","Info","Information","Informazioni","Información"]
["Ringschalttische","Ringschalttische","Ring indexing table","Plateaux tournants à indexation","Tavola rotante indicizzata","Mesa de indexado"]
[]
[]
[]
[]
[]
[]
[]
[]
[]
[]
[]
["Eingabe 1 alt"]
[]
[{"$f":"IF($A$2=1,B162,IF($A$2=2,C162,IF($A$2=3,D162,IF($A$2=4,E162,IF($A$2=5,F162)))))","v":"Berechnung von Rotationsmodulen"},"Berechnung von Rotationsmodulen","Calculation of rotary actuators","Calcul de modules rotatifs","Calcolo di moduli di rotazione","Cálculo de los módulos rotatorios"]
["Startseite","Startseite","Start page","Page d`accueil","Pagina iniziale","Página de inicio"]
["Übersicht","Übersicht","Overview","Sommaire","Panoramica","Cuadro sinóptico"]
["Info","Info","Info","Info","Informazioni","Información"]
["Massen- trägheits- moment","Massen- trägheits- moment","Mass moment of inertia","Couples d’inertie de masse","Momento di inerzia della massa","Momento de inercia de la masa"]
["Rotationsmodule Kompaktbauweise RM 50 bis RM 310","Rotationsmodule Kompaktbauweise RM 50 bis RM 310","Rotary actuators, compact design, RM 50 to RM 310","Modules rotatifs de type constr. compacte RM 50 à RM 310","Moduli di rotazione struttura compatta da RM 50 a RM 310","Módulos rotatorios de diseño compacto RM 50 hasta RM 310"]
["Drehachse horizontal","Drehachse horizontal","Horizontal rotation axis","Axe de rotation horizontal","Asse di rotazione orizzontale","Eje de rotación horizontal"]
["Drehachse vertikal","Drehachse vertikal","Vertical rotation axis","Axe de rotation vertical","Asse di rotazione verticale","Eje de rotación vertical"]
["Taktzeiten sind reine Rotationszeiten des Ritzels/Flansches um den Nenndrehwinkel. Ventilschaltzeiten, Schlauchbefüllungszeiten oder SPS-Reaktionszeiten sind nicht enthalten und bei der Ermittlung von Zykluszeiten zu berücksichtigen !","Taktzeiten sind reine Rotationszeiten des Ritzels/Flansches um den Nenndrehwinkel. Ventilschaltzeiten, Schlauchbefüllungszeiten oder SPS-Reaktionszeiten sind nicht enthalten und bei der Ermittlung von Zykluszeiten zu berücksichtigen !","Cycle times are purely the times taken by the pinion/flange to turn round the nominal angle of rotation. Valve switching times, house filling times or SPC reaction times are not included in the above times and must be taken into consideration when determining cycle times !","Les temps de cycle indiqués correspondent aux durées nécessaires au pignon/flasque pour effectuer la seule rotation de l'angle nominal. Elles n'incluent pas le temps de commutation des électrovannes, la durée de remplissage des flexibles ou les temps de réaction de l'API, lesquels doivent toutefois être pris en compte dans les temps de cycle !","I tempi ciclo sono i tempi necessari al pignone/flangia per compiere un determinato angolo di rotazione. Tempi di scambio delle elettrovalvole, tempi di riempimento tubazioni o tempi di reazione del PLC non sono compresi nei tempi sopra indicati che però devono essere presi in considerazione per determinare il tempo ciclo complessivo !","El tiempo de ciclo es exclusivamente el tiempo de rotación del piñón del ángulo de giro nominal. El tiempo de maniobra de las válvulas, de rellenado de los tubos de conexión y de reacción del SPS no estánincluidos, por lo que deben ser considerados a la hora de calcular el tiempo de ciclo !"]
["Ergebnisse aus der Berechnung des Massenträgheitsmoments","Ergebnisse aus der Berechnung des Massenträgheitsmoments","Results from calculation of mass moment of inertia","Résultats du calcul de couple d'inertie de masse","Risultati del calcolo del momento di inerzia della massa","Resultados del cálculo del momento de inercia de la masa."]
["Gesamtmassenträgheitsmoment","Gesamtmassenträgheitsmoment","Total mass moment of inertia","Couple d'inertie de masse totale","Momento di inerzia della massa totale","Momento de inercia de la masa total"]
["Gesamtmasse ","Gesamtmasse ","Total mass","Masse totale ","Massa totale ","Masa total "]
["Gesamtmassenschwerpunkts-Koordinaten","Gesamtmassenschwerpunkts-Koordinaten","Total mass center of gravity coordinates","Coordonnées du centre de gravité de la masse totale","Coordinate del baricentro della massa totale","Coordenadas del centro de gravedad de la masa total"]
["Geben Sie Ihre Werte mit -Enter- ein !","Geben Sie Ihre Werte mit -Enter- ein !","Enter your values using -Enter- !","Confirmez vos valeurs par -Entrée- !","Immettere i propri valori con -Enter- !","Introduzca sus valores con \"Intro\"."]
["Schwenkwinkel ( 1 bis 180° )","Schwenkwinkel ( 1 bis 180° )","Swivel angle ( 1 to 180° )","Angle de pivotement ( 1 à 180° )","Angolo di rotazione ( da 1 a 180° )","Ángulo de giro ( 1 hasta 180° )"]
["Horizontal","Horizontal","Horizontal","Horizontal","Orizzontale","Horizontal"]
["Vertikal","Vertikal","Vertical","Vertical","Verticale","Vertical"]
["Start-Drehrichtung gegen Uhrzeigersinn ( GUZ )","Start-Drehrichtung gegen Uhrzeigersinn ( GUZ )","Start rotation direction anticlockwise","Sens de rot. de départ d. le sens inv. des aiguilles d'une montre ( GUZ ) ","Senso di rotazione di avvio antiorario ( AOR )","Sentido de rot. inicial en el sent. contrario a las agujas del reloj (CAR)"]
["Start-Drehrichtung im Uhrzeigersinn ( UZ )","Start-Drehrichtung im Uhrzeigersinn ( UZ )","Start rotation direction clockwise","Sens de rot. de départ d. le sens des aiguilles d'une montre ( UZ ) ","Senso di rotazione di avvio orario ( OR )","Sentido de rotación inicial en el sentido de las agujas del reloj (AR)"]
["Schwenkgeschwindigkeit","Schwenkgeschwindigkeit","Swivel speed","Vitesse de pivotement","Velocità di rotazione","Velocidad de giro"]
["Maximale zulässige Auslastung des Antriebsmoments = 50% !","Maximale zulässige Auslastung des Antriebsmoments = 50% !","Maximum permissible utilisation of drive torque = 50% !","Degré d'utilisation maximal admissible du couple d'entraînement = 50 % !","Massima distribuzione del carico ammissibile della coppia motrice = 50% !","Máxima sobreutilización admisible del momento de accionamiento = 50%"]
["Drehachse","Drehachse","Rotation axis","Axe de rot.","Asse di rot.","Eje de rot."]
["Drehrichtung","Drehrichtung","Rotation direct.","Sens de rot.","Senso di rot.","Sentido de rot."]
["Module","Module","Actuators","Module","Moduli","Módulos"]
["Berechneter Modul-Typ","Berechneter Modul-Typ","Actuator type calculated","Type de module calculé","Tipo di modulo calcolato","Tipo de módulo calculado"]
["Katalog Seite","Katalog Seite","Catalogue page","Page de catalogue","Catalogo pagina","Página de catálogo"]
["Antriebsmoment bei 6 bar ( Nm )","Antriebsmoment bei 6 bar ( Nm )","Drive torque at 6 bar ( Nm )","Couple d’entraînement à 6 bar ( Nm )","Coppia motrice a 6 bar ( Nm )","Mom. de accionamiento para 6 bar ( Nm )"]
["UNZULÄSSIG","UNZULÄSSIG","IMPERMISSIBLE","NON ADMIS","NON AMMESSO","INADMISIBLE"]
["Masse zu hoch","Masse zu hoch","Mass too high","Masse trop élevée","Massa troppo elevata","Masa demasiado alta"]
["Drehwinkel zu klein","Drehwinkel zu klein","Rot. angle too small","Angle de rot. trop petit","Ang. di rot. trop. rid.","Áng.rot. demas. peque."]
["Stoßdämpfer","Stoßdämpfer","Shock absorber","Amortisseur","Ammortizzatore","Amortiguador"]
["Lagerung überlastet","Lagerung überlastet","Brg. arrangement overload","Palier surchargé","Cuscinetto sovraccarico","Disposición de los cojinetes sobrecargada"]
["Schwenkwinkelbereich ( ° )","Schwenkwinkelbereich ( ° )","Swivel angle range ( ° )","Plage d'angle de pivotement ( ° )","Campo dell'angolo di rotazione ( ° )","Margen de ángulo de giro ( ° )"]
["Auslastung Stoßdämpfer / Zyklus","Auslastung Stoßdämpfer / Zyklus","Utilisation of shock absorber / cycle","Degré d'utilisation des amortiss./cycle","Distrib. d. carico sull'ammortizzatore / ciclo","Sobreutilización amortiguador / ciclo"]
["Auslastung Massenträgheitsmoment","Auslastung Massenträgheitsmoment","Utilisation of mass moment of inertia","Degré d'utilis. d. couple d'iner. d. l. masse","Distrib. d. carico mom. di iner. della massa","Sobreutil. mom. de iner. de la masa"]
["Auslastung Lagerung","Auslastung Lagerung","Utilisation of brg. arrangement","Degré d'utilisation du palier","Distribuzione del carico sul cuscinetto","Sobreutil. disposición de los cojinetes"]
["Auslastung Antriebsmoment","Auslastung Antriebsmoment","Utilisation of drive torque","Degré d'utilis. du couple d'entraînement","Distribuzione del carico coppia motrice","Sobreutil. momento de accionamiento"]
["Min. Schwenkzeit UZ / GUZ ( s )","Min. Schwenkzeit UZ / GUZ ( s )","Min. swivel time clock/anticlock ( s )","Temps de pivotement min. UZ / GUZ ( s )","Tempo di rotazione min. OR / AOR ( s )","Mín. tiempo de giro AR / CAR ( s )"]
["Max. Zyklenzahl / min. **","Max. Zyklenzahl / min. **","Max. number of cycles / min. **","Nombre de cycle max. / min. **","Max. numero di cicli / min. **","Máx. número de ciclos/min **"]
["Min. Schwenkzeit GUZ / UZ ( s )","Min. Schwenkzeit GUZ / UZ ( s )","Min. swivel time anticlock/clock ( s )","Temps de pivotement min. GUZ / UZ ( s )","Tempo di rotazione min. AOR / OR ( s )","Mín. tiempo de giro CAR / AR ( s )"]
[]
[]
[]
[]
[]
[]
[]
[]
[]
[]
[]
["Eingabe 2 alt"]
[]
[{"$f":"IF($A$2=1,B215,IF($A$2=2,C215,IF($A$2=3,D215,IF($A$2=4,E215,IF($A$2=5,F215)))))","v":"Berechnung von Rotationsmodulen"},"Berechnung von Rotationsmodulen","Calculation of rotary actuators","Calcul de modules rotatifs","Calcolo di moduli di rotazione","Cálculo de los módulos rotatorios"]
["Startseite","Startseite","Start page","Page d`accueil","Pagina iniziale","Página de inicio"]
["Übersicht","Übersicht","Overview","Sommaire","Panoramica","Cuadro sinóptico"]
["Massen- trägheits- moment","Massen- trägheits- moment","Mass moment of inertia","Couples d’inertie de masse","Momento di inerzia della massa","Momento de inercia de la masa"]
["Rotationsmodule Flachbauweise RM 12 bis RM 21","Rotationsmodule Flachbauweise RM 12 bis RM 21","Rotary actuators, flat design, RM 12 to RM 21","Modules rotatifs de type construction à plat RM 12 à RM 21","Moduli di rotazione struttura piana da RM 12 a RM 21","Módulos rotatorios de diseño plano RM 12 hasta RM 21"]
["und zugehörige Zwischenanschläge RZ 12 bis RZ 21","und zugehörige Zwischenanschläge RZ 12 bis RZ 21","and matching intermediate stops RZ 12 to RZ 21","et butées intermédiaires correspondantes RZ 12 à RZ 21","e relative battute intermedie da RZ 12 a RZ 21","y topes intermedios correspondientes RZ 12 hasta RZ 21"]
["Drehachse horizontal","Drehachse horizontal","Horizontal rotation axis","Axe de rotation horizontal","Asse di rotazione orizzontale","Eje de rotación horizontal"]
["Drehachse vertikal","Drehachse vertikal","Vertical rotation axis","Axe de rotation vertical","Asse di rotazione verticale","Eje de rotación vertical"]
["Taktzeiten sind reine Rotationszeiten des Ritzels/Flansches um den Nenndrehwinkel. Ventilschaltzeiten, Schlauchbefüllungszeiten oder SPS-Reaktionszeiten sind nicht enthalten und bei der Ermittlung von Zykluszeiten zu berücksichtigen !","Taktzeiten sind reine Rotationszeiten des Ritzels/Flansches um den Nenndrehwinkel. Ventilschaltzeiten, Schlauchbefüllungszeiten oder SPS-Reaktionszeiten sind nicht enthalten und bei der Ermittlung von Zykluszeiten zu berücksichtigen !","Cycle times are purely the times taken by the pinion/flange to turn round the nominal angle of rotation. Valve switching times, house filling times or SPC reaction times are not included in the above times and must be taken into consideration when determining cycle times !","Les temps de cycle indiqués correspondent aux durées nécessaires au pignon/flasque pour effectuer la seule rotation de l'angle nominal. Elles n'incluent pas le temps de commutation des électrovannes, la durée de remplissage des flexibles ou les temps de réaction de l'API, lesquels doivent toutefois être pris en compte dans les temps de cycle !","I tempi ciclo sono i tempi necessari al pignone/flangia per compiere un determinato angolo di rotazione. Tempi di scambio delle elettrovalvole, tempi di riempimento tubazioni o tempi di reazione del PLC non sono compresi nei tempi sopra indicati che però devono essere presi in considerazione per determinare il tempo ciclo complessivo !","El tiempo de ciclo es exclusivamente el tiempo de rotación del piñón del ángulo de giro nominal. El tiempo de maniobra de las válvulas, de rellenado de los tubos de conexión y de reacción del SPS no estánincluidos, por lo que deben ser considerados a la hora de calcular el tiempo de ciclo !"]
["Ergebnisse aus der Berechnung des Massenträgheitsmoments","Ergebnisse aus der Berechnung des Massenträgheitsmoments","Results from calculation of mass moment of inertia","Résultats du calcul de couple d'inertie de masse","Risultati del calcolo del momento di inerzia della massa","Resultados del cálculo del momento de inercia de la masa"]
["Gesamtmassenträgheitsmoment","Gesamtmassenträgheitsmoment","Total mass moment of inertia","Couple d'inertie de masse totale","Momento di inerzia della massa totale","Momento de inercia de la masa total"]
["Gesamtmasse ","Gesamtmasse ","Total mass","Masse totale ","Massa totale ","Masa total "]
["Gesamtmassenschwerpunkts-Koordinaten zum Beginn der Drehbewegung","Gesamtmassenschwerpunkts-Koordinaten zum Beginn der Drehbewegung","Total mass moment of inertia co-ordinates at start of rotary motion","Coordonnées du centre de gravité de la masse totale au début du mouvement rotatif","Coordinate del baricentro della massa totale all'inizio del moto rotatorio","Coordinadas del centro de masa total al comienzo del movimiento de rotación"]
["Geben Sie Ihre Werte mit -Enter- ein !","Geben Sie Ihre Werte mit -Enter- ein !","Enter your values using -Enter- !","Confirmez vos valeurs par -Entrée- !","Immettere i propri valori con -Enter- !","Introduzca sus valores con \"Intro\"."]
["Schwenkwinkel ( 1 bis 190° )","Schwenkwinkel ( 1 bis 190° )","Swivel angle ( 1 to 190° )","Angle de pivotement ( 1 à 190° )","Angolo di rotazione ( da 1 a 190° )","Ángulo de giro ( 1 hasta 190° )"]
["Horizontal","Horizontal","Horizontal","Horizontal","Orizzontale","Horizontal"]
["Vertikal","Vertikal","Vertical","Vertical","Verticale","Vertical"]
["Start-Drehrichtung gegen Uhrzeigersinn ( GUZ )","Start-Drehrichtung gegen Uhrzeigersinn ( GUZ )","Start rotation direction anticlockwise","Sens de rot. de départ d. le sens inv. des aiguilles d'une montre ( GUZ ) ","Senso di rotazione di avvio antiorario ( AOR )","Sentido de rot. inicial en el sent. contrario a las agujas del reloj (CAR)"]
["Start-Drehrichtung im Uhrzeigersinn ( UZ )","Start-Drehrichtung im Uhrzeigersinn ( UZ )","Start rotation direction clockwise","Sens de rot. de départ d. le sens des aiguilles d'une montre ( UZ ) ","Senso di rotazione di avvio orario ( OR )","Sentido de rotación inicial en el sentido de las agujas del reloj (AR)"]
["Schwenkgeschwindigkeit","Schwenkgeschwindigkeit","Swivel speed","Vitesse de pivotement","Velocità di rotazione","Velocidad de giro"]
["Maximale zulässige Auslastung des Antriebsmoments = 50% !","Maximale zulässige Auslastung des Antriebsmoments = 50% !","Maximum permissible utilisation of drive torque = 50% !","Degré d'utilisation maximal admissible du couple d'entraînement = 50 % !","Massima distribuzione del carico ammissibile della coppia motrice = 50% !","Máxima sobreutilización admisible del momento de accionamiento = 50%"]
["Drehachse","Drehachse","Rotation axis","Axe de rot.","Asse di rot.","Eje de rot."]
["Drehrichtung","Drehrichtung","Rotation direct.","Sens de rot.","Senso di rot.","Sentido de rot."]
["Module","Module","Actuators","Module","Moduli","Módulos"]
["Berechneter Modul-Typ","Berechneter Modul-Typ","Actuator type calculated","Type de module calculé","Tipo di modulo calcolato","Tipo de módulo calculado"]
["Katalog Seite","Katalog Seite","Catalogue page","Page de catalogue","Catalogo pagina","Página de catálogo"]
["Antriebsmoment bei 6 bar ( Nm )","Antriebsmoment bei 6 bar ( Nm )","Drive torque at 6 bar ( Nm )","Couple d’entraînement à 6 bar ( Nm )","Coppia motrice a 6 bar ( Nm )","Mom. de accionamiento para 6 bar ( Nm )"]
["UNZULÄSSIG","UNZULÄSSIG","IMPERMISSIBLE","NON ADMIS","NON AMMESSO","INADMISIBLE"]
["Masse zu hoch","Masse zu hoch","Mass too high","Masse trop élevée","Massa troppo elevata","Masa demasiado alta"]
["Stoßdämpfer","Stoßdämpfer","Shock absorber","Amortisseur","Ammortizzatore","Amortiguador"]
["Lagerung überlastet","Lagerung überlastet","Brg. arrangement overload","Palier surchargé","Cuscinetto sovraccarico","Disposición de los cojinetes sobrecargada"]
["Schwenkwinkelbereich ( ° )","Schwenkwinkelbereich ( ° )","Swivel angle range ( ° )","Plage d'angle de pivotement ( ° )","Campo dell'angolo di rotazione ( ° )","Margen de ángulo de giro ( ° )"]
["Auslastung Stoßdämpfer / Zyklus","Auslastung Stoßdämpfer / Zyklus","Utilisation of shock absorber / cycle","Degré d'utilisation des amortiss./cycle","Distrib. d. carico sull'ammortizzatore / ciclo","Sobreutilización amortiguador / ciclo"]
["Auslastung Massenträgheitsmoment","Auslastung Massenträgheitsmoment","Utilisation of mass moment of inertia","Degré d'utilis. d. couple d'iner. d. l. masse","Distrib. d. carico mom. di iner. della massa","Sobreutil. mom. de iner. de la masa"]
["Auslastung Lagerung","Auslastung Lagerung","Utilisation of brg. arrangement","Degré d'utilisation du palier","Distribuzione del carico sul cuscinetto","Sobreutil. disposición de los cojinetes"]
["Auslastung Antriebsmoment","Auslastung Antriebsmoment","Utilisation of drive torque","Degré d'utilis. du couple d'entraînement","Distribuzione del carico coppia motrice","Sobreutil. momento de accionamiento"]
["Min. Schwenkzeit UZ / GUZ ( s )","Min. Schwenkzeit UZ / GUZ ( s )","Min. swivel time clock/anticlock ( s )","Temps de pivotement min. UZ / GUZ ( s )","Tempo di rotazione min. OR / AOR ( s )","Mín. tiempo de giro AR / CAR ( s )"]
["Max. Zyklenzahl / Min.","Max. Zyklenzahl / Min.","Max. cycles per min","Nombre de cycles max. / min.","Max. numero cicli / min.","Máx. número de ciclos / Mín."]
["Min. Schwenkzeit GUZ / UZ ( s )","Min. Schwenkzeit GUZ / UZ ( s )","Min. swivel time anticlock/clock ( s )","Temps de pivotement min. GUZ / UZ ( s )","Tempo di rotazione min. AOR / OR ( s )","Mín. tiempo de giro CAR / AR ( s )"]
[]
[]
[]
[]
[]
["Eingabe 3","Restliche Übersetzungen siehe Eingabe 2"]
[]
[{"$f":"IF($A$2=1,B261,IF($A$2=2,C261,IF($A$2=3,D261,IF($A$2=4,E261,IF($A$2=5,F261)))))","v":"Rotationsmodule Flachbauweise RM 06 bis RM 21"},"Rotationsmodule Flachbauweise RM 06 bis RM 21","Rotary actuators, flat design, RM 06 to RM 21","Modules rotatifs de type construction à plat RM 06 à RM 21","Moduli di rotazione struttura piana da RM 06 a RM 21","Módulos rotatorios de diseño plano RM 06 hasta RM 21"]
[{"$f":"IF($A$2=1,B262,IF($A$2=2,C262,IF($A$2=3,D262,IF($A$2=4,E262,IF($A$2=5,F262)))))","v":"Schwenkwinkel ( 1 bis 190° )"},"Schwenkwinkel ( 1 bis 190° )","Swivel angle ( 1 to 190° )","Angle de pivotement ( 1 à 190° )","Angolo di rotazione ( da 1 a 190° )","Ángulo de giro ( 1 hasta 190° )"]
[{"$f":"IF($A$2=1,B263,IF($A$2=2,C263,IF($A$2=3,D263,IF($A$2=4,E263,IF($A$2=5,F263)))))","v":"Drehwinkel zu groß"},"Drehwinkel zu groß","Ang. of rot. too large","Ang. de rot. trop imp.","Ang. di rot. eccessivo","Áng.rot.demas.gra."]
[]
[]
[]
[]
[]
[]
[]
[]
[]
[]
[]
[]
[]
["Eingabe 1","Restliche Übersetzungen siehe Eingabe 1alt"]
[]
[{"$f":"IF($A$2=1,B279,IF($A$2=2,C279,IF($A$2=3,D279,IF($A$2=4,E279,IF($A$2=5,F279)))))","v":"Berechnung Drehlader"},"Berechnung Drehlader","Calculation of rotary loader","Calcul chargeur rotatif","Calcolo del caricatore rotante","Cálculo de cargador giratorio"]
["Drehlader DRL 20-…/DRL 25-…","Drehlader DRL 20-…/DRL 25-…","Rotary loader DRL 20-…/DRL 25-…","Chargeur rotatif DRL 20-… /DRL 25-…","Caricatore rotante DRL 20-… /DRL 25-…","Cargador giratorio DRL 20-… /DRL 25-…"]
["Min. Taktzeit  (s)","Min. Taktzeit  (s)","Min. cycle time (s)","Cadence min. (s)","Tempo di ciclo min. (s)","Mín. tiempo de ciclo (s)"]
["Min. Schwenkzeit  (s)","Min. Schwenkzeit  (s)","Minimum swivelling time (s)","Temps de pivotement min.  (s)","Tempo di rotazione massimo (s)","min. tiempo  (s)"]
["Schwenkwinkel (°)","Schwenkwinkel (°)","Swivelling angle (°)","Angle de pivotement (°)","Angolo di rotazione (°)","angulo de giro (º)"]
["Berechnung nur für -L und -R Versionen, nicht für -B Version gültig","Berechnung nur für -L und -R Versionen, nicht für -B Version gültig","Just for calculating (-L) and (-R) versions cannot   be used for calculating (-B) versions.","Calcul pour les versions L et R uniquement, ne s'applique pas à la version B","Solo per calcolo di versioni (-L) e (-R), non può essere utilizzato per il calcolo di versioni (-B).","Calculos solo validos para la version -L y -R, no para la version -B"]
["Teilung nicht möglich","Teilung nicht möglich","Pitch not possible","Division impossible","Divisione non possibile","Index no posible"]
["Schwenkwinkel ( 90° - 180° )","Schwenkwinkel ( 90° - 180° )","Angle of rotation (90° - 180°)","Angle de pivotement (90° - 180°)","Angolo di oscillazione (90° - 180°)","Ángulo de giro (90° - 180°)"]
["Berechnung ist nur bei zentrischer Last möglich !","Berechnung ist nur bei zentrischer Last möglich !","Calculation is possible only with central load !","Le calcul est possible seulement avec la charge centrale !","Il calcolo è possibile solo con carico centrale !","El cálculo sólo es posible con carga central !"]
["Antriebsmoment  ( Nm )","Antriebsmoment  ( Nm )","Input torque  (Nm)","Couple d'entraînement  (Nm)","Coppia motrice  (Nm)","Par motor  (Nm)"]
["Taktzeiten sind reine Fahrzeiten für die kombinierte Hub-Dreh-Bewegung unter optimalen Bedingungen * . Verweilzeiten oder SPS-Reaktionszeiten sind nicht enthalten und bei der Ermittlung von Gesamt-Zykluszeiten zu berücksichtigen !","Taktzeiten sind reine Fahrzeiten für die kombinierte Hub-Dreh-Bewegung unter optimalen Bedingungen * . Verweilzeiten oder SPS-Reaktionszeiten sind nicht enthalten und bei der Ermittlung von Gesamt-Zykluszeiten zu berücksichtigen !","Cycle times are only durations of travel for the combined lift/rotary movement under optimal conditions * . Dwell times or SPC response times are not included and must be taken into account when calculating the total cycle times!","Les cadences sont des temps de conduite purs pour le mouvement combiné de levage et de rotation dans des conditions optimales * . Les temps d'attente ou les temps de réaction API ne sont pas compris et doivent être pris en compte pour déterminer les nombres de cycles totaux !","I tempi di ciclo sono i tempi di marcia puri per il moto combinato di corsa-rotazione in condizioni ottimali * . I tempi di permanenza o tempi di reazione del PLC non sono compresi e devono essere tenuti presenti nella determinazione dei tempi di ciclo totali!","Los tiempos de ciclo son simplemente tiempos de recorrido para el movimiento combinado de elevación y giro en condiciones óptimas*. Los tiempos de permanencia o los tiempos de reacción del CLP no están incluidos y hay que tenerlos en cuenta al calcular los tiempos de ciclo totales."]
["Gesamtmasse (kg)","Gesamtmasse (kg)","Total mass (kg)","Masse totale (kg)","Massa totale (kg)","Masa total (kg)"]
["Betrieb mit  Schlauchlängen zwischen  Ventilbox und DRL : 0,5 m ( DRL 20 ), 0,7 m ( DRL 25 ),\nBetriebsdruck: 6 bar ( DRL 20 ), 5 bar ( DRL 25 )","Betrieb mit  Schlauchlängen zwischen  Ventilbox und DRL : 0,5 m ( DRL 20 ), 0,7 m ( DRL 25 ),\nBetriebsdruck: 6 bar ( DRL 20 ), 5 bar ( DRL 25 )","Operation with hose lengths between valve box and DRL: 0.5 m (DRL 20), 0.7 m (DRL 25),\noperating pressure: 6 bar ( DRL 20 ), 5 bar ( DRL 25 )","Fonctionnement avec longueurs de flexibles entre la Ventilbox et le DRL : 0,5 m (DRL 20), 0,7 m (DRL 25),\npression de service : 6 bars ( DRL 20 ), 5 bars ( DRL 25 )","Funzionamento con lunghezze del flessibile tra box valvole e DRL : 0,5 m (DRL 20), 0,7 m (DRL 25),\npressione di esercizio: 6 bar ( DRL 20 ), 5 bar ( DRL 25 )","Funcionamiento con longitudes de manguera entre caja de válvulas y DRL: 0,5 m (DRL 20), 0,7 m (DRL 25),\npresión de servicio: 6 bar ( DRL 20 ), 5 bar ( DRL 25 )"]
["Zyklus: Vertikal auf - Schwenken - Vertikal ab - Vertikal auf - Schwenken - Vertikal ab","Zyklus: Vertikal auf - Schwenken - Vertikal ab - Vertikal auf - Schwenken - Vertikal ab","Cycle: Vertical up - Rotate - Vertical down - Vertical up - Rotate - Vertical down","Cycle : Vertical sur - Pivoter - Vertical à partir de - Vertical sur - Pivoter - Vertical à partir de","Ciclo: Verticale su - Oscillazione - Verticale giù - Verticale su - Oscillazione - Verticale giù","Ciclo: vertical arriba - bascular - vertical abajo - vertical arriba - bascular - vertical abajo"]
[]
["Hubkraft  (N)","Hubkraft  (N)","Lift force  (Nm)","Force de levage  (Nm)","Forza di sollevamento  (Nm)","Fuerza de elevación  (Nm)"]
["Jges zu hoch","Jges zu hoch","Jges too high","Jges trop élevée","Jges troppo elevata","Jges demasiado alta"]
["Ja","Ja","Yes","Oui","Si","si"]
["Nein","Nein","No","Non","No","no"]
["Anbausatz Winkeladapter AS-DRL 20/25-WA","Anbausatz Winkeladapter AS-DRL 20/25-WA","Angle adapter mounting kit AS-DRL 20/25-WA","Kit de montage adaptateur d'angle AS-DRL 20/25-WA","Set di montaggio adattatore angolare AS-DRL 20/25-WA","Juego de montaje para adaptador de ángulo AS-DRL 20/25-WA"]
["Anbausatz Energieschlauch AS-DRL 20/25-ES","Anbausatz Energieschlauch AS-DRL 20/25-ES","Energy chain mounting kit AS-DRL 20/25-ES","Kit de montage guidage de l'énergie AS-DRL 20/25-ES","Set di montaggio guida energia AS-DRL 20/25-ES","Juego de montaje para cable de alimentación AS-DRL 20/25-ES"]
["Info-Aufbau"]
[]
[{"$f":"IF($A$2=1,B302,IF($A$2=2,C302,IF($A$2=3,D302,IF($A$2=4,E302,IF($A$2=5,F302)))))","v":"Für die Berechnung der Pick&Place-Unit muss der Schwerpunkt der bewegten Masse ermittelt werden."},"Für die Berechnung der Pick&Place-Unit muss der Schwerpunkt der bewegten Masse ermittelt werden.","For calculation of the Pick&Place unit the center of gravity of the moved mass must be determined.","Pour le calcul de Pick&Place-Unit, il faut déteminer le centre de gravité de la masse en mouvement.","Per il calcolo dell'unità Pick&Place si deve determinare il baricentro della massa movimentata.","Para calcular la unidad Pick&Place, se debe averiguar el centro de gravedad de la masa movida."]
[{"$f":"IF($A$2=1,B303,IF($A$2=2,C303,IF($A$2=3,D303,IF($A$2=4,E303,IF($A$2=5,F303)))))","v":"Zur Berechnung des Massenschwerpunktes"},"Zur Berechnung des Massenschwerpunktes","For calculation of the mass center of gravity","Pour calculer le centre de gravité de la masse","Per il calcolo del baricentro della massa","Ir al cálculo del centro de gravedad de masa"]
[]
[]
[]
[]
[]
[]
["Massenschwerpunkt"]
[]
[{"$f":"IF($A$2=1,B312,IF($A$2=2,C312,IF($A$2=3,D312,IF($A$2=4,E312,IF($A$2=5,F312)))))","v":"Berechnung Massenschwerpunkt"},"Berechnung Massenschwerpunkt","Calculation of mass center of gravity","Calcul centre de gravité de la masse","Calcolo del baricentro della massa","Cálculo del centro de gravedad de masa"]
["Gesamtmassenschwerpunkt aus Einzelkörperberechnung","Gesamtmassenschwerpunkt aus Einzelkörperberechnung","Total mass center of gravity from single body calculation","centre de gravité de la masse totale à partir du calcul du corps individuel","Baricentro della massa totale dal calcolo del corpo singolo","Centro de gravedad de la masa total a partir del cálculo de cuerpos individuales"]
["Zur PPU-P - Berechnung","Zur PPU-P - Berechnung","PPU-P calculation","Pour calculer PPU-P","Al calcolo PPU-P","Ir al cálculo PPU-P"]
["Direkte Eingabe der Masse","Direkte Eingabe der Masse","Direct input of the mass","Saisiedirecte de la masse","Immissione diretta della massa","Introducción directa  de la masa"]
["Welle längs","Welle längs","Shaft long.","Arbre longitud.","Albero longitudinale","Eje longitudinal"]
["Welle quer","Welle quer","Shaft trans.","Arbre transver.","Albero trasversale","Eje transversal"]
["Eingabe m","Eingabe m","Input m","Saisie m","Immissione m","Introducción m"]
[]
[]
[]
[]
[]
["Eingabe 2"]
[]
[{"$f":"IF($A$2=1,B326,IF($A$2=2,C326,IF($A$2=3,D326,IF($A$2=4,E326,IF($A$2=5,F326)))))","v":"Berechnung Pick & Place-Unit"},"Berechnung Pick & Place-Unit","Calculation of Pick & Place -Unit","Calcul Pick & Place-Unit","Calcolo del Pick & Place-Unit","Cálculo de Pick & Place-Unit"]
["Massen- schwerpunkt","Massen- schwerpunkt","Mass center of gravity","Centre de gravité de la masse","Baricentro della massa","Centro de gravedad de masa"]
["Pick&Place-Unit PPU-P-10 / PPU-P-30","Pick&Place-Unit PPU-P-10 / PPU-P-30","Pick&Place-Unit PPU-P-10 / PPU-P-30","Pick&Place-Unit PPU-P-10 / PPU-P-30","Pick&Place-Unit PPU-P-10 / PPU-P-30","Pick&Place-Unit PPU-P-10 / PPU-P-30"]
["Taktzeiten sind reine Fahrzeiten für die kombinierte Vertikal-Horizontal-Bewegung unter optimalen Bedingungen *. Verweilzeiten oder SPS-Reaktionszeiten sind nicht enthalten und bei der Ermittlung von Gesamt-Zykluszeiten zu berücksichtigen !","Taktzeiten sind reine Fahrzeiten für die kombinierte Vertikal-Horizontal-Bewegung unter optimalen Bedingungen *. Verweilzeiten oder SPS-Reaktionszeiten sind nicht enthalten und bei der Ermittlung von Gesamt-Zykluszeiten zu berücksichtigen !","Cycle times are only durations of travel for the combined vertical/horizontal movement under optimal conditions * . Dwell times or SPC response times are not included and must be taken into account when calculating the total cycle times!","Les cadences sont des temps de conduite purs pour le mouvement combiné dans le sens vertical et horizontal dans des conditions optimales * . Les temps d'attente ou les temps de réaction API ne sont pas compris et doivent être pris en compte pour déterminer les nombres de cycles totaux !","I tempi di ciclo sono i tempi di marcia puri per il moto combinato verticale-orizzontale in condizioni ottimali * . I tempi di permanenza o tempi di reazione del PLC non sono compresi e devono essere tenuti presenti nella determinazione dei tempi di ciclo totali!","Los tiempos de ciclo son simplemente tiempos de recorrido para el movimiento combinado vertical-horizontal en condiciones óptimas*. Los tiempos de permanencia o los tiempos de reacción del CLP no están incluidos y hay que tenerlos en cuenta al calcular los tiempos de ciclo totales."]
["Ergebnisse aus der Berechnung des Massenschwerpunktes","Ergebnisse aus der Berechnung des Massenschwerpunktes","Results of the calculation of the mass center of gravity","Résultats du calcul du centre de gravité de la masse","Risultati del calcolo del baricentro della massa","Resultados a partir del cálculo del centro de gravedad de masa"]
["*  Betrieb mit SCHUNK Ventilbox VCU 25 ( PPU-P-10 )","*  Betrieb mit SCHUNK Ventilbox VCU 25 ( PPU-P-10 )","* Operation with SCHUNK valve box VCU 25 (PPU-P-10)","* Fonctionnement avec la SCHUNK Ventilbox VCU 25 (PPU-P-10)","* Funzionamento con box valvole SCHUNK VCU 25 (PPU-P-10)","* Funcionamiento con caja de válvulas VCU 25 (PPU-P-10) de SCHUNK"]
["Schlauchlängen zwischen  Ventilbox und P&P-Unit : 0,5 m ( PPU-P-10 ), 0,7 m ( PPU-P-30 )","Schlauchlängen zwischen  Ventilbox und P&P-Unit : 0,5 m ( PPU-P-10 ), 0,7 m ( PPU-P-30 )","hose lengths between valve box and P&P-Unit: 0.5 m (PPU-P-10), 0.7 m (PPU-P-30)","longueurs de flexibles entre la Ventilbox et le P&P-Unit : 0,5 m (PPU-P-10), 0,7 m (PPU-P-30)","lunghezze del flessibile tra box valvole e P&P-Unit : 0,5 m (PPU-P-10), 0,7 m (PPU-P-30)","longitudes de manguera entre caja de válvulas y P&P-Unit: 0,5 m (PPU-P-10), 0,7 m (PPU-P-30)"]
["Betriebsdruck: 5 bar","Betriebsdruck: 5 bar","Operating pressure: 5 bar","Pression de service : 5 bars","Pressione di esercizio: 5 bar","Presión de servicio: 5 bar"]
["** Zyklus: Vertikal auf - Horizontal vor - Vertikal ab - Vertikal auf - Horizontal zurück - Vertikal ab","** Zyklus: Vertikal auf - Horizontal vor - Vertikal ab - Vertikal auf - Horizontal zurück - Vertikal ab","** Cycle: Vertical up - Horizontal forward - Vertical down - Vertical up - Horizontal back - Vertical down","** Cycle : Vertical sur - Horizontal avance - Vertical à partir de - Vertikal sur - Horizontal retour - Vertical à partir de","** Ciclo: Verticale su - Orizzontale avanti - Verticale giù - Verticale su - Orizzontale indietro - Verticale giù","** Ciclo: vertical arriba - horizontal delante - vertical abajo - vertical arriba - horizontal atrás - vertical abajo"]
["Berechnung","Berechnung","Calculation","Calcul","Calcolo","Cálculo"]